Workbook

Sheet 使い方・使用許諾
A1: このツールについて
A2: ・1年単位の変形労働時間制を適用した場合の労働基準法上の「時間外労働」「休日労働」「深夜労働」の時間数を計算するツールです。
A3: ・IFS関数やLET関数を使用しているため、バージョンの古いエクセルでは利用できない場合があります。
A4: ・全ての勤怠状況において正しい時間計算を行うことを保証するものではありません。計算結果は自己責任でご利用ください。
A7: 使い方
A8: ・計算条件と勤怠状況（勤務予定と勤務実績）を入力して「計算する」ボタンを押して下さい。
A10: 用語の説明
A11: 番号 | B11: 項目 | C11: 説明
A12: ① | B12: 所定労働時間 | C12: 就業規則等で定めている1日の所定労働時間
A13: ② | B13: 有給休暇時間 | C13: 年次有給休暇や会社が定める有給の特別休暇を取得した時間（有給の不就労時間）
A14: ③ | B14: 実働時間 | C14: 実際に就労した時間（＝⑱法定内労働＋⑧時間外労働＋④法定休日労働）
A15: ④ | B15: 法定休日労働時間 | C15: 法定休日（0時～24時）の労働時間
A16: ⑤ | B16: 時間外労働時間（1日） | C16: 1日の法定労働時間を超える時間外労働時間
A17: ⑥ | B17: 時間外労働時間（週） | C17: 週の法定労働時間を超える時間外労働時間（⑤を除く）
A18: ⑦ | B18: 時間外労働時間（年） | C18: 年の法定労働時間を超える時間外労働時間（⑤⑥を除く）
A19: ⑧ | B19: 時間外労働時間（合計） | C19: 時間外労働時間（⑤～⑦の合計）
A20: ⑨ | B20: 時間外労働時間（60時間以下・勤務日） | C20: ⑧時間外労働のうち、月60時間以下で所定勤務日に行った時間
A21: ⑩ | B21: 時間外労働時間（60時間以下・所定休日） | C21: ⑧時間外労働のうち、月60時間以下で所定休日に行った時間
A22: ⑪ | B22: 時間外労働時間（60時間超・勤務日） | C22: ⑧時間外労働のうち、月60時間超で所定勤務日に行った時間
A23: ⑫ | B23: 時間外労働時間（60時間超・所定休日） | C23: ⑧時間外労働のうち、月60時間超で所定休日に行った時間
A24: ⑬ | B24: 深夜労働時間 | C24: 深夜（22時～翌5時）の労働時間
A25: ⑭ | B25: 所定内労働時間 | C25: 所定労働時間までの労働時間
A26: ⑮ | B26: 振替出勤 | C26: 休日振替によって勤務した時間（⑧時間外労働と⑯所定外労働を除く）
A27: ⑯ | B27: 所定外労働時間 | C27: 所定労働時間を超え法定労働時間までの労働時間（いわゆる法定内残業）
A28: ⑰ | B28: 所定休日労働時間 | C28: 所定休日の労働時間（⑧時間外労働時間を除く）
A29: ⑱ | B29: 法定内労働時間（合計） | C29: 法定労働時間内の総労働時間（＝⑭所定内労働＋⑮振替出勤＋⑯所定外労働＋⑰所定休日労働）
A30: ⑲ | B30: 欠勤等時間 | C30: 欠勤・遅刻・早退・無給の休暇などで通常賃金から控除する時間（無給の不就労時間）
A31: ⑳ | B31: 振替休日 | C31: 振替休日（代休含む）の取得によって通常賃金から控除する時間
A32: ㉑ | B32: 100％賃金相殺時間 | C32: 割増賃金の計算において100％部分を相殺して割増部分のみを支払う時間
A33: ㉒ | B33: 控除時間（合計） | C33: 控除時間の合計（＝⑲欠勤等時間＋⑳振替休日＋㉑100％賃金相殺時間）
A35: その他
A36: ・期間の開始時や終了時で端数日がある週における週の法定労働時間は、「40時間×端日数÷７」でみています。 | E36: 別表１ 日をまたぐ勤務の時間計算
A37: ・計算条件の「端数処理（切捨）」は、変形期間の法定労働時間を10進数で表示した場合の端数処理です。 | E37: 勤務区分 | G37: 計算方法
A38: （例）1年（365日）の法定労働時間 | E38: 24時まで | F38: 24時以降 | G38: 24時までの労働時間 | H38: 24時以降の労働時間
A39: 【端数処理なし】40時間×365日÷7＝2085.71…時間（2085:42） | E39: 勤務日 | F39: 勤務日 | G39: 通算して所定内（外）労働又は時間外労働
A40: 【第2位以下】 40時間×365日÷7≒177時間（2085:42） | F40: 所定休日 | G40: 通算して所定内（外）労働又は時間外労働
A41: 【第1位以下】 40時間×365日÷7≒2085時間（2085:00） | F41: 法定休日 | G41: 所定内（外）又は時間外 | H41: 法定休日労働
A42: ・一勤務が日をまたいだ場合の時間計算は別表１のとおり行っています。 | E42: 所定休日 | F42: 勤務日 | G42: 通算して所定休日労働又は時間外労働
A43: ・下記の場合は、正しい時間計算を行えません。 | F43: 所定休日 | G43: 通算して所定休日労働又は時間外労働
A44: (1)勤務終了が翌日の始業時刻を超える場合 | F44: 法定休日 | G44: 所定休日労働又は時間外労働 | H44: 法定休日労働
A45: (2)3交代勤務で休日を継続24時間としている場合 | E45: 法定休日 | F45: 勤務日 | G45: 法定休日労働 | H45: 所定外労働又は時間外労働
A46: (3)その他、勤務状況が特殊である又は一般的とは言えない場合 | F46: 所定休日 | G46: 法定休日労働 | H46: 所定外労働又は時間外労働
F47: 法定休日 | G47: 法定休日労働 | H47: 法定休日労働
A48: 使用許諾
A49: ・当ツールの著作権及び知的所有権は、社会保険労務士事務所しのはら労働コンサルタントに帰属します。
A50: ・当ツールの全部または一部の再配布、再使用許諾及び公開することを禁止します。
A51: ・当ツールの利用により発生したトラブル・損失・損害については、一切責任を負いません。ご利用にあたっては自己責任でお願いします。
A52: ・別料金にてカスタマイズを承ります。
A54: 作成・配付
A55: 社会保険労務士事務所しのはら労働コンサルタント
A56: 社会保険労務士 篠原宏治
A57: 〒168-0062 東京都杉並区方南1-2-10-1F
A58: TEL | B58: 03-6300-4323
A59: FAX | B59: 03-6300-4324
A60: メール | B60: mail@shlc.jp
A62: 元労働基準監督官による労務相談とエクセル業務効率化に強い社労士事務所です。
A63: 労務相談、社会保険・労働保険手続き、給与計算のご依頼を随時受け付けております。
A64: お気軽にお問い合わせください。

Sheet 1年変形
F1: 計算条件 | T1: 入力欄 | W1: 計算結果欄
F2: 週起算日 | H2: 1 | I2: 1:日 2:月 3:火 4:水 5:木 6:金 7:土 | L2: 労働時間制 | N2: 1年変形 | O2: 1年変形（固定） | U2: 入力可 | X2: 労基法第37条の割増賃金の対象となる時間
F3: 週締め日 | H3: =IF(H2+6>7,H2-1,H2+6) -> 7 | I3: 週起算日から自動判定 | L3: 端数処理（切捨） | N3: なし | O3: 年法定労働時間の端数処理
F4: 週法定労働時間 | H4: 40 | I4: 40時間（固定） | L4: 年法定労働時間 | N4: =O5/24+P5/24/60 -> 86.90416667 | O4: 40時間×暦日数÷7 | U4: 入力必須 | X4: 上記以外（有料版のみ） （給与や割増賃金の計算に使用する時間）
G5: =IF(G374>N3,"年の所定労働時間が週平均40時間を超えています。","") ->  | N5: =ROUNDDOWN(COUNT(A9:A374)/7*H4,_xlfn.IFS(N3="なし",99,N3="第1位以下",0,N3="第2位以下",1))/24 -> 86.9047619 | O5: =LEFT(TEXT(N5,"[h]:mm"),4) -> 2085 | P5: =RIGHT(TEXT(N5,"[h]:mm"),2) -> 42 | U5: 入力不可
A6: 勤怠状況 | G6: =IF(G375>N4,"年の所定労働時間が週平均40時間を超えています。","") -> 
B7: 集計用 | F7: 勤務予定 | H7: 振替 | J7: 勤務実績 | T7: 時間外労働 | X7: 時間外労働内訳
A8: 年月日 | B8: 週 締日 | C8: 月 締日 | D8: 週 日数 | E8: 期間日数 | F8: 休日 | G8: 所定 労働時間 | H8: 振替 | I8: 振替後の所定 労働時間 | J8: 始業時刻 | K8: 終業時刻 | L8: 中抜時間 (0～5時) | M8: 中抜時間 (5～22時) | N8: 中抜時間 (22～24時) | O8: 中抜時間 (24～翌5時) | P8: 中抜時間 (翌5時～) | Q8: 有給休暇 時間 | R8: 実働時間 | S8: 法定休日 | T8: 時間外(日) | U8: 時間外 (週) | V8: 時間外 (年) | W8: 時間外 (合計) | X8: 勤務日 (60H以下) | Y8: 所定休日 (60H以下) | Z8: 勤務日 (60H超) | AA8: 所定休日 (60H超) | AB8: 深夜
A9: 2025-01-01 | B9: =_xlfn.IFS(A9="-","",NOT(ISNUMBER(A10)),2,WEEKDAY(A9)=$H$3,1,TRUE,"") ->  | C9: =_xlfn.IFS(A9="-","",$A$9=$A9,"",DAY($A$9)=DAY(A9+1),DATEDIF($A$9,A9+1,"M"),TRUE,"") ->  | D9: =_xlfn.IFS(A9="-","",ISTEXT(D8),1,ISTEXT(B8),D8+1,TRUE,1) -> 1 | E9: =_xlfn.IFS(A9="-","",ISTEXT(E8),1,TRUE,E8+1) -> 1 | R9: =K9-J9-SUM(L9:P9) -> 0 | S9: 0 | T9: 0 | U9: 0 | V9: 0 | W9: 0 | X9: 0 | Y9: 0 | Z9: 0 | AA9: 0 | AB9: 0
A10: =_xlfn.IFS(EDATE($A$9,12)=A9+1,"-",TRUE,A9+1) -> 2025-01-02 | B10: =_xlfn.IFS(A10="-","",NOT(ISNUMBER(A11)),2,WEEKDAY(A10)=$H$3,1,TRUE,"") ->  | C10: =_xlfn.IFS(A10="-","",$A$9=$A10,"",DAY($A$9)=DAY(A10+1),DATEDIF($A$9,A10+1,"M"),TRUE,"") ->  | D10: =_xlfn.IFS(A10="-","",ISTEXT(D9),1,ISTEXT(B9),D9+1,TRUE,1) -> 2 | E10: =_xlfn.IFS(A10="-","",ISTEXT(E9),1,TRUE,E9+1) -> 2 | R10: =K10-J10-SUM(L10:P10) -> 0 | S10: 0 | T10: 0 | U10: 0 | V10: 0 | W10: 0 | X10: 0 | Y10: 0 | Z10: 0 | AA10: 0 | AB10: 0
A11: =_xlfn.IFS(EDATE($A$9,12)=A10+1,"-",TRUE,A10+1) -> 2025-01-03 | B11: =_xlfn.IFS(A11="-","",NOT(ISNUMBER(A12)),2,WEEKDAY(A11)=$H$3,1,TRUE,"") ->  | C11: =_xlfn.IFS(A11="-","",$A$9=$A11,"",DAY($A$9)=DAY(A11+1),DATEDIF($A$9,A11+1,"M"),TRUE,"") ->  | D11: =_xlfn.IFS(A11="-","",ISTEXT(D10),1,ISTEXT(B10),D10+1,TRUE,1) -> 3 | E11: =_xlfn.IFS(A11="-","",ISTEXT(E10),1,TRUE,E10+1) -> 3 | R11: 0 | S11: 0 | T11: 0 | U11: 0 | V11: 0 | W11: 0 | X11: 0 | Y11: 0 | Z11: 0 | AA11: 0 | AB11: 0
A12: =_xlfn.IFS(EDATE($A$9,12)=A11+1,"-",TRUE,A11+1) -> 2025-01-04 | B12: =_xlfn.IFS(A12="-","",NOT(ISNUMBER(A13)),2,WEEKDAY(A12)=$H$3,1,TRUE,"") -> 1 | C12: =_xlfn.IFS(A12="-","",$A$9=$A12,"",DAY($A$9)=DAY(A12+1),DATEDIF($A$9,A12+1,"M"),TRUE,"") ->  | D12: =_xlfn.IFS(A12="-","",ISTEXT(D11),1,ISTEXT(B11),D11+1,TRUE,1) -> 4 | E12: =_xlfn.IFS(A12="-","",ISTEXT(E11),1,TRUE,E11+1) -> 4 | R12: 0 | S12: 0 | T12: 0 | U12: 0 | V12: 0 | W12: 0 | X12: 0 | Y12: 0 | Z12: 0 | AA12: 0 | AB12: 0
A13: =_xlfn.IFS(EDATE($A$9,12)=A12+1,"-",TRUE,A12+1) -> 2025-01-05 | B13: =_xlfn.IFS(A13="-","",NOT(ISNUMBER(A14)),2,WEEKDAY(A13)=$H$3,1,TRUE,"") ->  | C13: =_xlfn.IFS(A13="-","",$A$9=$A13,"",DAY($A$9)=DAY(A13+1),DATEDIF($A$9,A13+1,"M"),TRUE,"") ->  | D13: =_xlfn.IFS(A13="-","",ISTEXT(D12),1,ISTEXT(B12),D12+1,TRUE,1) -> 1 | E13: =_xlfn.IFS(A13="-","",ISTEXT(E12),1,TRUE,E12+1) -> 5 | R13: 0 | S13: 0 | T13: 0 | U13: 0 | V13: 0 | W13: 0 | X13: 0 | Y13: 0 | Z13: 0 | AA13: 0 | AB13: 0
A14: =_xlfn.IFS(EDATE($A$9,12)=A13+1,"-",TRUE,A13+1) -> 2025-01-06 | B14: =_xlfn.IFS(A14="-","",NOT(ISNUMBER(A15)),2,WEEKDAY(A14)=$H$3,1,TRUE,"") ->  | C14: =_xlfn.IFS(A14="-","",$A$9=$A14,"",DAY($A$9)=DAY(A14+1),DATEDIF($A$9,A14+1,"M"),TRUE,"") ->  | D14: =_xlfn.IFS(A14="-","",ISTEXT(D13),1,ISTEXT(B13),D13+1,TRUE,1) -> 2 | E14: =_xlfn.IFS(A14="-","",ISTEXT(E13),1,TRUE,E13+1) -> 6 | R14: 0 | S14: 0 | T14: 0 | U14: 0 | V14: 0 | W14: 0 | X14: 0 | Y14: 0 | Z14: 0 | AA14: 0 | AB14: 0
A15: =_xlfn.IFS(EDATE($A$9,12)=A14+1,"-",TRUE,A14+1) -> 2025-01-07 | B15: =_xlfn.IFS(A15="-","",NOT(ISNUMBER(A16)),2,WEEKDAY(A15)=$H$3,1,TRUE,"") ->  | C15: =_xlfn.IFS(A15="-","",$A$9=$A15,"",DAY($A$9)=DAY(A15+1),DATEDIF($A$9,A15+1,"M"),TRUE,"") ->  | D15: =_xlfn.IFS(A15="-","",ISTEXT(D14),1,ISTEXT(B14),D14+1,TRUE,1) -> 3 | E15: =_xlfn.IFS(A15="-","",ISTEXT(E14),1,TRUE,E14+1) -> 7 | R15: 0 | S15: 0 | T15: 0 | U15: 0 | V15: 0 | W15: 0 | X15: 0 | Y15: 0 | Z15: 0 | AA15: 0 | AB15: 0
A16: =_xlfn.IFS(EDATE($A$9,12)=A15+1,"-",TRUE,A15+1) -> 2025-01-08 | B16: =_xlfn.IFS(A16="-","",NOT(ISNUMBER(A17)),2,WEEKDAY(A16)=$H$3,1,TRUE,"") ->  | C16: =_xlfn.IFS(A16="-","",$A$9=$A16,"",DAY($A$9)=DAY(A16+1),DATEDIF($A$9,A16+1,"M"),TRUE,"") ->  | D16: =_xlfn.IFS(A16="-","",ISTEXT(D15),1,ISTEXT(B15),D15+1,TRUE,1) -> 4 | E16: =_xlfn.IFS(A16="-","",ISTEXT(E15),1,TRUE,E15+1) -> 8 | R16: 0 | S16: 0 | T16: 0 | U16: 0 | V16: 0 | W16: 0 | X16: 0 | Y16: 0 | Z16: 0 | AA16: 0 | AB16: 0
A17: =_xlfn.IFS(EDATE($A$9,12)=A16+1,"-",TRUE,A16+1) -> 2025-01-09 | B17: =_xlfn.IFS(A17="-","",NOT(ISNUMBER(A18)),2,WEEKDAY(A17)=$H$3,1,TRUE,"") ->  | C17: =_xlfn.IFS(A17="-","",$A$9=$A17,"",DAY($A$9)=DAY(A17+1),DATEDIF($A$9,A17+1,"M"),TRUE,"") ->  | D17: =_xlfn.IFS(A17="-","",ISTEXT(D16),1,ISTEXT(B16),D16+1,TRUE,1) -> 5 | E17: =_xlfn.IFS(A17="-","",ISTEXT(E16),1,TRUE,E16+1) -> 9 | R17: 0 | S17: 0 | T17: 0 | U17: 0 | V17: 0 | W17: 0 | X17: 0 | Y17: 0 | Z17: 0 | AA17: 0 | AB17: 0
A18: =_xlfn.IFS(EDATE($A$9,12)=A17+1,"-",TRUE,A17+1) -> 2025-01-10 | B18: =_xlfn.IFS(A18="-","",NOT(ISNUMBER(A19)),2,WEEKDAY(A18)=$H$3,1,TRUE,"") ->  | C18: =_xlfn.IFS(A18="-","",$A$9=$A18,"",DAY($A$9)=DAY(A18+1),DATEDIF($A$9,A18+1,"M"),TRUE,"") ->  | D18: =_xlfn.IFS(A18="-","",ISTEXT(D17),1,ISTEXT(B17),D17+1,TRUE,1) -> 6 | E18: =_xlfn.IFS(A18="-","",ISTEXT(E17),1,TRUE,E17+1) -> 10 | R18: 0 | S18: 0 | T18: 0 | U18: 0 | V18: 0 | W18: 0 | X18: 0 | Y18: 0 | Z18: 0 | AA18: 0 | AB18: 0
A19: =_xlfn.IFS(EDATE($A$9,12)=A18+1,"-",TRUE,A18+1) -> 2025-01-11 | B19: =_xlfn.IFS(A19="-","",NOT(ISNUMBER(A20)),2,WEEKDAY(A19)=$H$3,1,TRUE,"") -> 1 | C19: =_xlfn.IFS(A19="-","",$A$9=$A19,"",DAY($A$9)=DAY(A19+1),DATEDIF($A$9,A19+1,"M"),TRUE,"") ->  | D19: =_xlfn.IFS(A19="-","",ISTEXT(D18),1,ISTEXT(B18),D18+1,TRUE,1) -> 7 | E19: =_xlfn.IFS(A19="-","",ISTEXT(E18),1,TRUE,E18+1) -> 11 | R19: 0 | S19: 0 | T19: 0 | U19: 0 | V19: 0 | W19: 0 | X19: 0 | Y19: 0 | Z19: 0 | AA19: 0 | AB19: 0
A20: =_xlfn.IFS(EDATE($A$9,12)=A19+1,"-",TRUE,A19+1) -> 2025-01-12 | B20: =_xlfn.IFS(A20="-","",NOT(ISNUMBER(A21)),2,WEEKDAY(A20)=$H$3,1,TRUE,"") ->  | C20: =_xlfn.IFS(A20="-","",$A$9=$A20,"",DAY($A$9)=DAY(A20+1),DATEDIF($A$9,A20+1,"M"),TRUE,"") ->  | D20: =_xlfn.IFS(A20="-","",ISTEXT(D19),1,ISTEXT(B19),D19+1,TRUE,1) -> 1 | E20: =_xlfn.IFS(A20="-","",ISTEXT(E19),1,TRUE,E19+1) -> 12 | R20: 0 | S20: 0 | T20: 0 | U20: 0 | V20: 0 | W20: 0 | X20: 0 | Y20: 0 | Z20: 0 | AA20: 0 | AB20: 0
A21: =_xlfn.IFS(EDATE($A$9,12)=A20+1,"-",TRUE,A20+1) -> 2025-01-13 | B21: =_xlfn.IFS(A21="-","",NOT(ISNUMBER(A22)),2,WEEKDAY(A21)=$H$3,1,TRUE,"") ->  | C21: =_xlfn.IFS(A21="-","",$A$9=$A21,"",DAY($A$9)=DAY(A21+1),DATEDIF($A$9,A21+1,"M"),TRUE,"") ->  | D21: =_xlfn.IFS(A21="-","",ISTEXT(D20),1,ISTEXT(B20),D20+1,TRUE,1) -> 2 | E21: =_xlfn.IFS(A21="-","",ISTEXT(E20),1,TRUE,E20+1) -> 13 | R21: 0 | S21: 0 | T21: 0 | U21: 0 | V21: 0 | W21: 0 | X21: 0 | Y21: 0 | Z21: 0 | AA21: 0 | AB21: 0
A22: =_xlfn.IFS(EDATE($A$9,12)=A21+1,"-",TRUE,A21+1) -> 2025-01-14 | B22: =_xlfn.IFS(A22="-","",NOT(ISNUMBER(A23)),2,WEEKDAY(A22)=$H$3,1,TRUE,"") ->  | C22: =_xlfn.IFS(A22="-","",$A$9=$A22,"",DAY($A$9)=DAY(A22+1),DATEDIF($A$9,A22+1,"M"),TRUE,"") ->  | D22: =_xlfn.IFS(A22="-","",ISTEXT(D21),1,ISTEXT(B21),D21+1,TRUE,1) -> 3 | E22: =_xlfn.IFS(A22="-","",ISTEXT(E21),1,TRUE,E21+1) -> 14 | R22: 0 | S22: 0 | T22: 0 | U22: 0 | V22: 0 | W22: 0 | X22: 0 | Y22: 0 | Z22: 0 | AA22: 0 | AB22: 0
A23: =_xlfn.IFS(EDATE($A$9,12)=A22+1,"-",TRUE,A22+1) -> 2025-01-15 | B23: =_xlfn.IFS(A23="-","",NOT(ISNUMBER(A24)),2,WEEKDAY(A23)=$H$3,1,TRUE,"") ->  | C23: =_xlfn.IFS(A23="-","",$A$9=$A23,"",DAY($A$9)=DAY(A23+1),DATEDIF($A$9,A23+1,"M"),TRUE,"") ->  | D23: =_xlfn.IFS(A23="-","",ISTEXT(D22),1,ISTEXT(B22),D22+1,TRUE,1) -> 4 | E23: =_xlfn.IFS(A23="-","",ISTEXT(E22),1,TRUE,E22+1) -> 15 | R23: 0 | S23: 0 | T23: 0 | U23: 0 | V23: 0 | W23: 0 | X23: 0 | Y23: 0 | Z23: 0 | AA23: 0 | AB23: 0
A24: =_xlfn.IFS(EDATE($A$9,12)=A23+1,"-",TRUE,A23+1) -> 2025-01-16 | B24: =_xlfn.IFS(A24="-","",NOT(ISNUMBER(A25)),2,WEEKDAY(A24)=$H$3,1,TRUE,"") ->  | C24: =_xlfn.IFS(A24="-","",$A$9=$A24,"",DAY($A$9)=DAY(A24+1),DATEDIF($A$9,A24+1,"M"),TRUE,"") ->  | D24: =_xlfn.IFS(A24="-","",ISTEXT(D23),1,ISTEXT(B23),D23+1,TRUE,1) -> 5 | E24: =_xlfn.IFS(A24="-","",ISTEXT(E23),1,TRUE,E23+1) -> 16 | R24: =K24-J24-SUM(L24:P24) -> 0 | S24: 0 | T24: 0 | U24: 0 | V24: 0 | W24: 0 | X24: 0 | Y24: 0 | Z24: 0 | AA24: 0 | AB24: 0
A25: =_xlfn.IFS(EDATE($A$9,12)=A24+1,"-",TRUE,A24+1) -> 2025-01-17 | B25: =_xlfn.IFS(A25="-","",NOT(ISNUMBER(A26)),2,WEEKDAY(A25)=$H$3,1,TRUE,"") ->  | C25: =_xlfn.IFS(A25="-","",$A$9=$A25,"",DAY($A$9)=DAY(A25+1),DATEDIF($A$9,A25+1,"M"),TRUE,"") ->  | D25: =_xlfn.IFS(A25="-","",ISTEXT(D24),1,ISTEXT(B24),D24+1,TRUE,1) -> 6 | E25: =_xlfn.IFS(A25="-","",ISTEXT(E24),1,TRUE,E24+1) -> 17 | R25: 0 | S25: 0 | T25: 0 | U25: 0 | V25: 0 | W25: 0 | X25: 0 | Y25: 0 | Z25: 0 | AA25: 0 | AB25: 0
A26: =_xlfn.IFS(EDATE($A$9,12)=A25+1,"-",TRUE,A25+1) -> 2025-01-18 | B26: =_xlfn.IFS(A26="-","",NOT(ISNUMBER(A27)),2,WEEKDAY(A26)=$H$3,1,TRUE,"") -> 1 | C26: =_xlfn.IFS(A26="-","",$A$9=$A26,"",DAY($A$9)=DAY(A26+1),DATEDIF($A$9,A26+1,"M"),TRUE,"") ->  | D26: =_xlfn.IFS(A26="-","",ISTEXT(D25),1,ISTEXT(B25),D25+1,TRUE,1) -> 7 | E26: =_xlfn.IFS(A26="-","",ISTEXT(E25),1,TRUE,E25+1) -> 18 | R26: 0 | S26: 0 | T26: 0 | U26: 0 | V26: 0 | W26: 0 | X26: 0 | Y26: 0 | Z26: 0 | AA26: 0 | AB26: 0
A27: =_xlfn.IFS(EDATE($A$9,12)=A26+1,"-",TRUE,A26+1) -> 2025-01-19 | B27: =_xlfn.IFS(A27="-","",NOT(ISNUMBER(A28)),2,WEEKDAY(A27)=$H$3,1,TRUE,"") ->  | C27: =_xlfn.IFS(A27="-","",$A$9=$A27,"",DAY($A$9)=DAY(A27+1),DATEDIF($A$9,A27+1,"M"),TRUE,"") ->  | D27: =_xlfn.IFS(A27="-","",ISTEXT(D26),1,ISTEXT(B26),D26+1,TRUE,1) -> 1 | E27: =_xlfn.IFS(A27="-","",ISTEXT(E26),1,TRUE,E26+1) -> 19 | R27: 0 | S27: 0 | T27: 0 | U27: 0 | V27: 0 | W27: 0 | X27: 0 | Y27: 0 | Z27: 0 | AA27: 0 | AB27: 0
A28: =_xlfn.IFS(EDATE($A$9,12)=A27+1,"-",TRUE,A27+1) -> 2025-01-20 | B28: =_xlfn.IFS(A28="-","",NOT(ISNUMBER(A29)),2,WEEKDAY(A28)=$H$3,1,TRUE,"") ->  | C28: =_xlfn.IFS(A28="-","",$A$9=$A28,"",DAY($A$9)=DAY(A28+1),DATEDIF($A$9,A28+1,"M"),TRUE,"") ->  | D28: =_xlfn.IFS(A28="-","",ISTEXT(D27),1,ISTEXT(B27),D27+1,TRUE,1) -> 2 | E28: =_xlfn.IFS(A28="-","",ISTEXT(E27),1,TRUE,E27+1) -> 20 | R28: 0 | S28: 0 | T28: 0 | U28: 0 | V28: 0 | W28: 0 | X28: 0 | Y28: 0 | Z28: 0 | AA28: 0 | AB28: 0
A29: =_xlfn.IFS(EDATE($A$9,12)=A28+1,"-",TRUE,A28+1) -> 2025-01-21 | B29: =_xlfn.IFS(A29="-","",NOT(ISNUMBER(A30)),2,WEEKDAY(A29)=$H$3,1,TRUE,"") ->  | C29: =_xlfn.IFS(A29="-","",$A$9=$A29,"",DAY($A$9)=DAY(A29+1),DATEDIF($A$9,A29+1,"M"),TRUE,"") ->  | D29: =_xlfn.IFS(A29="-","",ISTEXT(D28),1,ISTEXT(B28),D28+1,TRUE,1) -> 3 | E29: =_xlfn.IFS(A29="-","",ISTEXT(E28),1,TRUE,E28+1) -> 21 | R29: 0 | S29: 0 | T29: 0 | U29: 0 | V29: 0 | W29: 0 | X29: 0 | Y29: 0 | Z29: 0 | AA29: 0 | AB29: 0
A30: =_xlfn.IFS(EDATE($A$9,12)=A29+1,"-",TRUE,A29+1) -> 2025-01-22 | B30: =_xlfn.IFS(A30="-","",NOT(ISNUMBER(A31)),2,WEEKDAY(A30)=$H$3,1,TRUE,"") ->  | C30: =_xlfn.IFS(A30="-","",$A$9=$A30,"",DAY($A$9)=DAY(A30+1),DATEDIF($A$9,A30+1,"M"),TRUE,"") ->  | D30: =_xlfn.IFS(A30="-","",ISTEXT(D29),1,ISTEXT(B29),D29+1,TRUE,1) -> 4 | E30: =_xlfn.IFS(A30="-","",ISTEXT(E29),1,TRUE,E29+1) -> 22 | R30: 0 | S30: 0 | T30: 0 | U30: 0 | V30: 0 | W30: 0 | X30: 0 | Y30: 0 | Z30: 0 | AA30: 0 | AB30: 0
A31: =_xlfn.IFS(EDATE($A$9,12)=A30+1,"-",TRUE,A30+1) -> 2025-01-23 | B31: =_xlfn.IFS(A31="-","",NOT(ISNUMBER(A32)),2,WEEKDAY(A31)=$H$3,1,TRUE,"") ->  | C31: =_xlfn.IFS(A31="-","",$A$9=$A31,"",DAY($A$9)=DAY(A31+1),DATEDIF($A$9,A31+1,"M"),TRUE,"") ->  | D31: =_xlfn.IFS(A31="-","",ISTEXT(D30),1,ISTEXT(B30),D30+1,TRUE,1) -> 5 | E31: =_xlfn.IFS(A31="-","",ISTEXT(E30),1,TRUE,E30+1) -> 23 | R31: 0 | S31: 0 | T31: 0 | U31: 0 | V31: 0 | W31: 0 | X31: 0 | Y31: 0 | Z31: 0 | AA31: 0 | AB31: 0
A32: =_xlfn.IFS(EDATE($A$9,12)=A31+1,"-",TRUE,A31+1) -> 2025-01-24 | B32: =_xlfn.IFS(A32="-","",NOT(ISNUMBER(A33)),2,WEEKDAY(A32)=$H$3,1,TRUE,"") ->  | C32: =_xlfn.IFS(A32="-","",$A$9=$A32,"",DAY($A$9)=DAY(A32+1),DATEDIF($A$9,A32+1,"M"),TRUE,"") ->  | D32: =_xlfn.IFS(A32="-","",ISTEXT(D31),1,ISTEXT(B31),D31+1,TRUE,1) -> 6 | E32: =_xlfn.IFS(A32="-","",ISTEXT(E31),1,TRUE,E31+1) -> 24 | R32: 0 | S32: 0 | T32: 0 | U32: 0 | V32: 0 | W32: 0 | X32: 0 | Y32: 0 | Z32: 0 | AA32: 0 | AB32: 0
A33: =_xlfn.IFS(EDATE($A$9,12)=A32+1,"-",TRUE,A32+1) -> 2025-01-25 | B33: =_xlfn.IFS(A33="-","",NOT(ISNUMBER(A34)),2,WEEKDAY(A33)=$H$3,1,TRUE,"") -> 1 | C33: =_xlfn.IFS(A33="-","",$A$9=$A33,"",DAY($A$9)=DAY(A33+1),DATEDIF($A$9,A33+1,"M"),TRUE,"") ->  | D33: =_xlfn.IFS(A33="-","",ISTEXT(D32),1,ISTEXT(B32),D32+1,TRUE,1) -> 7 | E33: =_xlfn.IFS(A33="-","",ISTEXT(E32),1,TRUE,E32+1) -> 25 | R33: 0 | S33: 0 | T33: 0 | U33: 0 | V33: 0 | W33: 0 | X33: 0 | Y33: 0 | Z33: 0 | AA33: 0 | AB33: 0
A34: =_xlfn.IFS(EDATE($A$9,12)=A33+1,"-",TRUE,A33+1) -> 2025-01-26 | B34: =_xlfn.IFS(A34="-","",NOT(ISNUMBER(A35)),2,WEEKDAY(A34)=$H$3,1,TRUE,"") ->  | C34: =_xlfn.IFS(A34="-","",$A$9=$A34,"",DAY($A$9)=DAY(A34+1),DATEDIF($A$9,A34+1,"M"),TRUE,"") ->  | D34: =_xlfn.IFS(A34="-","",ISTEXT(D33),1,ISTEXT(B33),D33+1,TRUE,1) -> 1 | E34: =_xlfn.IFS(A34="-","",ISTEXT(E33),1,TRUE,E33+1) -> 26 | R34: 0 | S34: 0 | T34: 0 | U34: 0 | V34: 0 | W34: 0 | X34: 0 | Y34: 0 | Z34: 0 | AA34: 0 | AB34: 0
A35: =_xlfn.IFS(EDATE($A$9,12)=A34+1,"-",TRUE,A34+1) -> 2025-01-27 | B35: =_xlfn.IFS(A35="-","",NOT(ISNUMBER(A36)),2,WEEKDAY(A35)=$H$3,1,TRUE,"") ->  | C35: =_xlfn.IFS(A35="-","",$A$9=$A35,"",DAY($A$9)=DAY(A35+1),DATEDIF($A$9,A35+1,"M"),TRUE,"") ->  | D35: =_xlfn.IFS(A35="-","",ISTEXT(D34),1,ISTEXT(B34),D34+1,TRUE,1) -> 2 | E35: =_xlfn.IFS(A35="-","",ISTEXT(E34),1,TRUE,E34+1) -> 27 | R35: 0 | S35: 0 | T35: 0 | U35: 0 | V35: 0 | W35: 0 | X35: 0 | Y35: 0 | Z35: 0 | AA35: 0 | AB35: 0
A36: =_xlfn.IFS(EDATE($A$9,12)=A35+1,"-",TRUE,A35+1) -> 2025-01-28 | B36: =_xlfn.IFS(A36="-","",NOT(ISNUMBER(A37)),2,WEEKDAY(A36)=$H$3,1,TRUE,"") ->  | C36: =_xlfn.IFS(A36="-","",$A$9=$A36,"",DAY($A$9)=DAY(A36+1),DATEDIF($A$9,A36+1,"M"),TRUE,"") ->  | D36: =_xlfn.IFS(A36="-","",ISTEXT(D35),1,ISTEXT(B35),D35+1,TRUE,1) -> 3 | E36: =_xlfn.IFS(A36="-","",ISTEXT(E35),1,TRUE,E35+1) -> 28 | R36: 0 | S36: 0 | T36: 0 | U36: 0 | V36: 0 | W36: 0 | X36: 0 | Y36: 0 | Z36: 0 | AA36: 0 | AB36: 0
A37: =_xlfn.IFS(EDATE($A$9,12)=A36+1,"-",TRUE,A36+1) -> 2025-01-29 | B37: =_xlfn.IFS(A37="-","",NOT(ISNUMBER(A38)),2,WEEKDAY(A37)=$H$3,1,TRUE,"") ->  | C37: =_xlfn.IFS(A37="-","",$A$9=$A37,"",DAY($A$9)=DAY(A37+1),DATEDIF($A$9,A37+1,"M"),TRUE,"") ->  | D37: =_xlfn.IFS(A37="-","",ISTEXT(D36),1,ISTEXT(B36),D36+1,TRUE,1) -> 4 | E37: =_xlfn.IFS(A37="-","",ISTEXT(E36),1,TRUE,E36+1) -> 29 | R37: 0 | S37: 0 | T37: 0 | U37: 0 | V37: 0 | W37: 0 | X37: 0 | Y37: 0 | Z37: 0 | AA37: 0 | AB37: 0
A38: =_xlfn.IFS(EDATE($A$9,12)=A37+1,"-",TRUE,A37+1) -> 2025-01-30 | B38: =_xlfn.IFS(A38="-","",NOT(ISNUMBER(A39)),2,WEEKDAY(A38)=$H$3,1,TRUE,"") ->  | C38: =_xlfn.IFS(A38="-","",$A$9=$A38,"",DAY($A$9)=DAY(A38+1),DATEDIF($A$9,A38+1,"M"),TRUE,"") ->  | D38: =_xlfn.IFS(A38="-","",ISTEXT(D37),1,ISTEXT(B37),D37+1,TRUE,1) -> 5 | E38: =_xlfn.IFS(A38="-","",ISTEXT(E37),1,TRUE,E37+1) -> 30 | R38: =K38-J38-SUM(L38:P38) -> 0 | S38: 0 | T38: 0 | U38: 0 | V38: 0 | W38: 0 | X38: 0 | Y38: 0 | Z38: 0 | AA38: 0 | AB38: 0
A39: =_xlfn.IFS(EDATE($A$9,12)=A38+1,"-",TRUE,A38+1) -> 2025-01-31 | B39: =_xlfn.IFS(A39="-","",NOT(ISNUMBER(A40)),2,WEEKDAY(A39)=$H$3,1,TRUE,"") ->  | C39: =_xlfn.IFS(A39="-","",$A$9=$A39,"",DAY($A$9)=DAY(A39+1),DATEDIF($A$9,A39+1,"M"),TRUE,"") -> 1 | D39: =_xlfn.IFS(A39="-","",ISTEXT(D38),1,ISTEXT(B38),D38+1,TRUE,1) -> 6 | E39: =_xlfn.IFS(A39="-","",ISTEXT(E38),1,TRUE,E38+1) -> 31 | R39: 0 | S39: 0 | T39: 0 | U39: 0 | V39: 0 | W39: 0 | X39: 0 | Y39: 0 | Z39: 0 | AA39: 0 | AB39: 0
A40: =_xlfn.IFS(EDATE($A$9,12)=A39+1,"-",TRUE,A39+1) -> 2025-02-01 | B40: =_xlfn.IFS(A40="-","",NOT(ISNUMBER(A41)),2,WEEKDAY(A40)=$H$3,1,TRUE,"") -> 1 | C40: =_xlfn.IFS(A40="-","",$A$9=$A40,"",DAY($A$9)=DAY(A40+1),DATEDIF($A$9,A40+1,"M"),TRUE,"") ->  | D40: =_xlfn.IFS(A40="-","",ISTEXT(D39),1,ISTEXT(B39),D39+1,TRUE,1) -> 7 | E40: =_xlfn.IFS(A40="-","",ISTEXT(E39),1,TRUE,E39+1) -> 32 | R40: 0 | S40: 0 | T40: 0 | U40: 0 | V40: 0 | W40: 0 | X40: 0 | Y40: 0 | Z40: 0 | AA40: 0 | AB40: 0
A41: =_xlfn.IFS(EDATE($A$9,12)=A40+1,"-",TRUE,A40+1) -> 2025-02-02 | B41: =_xlfn.IFS(A41="-","",NOT(ISNUMBER(A42)),2,WEEKDAY(A41)=$H$3,1,TRUE,"") ->  | C41: =_xlfn.IFS(A41="-","",$A$9=$A41,"",DAY($A$9)=DAY(A41+1),DATEDIF($A$9,A41+1,"M"),TRUE,"") ->  | D41: =_xlfn.IFS(A41="-","",ISTEXT(D40),1,ISTEXT(B40),D40+1,TRUE,1) -> 1 | E41: =_xlfn.IFS(A41="-","",ISTEXT(E40),1,TRUE,E40+1) -> 33 | R41: 0 | S41: 0 | T41: 0 | U41: 0 | V41: 0 | W41: 0 | X41: 0 | Y41: 0 | Z41: 0 | AA41: 0 | AB41: 0
A42: =_xlfn.IFS(EDATE($A$9,12)=A41+1,"-",TRUE,A41+1) -> 2025-02-03 | B42: =_xlfn.IFS(A42="-","",NOT(ISNUMBER(A43)),2,WEEKDAY(A42)=$H$3,1,TRUE,"") ->  | C42: =_xlfn.IFS(A42="-","",$A$9=$A42,"",DAY($A$9)=DAY(A42+1),DATEDIF($A$9,A42+1,"M"),TRUE,"") ->  | D42: =_xlfn.IFS(A42="-","",ISTEXT(D41),1,ISTEXT(B41),D41+1,TRUE,1) -> 2 | E42: =_xlfn.IFS(A42="-","",ISTEXT(E41),1,TRUE,E41+1) -> 34 | R42: 0 | S42: 0 | T42: 0 | U42: 0 | V42: 0 | W42: 0 | X42: 0 | Y42: 0 | Z42: 0 | AA42: 0 | AB42: 0
A43: =_xlfn.IFS(EDATE($A$9,12)=A42+1,"-",TRUE,A42+1) -> 2025-02-04 | B43: =_xlfn.IFS(A43="-","",NOT(ISNUMBER(A44)),2,WEEKDAY(A43)=$H$3,1,TRUE,"") ->  | C43: =_xlfn.IFS(A43="-","",$A$9=$A43,"",DAY($A$9)=DAY(A43+1),DATEDIF($A$9,A43+1,"M"),TRUE,"") ->  | D43: =_xlfn.IFS(A43="-","",ISTEXT(D42),1,ISTEXT(B42),D42+1,TRUE,1) -> 3 | E43: =_xlfn.IFS(A43="-","",ISTEXT(E42),1,TRUE,E42+1) -> 35 | R43: 0 | S43: 0 | T43: 0 | U43: 0 | V43: 0 | W43: 0 | X43: 0 | Y43: 0 | Z43: 0 | AA43: 0 | AB43: 0
A44: =_xlfn.IFS(EDATE($A$9,12)=A43+1,"-",TRUE,A43+1) -> 2025-02-05 | B44: =_xlfn.IFS(A44="-","",NOT(ISNUMBER(A45)),2,WEEKDAY(A44)=$H$3,1,TRUE,"") ->  | C44: =_xlfn.IFS(A44="-","",$A$9=$A44,"",DAY($A$9)=DAY(A44+1),DATEDIF($A$9,A44+1,"M"),TRUE,"") ->  | D44: =_xlfn.IFS(A44="-","",ISTEXT(D43),1,ISTEXT(B43),D43+1,TRUE,1) -> 4 | E44: =_xlfn.IFS(A44="-","",ISTEXT(E43),1,TRUE,E43+1) -> 36 | R44: 0 | S44: 0 | T44: 0 | U44: 0 | V44: 0 | W44: 0 | X44: 0 | Y44: 0 | Z44: 0 | AA44: 0 | AB44: 0
A45: =_xlfn.IFS(EDATE($A$9,12)=A44+1,"-",TRUE,A44+1) -> 2025-02-06 | B45: =_xlfn.IFS(A45="-","",NOT(ISNUMBER(A46)),2,WEEKDAY(A45)=$H$3,1,TRUE,"") ->  | C45: =_xlfn.IFS(A45="-","",$A$9=$A45,"",DAY($A$9)=DAY(A45+1),DATEDIF($A$9,A45+1,"M"),TRUE,"") ->  | D45: =_xlfn.IFS(A45="-","",ISTEXT(D44),1,ISTEXT(B44),D44+1,TRUE,1) -> 5 | E45: =_xlfn.IFS(A45="-","",ISTEXT(E44),1,TRUE,E44+1) -> 37 | R45: 0 | S45: 0 | T45: 0 | U45: 0 | V45: 0 | W45: 0 | X45: 0 | Y45: 0 | Z45: 0 | AA45: 0 | AB45: 0
A46: =_xlfn.IFS(EDATE($A$9,12)=A45+1,"-",TRUE,A45+1) -> 2025-02-07 | B46: =_xlfn.IFS(A46="-","",NOT(ISNUMBER(A47)),2,WEEKDAY(A46)=$H$3,1,TRUE,"") ->  | C46: =_xlfn.IFS(A46="-","",$A$9=$A46,"",DAY($A$9)=DAY(A46+1),DATEDIF($A$9,A46+1,"M"),TRUE,"") ->  | D46: =_xlfn.IFS(A46="-","",ISTEXT(D45),1,ISTEXT(B45),D45+1,TRUE,1) -> 6 | E46: =_xlfn.IFS(A46="-","",ISTEXT(E45),1,TRUE,E45+1) -> 38 | R46: 0 | S46: 0 | T46: 0 | U46: 0 | V46: 0 | W46: 0 | X46: 0 | Y46: 0 | Z46: 0 | AA46: 0 | AB46: 0
A47: =_xlfn.IFS(EDATE($A$9,12)=A46+1,"-",TRUE,A46+1) -> 2025-02-08 | B47: =_xlfn.IFS(A47="-","",NOT(ISNUMBER(A48)),2,WEEKDAY(A47)=$H$3,1,TRUE,"") -> 1 | C47: =_xlfn.IFS(A47="-","",$A$9=$A47,"",DAY($A$9)=DAY(A47+1),DATEDIF($A$9,A47+1,"M"),TRUE,"") ->  | D47: =_xlfn.IFS(A47="-","",ISTEXT(D46),1,ISTEXT(B46),D46+1,TRUE,1) -> 7 | E47: =_xlfn.IFS(A47="-","",ISTEXT(E46),1,TRUE,E46+1) -> 39 | R47: 0 | S47: 0 | T47: 0 | U47: 0 | V47: 0 | W47: 0 | X47: 0 | Y47: 0 | Z47: 0 | AA47: 0 | AB47: 0
A48: =_xlfn.IFS(EDATE($A$9,12)=A47+1,"-",TRUE,A47+1) -> 2025-02-09 | B48: =_xlfn.IFS(A48="-","",NOT(ISNUMBER(A49)),2,WEEKDAY(A48)=$H$3,1,TRUE,"") ->  | C48: =_xlfn.IFS(A48="-","",$A$9=$A48,"",DAY($A$9)=DAY(A48+1),DATEDIF($A$9,A48+1,"M"),TRUE,"") ->  | D48: =_xlfn.IFS(A48="-","",ISTEXT(D47),1,ISTEXT(B47),D47+1,TRUE,1) -> 1 | E48: =_xlfn.IFS(A48="-","",ISTEXT(E47),1,TRUE,E47+1) -> 40 | R48: 0 | S48: 0 | T48: 0 | U48: 0 | V48: 0 | W48: 0 | X48: 0 | Y48: 0 | Z48: 0 | AA48: 0 | AB48: 0
A49: =_xlfn.IFS(EDATE($A$9,12)=A48+1,"-",TRUE,A48+1) -> 2025-02-10 | B49: =_xlfn.IFS(A49="-","",NOT(ISNUMBER(A50)),2,WEEKDAY(A49)=$H$3,1,TRUE,"") ->  | C49: =_xlfn.IFS(A49="-","",$A$9=$A49,"",DAY($A$9)=DAY(A49+1),DATEDIF($A$9,A49+1,"M"),TRUE,"") ->  | D49: =_xlfn.IFS(A49="-","",ISTEXT(D48),1,ISTEXT(B48),D48+1,TRUE,1) -> 2 | E49: =_xlfn.IFS(A49="-","",ISTEXT(E48),1,TRUE,E48+1) -> 41 | R49: 0 | S49: 0 | T49: 0 | U49: 0 | V49: 0 | W49: 0 | X49: 0 | Y49: 0 | Z49: 0 | AA49: 0 | AB49: 0
A50: =_xlfn.IFS(EDATE($A$9,12)=A49+1,"-",TRUE,A49+1) -> 2025-02-11 | B50: =_xlfn.IFS(A50="-","",NOT(ISNUMBER(A51)),2,WEEKDAY(A50)=$H$3,1,TRUE,"") ->  | C50: =_xlfn.IFS(A50="-","",$A$9=$A50,"",DAY($A$9)=DAY(A50+1),DATEDIF($A$9,A50+1,"M"),TRUE,"") ->  | D50: =_xlfn.IFS(A50="-","",ISTEXT(D49),1,ISTEXT(B49),D49+1,TRUE,1) -> 3 | E50: =_xlfn.IFS(A50="-","",ISTEXT(E49),1,TRUE,E49+1) -> 42 | R50: 0 | S50: 0 | T50: 0 | U50: 0 | V50: 0 | W50: 0 | X50: 0 | Y50: 0 | Z50: 0 | AA50: 0 | AB50: 0
A51: =_xlfn.IFS(EDATE($A$9,12)=A50+1,"-",TRUE,A50+1) -> 2025-02-12 | B51: =_xlfn.IFS(A51="-","",NOT(ISNUMBER(A52)),2,WEEKDAY(A51)=$H$3,1,TRUE,"") ->  | C51: =_xlfn.IFS(A51="-","",$A$9=$A51,"",DAY($A$9)=DAY(A51+1),DATEDIF($A$9,A51+1,"M"),TRUE,"") ->  | D51: =_xlfn.IFS(A51="-","",ISTEXT(D50),1,ISTEXT(B50),D50+1,TRUE,1) -> 4 | E51: =_xlfn.IFS(A51="-","",ISTEXT(E50),1,TRUE,E50+1) -> 43 | R51: 0 | S51: 0 | T51: 0 | U51: 0 | V51: 0 | W51: 0 | X51: 0 | Y51: 0 | Z51: 0 | AA51: 0 | AB51: 0
A52: =_xlfn.IFS(EDATE($A$9,12)=A51+1,"-",TRUE,A51+1) -> 2025-02-13 | B52: =_xlfn.IFS(A52="-","",NOT(ISNUMBER(A53)),2,WEEKDAY(A52)=$H$3,1,TRUE,"") ->  | C52: =_xlfn.IFS(A52="-","",$A$9=$A52,"",DAY($A$9)=DAY(A52+1),DATEDIF($A$9,A52+1,"M"),TRUE,"") ->  | D52: =_xlfn.IFS(A52="-","",ISTEXT(D51),1,ISTEXT(B51),D51+1,TRUE,1) -> 5 | E52: =_xlfn.IFS(A52="-","",ISTEXT(E51),1,TRUE,E51+1) -> 44 | R52: =K52-J52-SUM(L52:P52) -> 0 | S52: 0 | T52: 0 | U52: 0 | V52: 0 | W52: 0 | X52: 0 | Y52: 0 | Z52: 0 | AA52: 0 | AB52: 0
A53: =_xlfn.IFS(EDATE($A$9,12)=A52+1,"-",TRUE,A52+1) -> 2025-02-14 | B53: =_xlfn.IFS(A53="-","",NOT(ISNUMBER(A54)),2,WEEKDAY(A53)=$H$3,1,TRUE,"") ->  | C53: =_xlfn.IFS(A53="-","",$A$9=$A53,"",DAY($A$9)=DAY(A53+1),DATEDIF($A$9,A53+1,"M"),TRUE,"") ->  | D53: =_xlfn.IFS(A53="-","",ISTEXT(D52),1,ISTEXT(B52),D52+1,TRUE,1) -> 6 | E53: =_xlfn.IFS(A53="-","",ISTEXT(E52),1,TRUE,E52+1) -> 45 | R53: 0 | S53: 0 | T53: 0 | U53: 0 | V53: 0 | W53: 0 | X53: 0 | Y53: 0 | Z53: 0 | AA53: 0 | AB53: 0
A54: =_xlfn.IFS(EDATE($A$9,12)=A53+1,"-",TRUE,A53+1) -> 2025-02-15 | B54: =_xlfn.IFS(A54="-","",NOT(ISNUMBER(A55)),2,WEEKDAY(A54)=$H$3,1,TRUE,"") -> 1 | C54: =_xlfn.IFS(A54="-","",$A$9=$A54,"",DAY($A$9)=DAY(A54+1),DATEDIF($A$9,A54+1,"M"),TRUE,"") ->  | D54: =_xlfn.IFS(A54="-","",ISTEXT(D53),1,ISTEXT(B53),D53+1,TRUE,1) -> 7 | E54: =_xlfn.IFS(A54="-","",ISTEXT(E53),1,TRUE,E53+1) -> 46 | R54: 0 | S54: 0 | T54: 0 | U54: 0 | V54: 0 | W54: 0 | X54: 0 | Y54: 0 | Z54: 0 | AA54: 0 | AB54: 0
A55: =_xlfn.IFS(EDATE($A$9,12)=A54+1,"-",TRUE,A54+1) -> 2025-02-16 | B55: =_xlfn.IFS(A55="-","",NOT(ISNUMBER(A56)),2,WEEKDAY(A55)=$H$3,1,TRUE,"") ->  | C55: =_xlfn.IFS(A55="-","",$A$9=$A55,"",DAY($A$9)=DAY(A55+1),DATEDIF($A$9,A55+1,"M"),TRUE,"") ->  | D55: =_xlfn.IFS(A55="-","",ISTEXT(D54),1,ISTEXT(B54),D54+1,TRUE,1) -> 1 | E55: =_xlfn.IFS(A55="-","",ISTEXT(E54),1,TRUE,E54+1) -> 47 | R55: 0 | S55: 0 | T55: 0 | U55: 0 | V55: 0 | W55: 0 | X55: 0 | Y55: 0 | Z55: 0 | AA55: 0 | AB55: 0
A56: =_xlfn.IFS(EDATE($A$9,12)=A55+1,"-",TRUE,A55+1) -> 2025-02-17 | B56: =_xlfn.IFS(A56="-","",NOT(ISNUMBER(A57)),2,WEEKDAY(A56)=$H$3,1,TRUE,"") ->  | C56: =_xlfn.IFS(A56="-","",$A$9=$A56,"",DAY($A$9)=DAY(A56+1),DATEDIF($A$9,A56+1,"M"),TRUE,"") ->  | D56: =_xlfn.IFS(A56="-","",ISTEXT(D55),1,ISTEXT(B55),D55+1,TRUE,1) -> 2 | E56: =_xlfn.IFS(A56="-","",ISTEXT(E55),1,TRUE,E55+1) -> 48 | R56: 0 | S56: 0 | T56: 0 | U56: 0 | V56: 0 | W56: 0 | X56: 0 | Y56: 0 | Z56: 0 | AA56: 0 | AB56: 0
A57: =_xlfn.IFS(EDATE($A$9,12)=A56+1,"-",TRUE,A56+1) -> 2025-02-18 | B57: =_xlfn.IFS(A57="-","",NOT(ISNUMBER(A58)),2,WEEKDAY(A57)=$H$3,1,TRUE,"") ->  | C57: =_xlfn.IFS(A57="-","",$A$9=$A57,"",DAY($A$9)=DAY(A57+1),DATEDIF($A$9,A57+1,"M"),TRUE,"") ->  | D57: =_xlfn.IFS(A57="-","",ISTEXT(D56),1,ISTEXT(B56),D56+1,TRUE,1) -> 3 | E57: =_xlfn.IFS(A57="-","",ISTEXT(E56),1,TRUE,E56+1) -> 49 | R57: 0 | S57: 0 | T57: 0 | U57: 0 | V57: 0 | W57: 0 | X57: 0 | Y57: 0 | Z57: 0 | AA57: 0 | AB57: 0
A58: =_xlfn.IFS(EDATE($A$9,12)=A57+1,"-",TRUE,A57+1) -> 2025-02-19 | B58: =_xlfn.IFS(A58="-","",NOT(ISNUMBER(A59)),2,WEEKDAY(A58)=$H$3,1,TRUE,"") ->  | C58: =_xlfn.IFS(A58="-","",$A$9=$A58,"",DAY($A$9)=DAY(A58+1),DATEDIF($A$9,A58+1,"M"),TRUE,"") ->  | D58: =_xlfn.IFS(A58="-","",ISTEXT(D57),1,ISTEXT(B57),D57+1,TRUE,1) -> 4 | E58: =_xlfn.IFS(A58="-","",ISTEXT(E57),1,TRUE,E57+1) -> 50 | R58: 0 | S58: 0 | T58: 0 | U58: 0 | V58: 0 | W58: 0 | X58: 0 | Y58: 0 | Z58: 0 | AA58: 0 | AB58: 0
A59: =_xlfn.IFS(EDATE($A$9,12)=A58+1,"-",TRUE,A58+1) -> 2025-02-20 | B59: =_xlfn.IFS(A59="-","",NOT(ISNUMBER(A60)),2,WEEKDAY(A59)=$H$3,1,TRUE,"") ->  | C59: =_xlfn.IFS(A59="-","",$A$9=$A59,"",DAY($A$9)=DAY(A59+1),DATEDIF($A$9,A59+1,"M"),TRUE,"") ->  | D59: =_xlfn.IFS(A59="-","",ISTEXT(D58),1,ISTEXT(B58),D58+1,TRUE,1) -> 5 | E59: =_xlfn.IFS(A59="-","",ISTEXT(E58),1,TRUE,E58+1) -> 51 | R59: 0 | S59: 0 | T59: 0 | U59: 0 | V59: 0 | W59: 0 | X59: 0 | Y59: 0 | Z59: 0 | AA59: 0 | AB59: 0
A60: =_xlfn.IFS(EDATE($A$9,12)=A59+1,"-",TRUE,A59+1) -> 2025-02-21 | B60: =_xlfn.IFS(A60="-","",NOT(ISNUMBER(A61)),2,WEEKDAY(A60)=$H$3,1,TRUE,"") ->  | C60: =_xlfn.IFS(A60="-","",$A$9=$A60,"",DAY($A$9)=DAY(A60+1),DATEDIF($A$9,A60+1,"M"),TRUE,"") ->  | D60: =_xlfn.IFS(A60="-","",ISTEXT(D59),1,ISTEXT(B59),D59+1,TRUE,1) -> 6 | E60: =_xlfn.IFS(A60="-","",ISTEXT(E59),1,TRUE,E59+1) -> 52 | R60: 0 | S60: 0 | T60: 0 | U60: 0 | V60: 0 | W60: 0 | X60: 0 | Y60: 0 | Z60: 0 | AA60: 0 | AB60: 0
A61: =_xlfn.IFS(EDATE($A$9,12)=A60+1,"-",TRUE,A60+1) -> 2025-02-22 | B61: =_xlfn.IFS(A61="-","",NOT(ISNUMBER(A62)),2,WEEKDAY(A61)=$H$3,1,TRUE,"") -> 1 | C61: =_xlfn.IFS(A61="-","",$A$9=$A61,"",DAY($A$9)=DAY(A61+1),DATEDIF($A$9,A61+1,"M"),TRUE,"") ->  | D61: =_xlfn.IFS(A61="-","",ISTEXT(D60),1,ISTEXT(B60),D60+1,TRUE,1) -> 7 | E61: =_xlfn.IFS(A61="-","",ISTEXT(E60),1,TRUE,E60+1) -> 53 | R61: 0 | S61: 0 | T61: 0 | U61: 0 | V61: 0 | W61: 0 | X61: 0 | Y61: 0 | Z61: 0 | AA61: 0 | AB61: 0
A62: =_xlfn.IFS(EDATE($A$9,12)=A61+1,"-",TRUE,A61+1) -> 2025-02-23 | B62: =_xlfn.IFS(A62="-","",NOT(ISNUMBER(A63)),2,WEEKDAY(A62)=$H$3,1,TRUE,"") ->  | C62: =_xlfn.IFS(A62="-","",$A$9=$A62,"",DAY($A$9)=DAY(A62+1),DATEDIF($A$9,A62+1,"M"),TRUE,"") ->  | D62: =_xlfn.IFS(A62="-","",ISTEXT(D61),1,ISTEXT(B61),D61+1,TRUE,1) -> 1 | E62: =_xlfn.IFS(A62="-","",ISTEXT(E61),1,TRUE,E61+1) -> 54 | R62: 0 | S62: 0 | T62: 0 | U62: 0 | V62: 0 | W62: 0 | X62: 0 | Y62: 0 | Z62: 0 | AA62: 0 | AB62: 0
A63: =_xlfn.IFS(EDATE($A$9,12)=A62+1,"-",TRUE,A62+1) -> 2025-02-24 | B63: =_xlfn.IFS(A63="-","",NOT(ISNUMBER(A64)),2,WEEKDAY(A63)=$H$3,1,TRUE,"") ->  | C63: =_xlfn.IFS(A63="-","",$A$9=$A63,"",DAY($A$9)=DAY(A63+1),DATEDIF($A$9,A63+1,"M"),TRUE,"") ->  | D63: =_xlfn.IFS(A63="-","",ISTEXT(D62),1,ISTEXT(B62),D62+1,TRUE,1) -> 2 | E63: =_xlfn.IFS(A63="-","",ISTEXT(E62),1,TRUE,E62+1) -> 55 | R63: 0 | S63: 0 | T63: 0 | U63: 0 | V63: 0 | W63: 0 | X63: 0 | Y63: 0 | Z63: 0 | AA63: 0 | AB63: 0
A64: =_xlfn.IFS(EDATE($A$9,12)=A63+1,"-",TRUE,A63+1) -> 2025-02-25 | B64: =_xlfn.IFS(A64="-","",NOT(ISNUMBER(A65)),2,WEEKDAY(A64)=$H$3,1,TRUE,"") ->  | C64: =_xlfn.IFS(A64="-","",$A$9=$A64,"",DAY($A$9)=DAY(A64+1),DATEDIF($A$9,A64+1,"M"),TRUE,"") ->  | D64: =_xlfn.IFS(A64="-","",ISTEXT(D63),1,ISTEXT(B63),D63+1,TRUE,1) -> 3 | E64: =_xlfn.IFS(A64="-","",ISTEXT(E63),1,TRUE,E63+1) -> 56 | R64: 0 | S64: 0 | T64: 0 | U64: 0 | V64: 0 | W64: 0 | X64: 0 | Y64: 0 | Z64: 0 | AA64: 0 | AB64: 0
A65: =_xlfn.IFS(EDATE($A$9,12)=A64+1,"-",TRUE,A64+1) -> 2025-02-26 | B65: =_xlfn.IFS(A65="-","",NOT(ISNUMBER(A66)),2,WEEKDAY(A65)=$H$3,1,TRUE,"") ->  | C65: =_xlfn.IFS(A65="-","",$A$9=$A65,"",DAY($A$9)=DAY(A65+1),DATEDIF($A$9,A65+1,"M"),TRUE,"") ->  | D65: =_xlfn.IFS(A65="-","",ISTEXT(D64),1,ISTEXT(B64),D64+1,TRUE,1) -> 4 | E65: =_xlfn.IFS(A65="-","",ISTEXT(E64),1,TRUE,E64+1) -> 57 | R65: 0 | S65: 0 | T65: 0 | U65: 0 | V65: 0 | W65: 0 | X65: 0 | Y65: 0 | Z65: 0 | AA65: 0 | AB65: 0
A66: =_xlfn.IFS(EDATE($A$9,12)=A65+1,"-",TRUE,A65+1) -> 2025-02-27 | B66: =_xlfn.IFS(A66="-","",NOT(ISNUMBER(A67)),2,WEEKDAY(A66)=$H$3,1,TRUE,"") ->  | C66: =_xlfn.IFS(A66="-","",$A$9=$A66,"",DAY($A$9)=DAY(A66+1),DATEDIF($A$9,A66+1,"M"),TRUE,"") ->  | D66: =_xlfn.IFS(A66="-","",ISTEXT(D65),1,ISTEXT(B65),D65+1,TRUE,1) -> 5 | E66: =_xlfn.IFS(A66="-","",ISTEXT(E65),1,TRUE,E65+1) -> 58 | R66: 0 | S66: 0 | T66: 0 | U66: 0 | V66: 0 | W66: 0 | X66: 0 | Y66: 0 | Z66: 0 | AA66: 0 | AB66: 0
A67: =_xlfn.IFS(EDATE($A$9,12)=A66+1,"-",TRUE,A66+1) -> 2025-02-28 | B67: =_xlfn.IFS(A67="-","",NOT(ISNUMBER(A68)),2,WEEKDAY(A67)=$H$3,1,TRUE,"") ->  | C67: =_xlfn.IFS(A67="-","",$A$9=$A67,"",DAY($A$9)=DAY(A67+1),DATEDIF($A$9,A67+1,"M"),TRUE,"") -> 2 | D67: =_xlfn.IFS(A67="-","",ISTEXT(D66),1,ISTEXT(B66),D66+1,TRUE,1) -> 6 | E67: =_xlfn.IFS(A67="-","",ISTEXT(E66),1,TRUE,E66+1) -> 59 | R67: 0 | S67: 0 | T67: 0 | U67: 0 | V67: 0 | W67: 0 | X67: 0 | Y67: 0 | Z67: 0 | AA67: 0 | AB67: 0
A68: =_xlfn.IFS(EDATE($A$9,12)=A67+1,"-",TRUE,A67+1) -> 2025-03-01 | B68: =_xlfn.IFS(A68="-","",NOT(ISNUMBER(A69)),2,WEEKDAY(A68)=$H$3,1,TRUE,"") -> 1 | C68: =_xlfn.IFS(A68="-","",$A$9=$A68,"",DAY($A$9)=DAY(A68+1),DATEDIF($A$9,A68+1,"M"),TRUE,"") ->  | D68: =_xlfn.IFS(A68="-","",ISTEXT(D67),1,ISTEXT(B67),D67+1,TRUE,1) -> 7 | E68: =_xlfn.IFS(A68="-","",ISTEXT(E67),1,TRUE,E67+1) -> 60 | R68: 0 | S68: 0 | T68: 0 | U68: 0 | V68: 0 | W68: 0 | X68: 0 | Y68: 0 | Z68: 0 | AA68: 0 | AB68: 0
A69: =_xlfn.IFS(EDATE($A$9,12)=A68+1,"-",TRUE,A68+1) -> 2025-03-02 | B69: =_xlfn.IFS(A69="-","",NOT(ISNUMBER(A70)),2,WEEKDAY(A69)=$H$3,1,TRUE,"") ->  | C69: =_xlfn.IFS(A69="-","",$A$9=$A69,"",DAY($A$9)=DAY(A69+1),DATEDIF($A$9,A69+1,"M"),TRUE,"") ->  | D69: =_xlfn.IFS(A69="-","",ISTEXT(D68),1,ISTEXT(B68),D68+1,TRUE,1) -> 1 | E69: =_xlfn.IFS(A69="-","",ISTEXT(E68),1,TRUE,E68+1) -> 61 | R69: 0 | S69: 0 | T69: 0 | U69: 0 | V69: 0 | W69: 0 | X69: 0 | Y69: 0 | Z69: 0 | AA69: 0 | AB69: 0
A70: =_xlfn.IFS(EDATE($A$9,12)=A69+1,"-",TRUE,A69+1) -> 2025-03-03 | B70: =_xlfn.IFS(A70="-","",NOT(ISNUMBER(A71)),2,WEEKDAY(A70)=$H$3,1,TRUE,"") ->  | C70: =_xlfn.IFS(A70="-","",$A$9=$A70,"",DAY($A$9)=DAY(A70+1),DATEDIF($A$9,A70+1,"M"),TRUE,"") ->  | D70: =_xlfn.IFS(A70="-","",ISTEXT(D69),1,ISTEXT(B69),D69+1,TRUE,1) -> 2 | E70: =_xlfn.IFS(A70="-","",ISTEXT(E69),1,TRUE,E69+1) -> 62 | R70: 0 | S70: 0 | T70: 0 | U70: 0 | V70: 0 | W70: 0 | X70: 0 | Y70: 0 | Z70: 0 | AA70: 0 | AB70: 0
A71: =_xlfn.IFS(EDATE($A$9,12)=A70+1,"-",TRUE,A70+1) -> 2025-03-04 | B71: =_xlfn.IFS(A71="-","",NOT(ISNUMBER(A72)),2,WEEKDAY(A71)=$H$3,1,TRUE,"") ->  | C71: =_xlfn.IFS(A71="-","",$A$9=$A71,"",DAY($A$9)=DAY(A71+1),DATEDIF($A$9,A71+1,"M"),TRUE,"") ->  | D71: =_xlfn.IFS(A71="-","",ISTEXT(D70),1,ISTEXT(B70),D70+1,TRUE,1) -> 3 | E71: =_xlfn.IFS(A71="-","",ISTEXT(E70),1,TRUE,E70+1) -> 63 | R71: 0 | S71: 0 | T71: 0 | U71: 0 | V71: 0 | W71: 0 | X71: 0 | Y71: 0 | Z71: 0 | AA71: 0 | AB71: 0
A72: =_xlfn.IFS(EDATE($A$9,12)=A71+1,"-",TRUE,A71+1) -> 2025-03-05 | B72: =_xlfn.IFS(A72="-","",NOT(ISNUMBER(A73)),2,WEEKDAY(A72)=$H$3,1,TRUE,"") ->  | C72: =_xlfn.IFS(A72="-","",$A$9=$A72,"",DAY($A$9)=DAY(A72+1),DATEDIF($A$9,A72+1,"M"),TRUE,"") ->  | D72: =_xlfn.IFS(A72="-","",ISTEXT(D71),1,ISTEXT(B71),D71+1,TRUE,1) -> 4 | E72: =_xlfn.IFS(A72="-","",ISTEXT(E71),1,TRUE,E71+1) -> 64 | R72: 0 | S72: 0 | T72: 0 | U72: 0 | V72: 0 | W72: 0 | X72: 0 | Y72: 0 | Z72: 0 | AA72: 0 | AB72: 0
A73: =_xlfn.IFS(EDATE($A$9,12)=A72+1,"-",TRUE,A72+1) -> 2025-03-06 | B73: =_xlfn.IFS(A73="-","",NOT(ISNUMBER(A74)),2,WEEKDAY(A73)=$H$3,1,TRUE,"") ->  | C73: =_xlfn.IFS(A73="-","",$A$9=$A73,"",DAY($A$9)=DAY(A73+1),DATEDIF($A$9,A73+1,"M"),TRUE,"") ->  | D73: =_xlfn.IFS(A73="-","",ISTEXT(D72),1,ISTEXT(B72),D72+1,TRUE,1) -> 5 | E73: =_xlfn.IFS(A73="-","",ISTEXT(E72),1,TRUE,E72+1) -> 65 | R73: 0 | S73: 0 | T73: 0 | U73: 0 | V73: 0 | W73: 0 | X73: 0 | Y73: 0 | Z73: 0 | AA73: 0 | AB73: 0
A74: =_xlfn.IFS(EDATE($A$9,12)=A73+1,"-",TRUE,A73+1) -> 2025-03-07 | B74: =_xlfn.IFS(A74="-","",NOT(ISNUMBER(A75)),2,WEEKDAY(A74)=$H$3,1,TRUE,"") ->  | C74: =_xlfn.IFS(A74="-","",$A$9=$A74,"",DAY($A$9)=DAY(A74+1),DATEDIF($A$9,A74+1,"M"),TRUE,"") ->  | D74: =_xlfn.IFS(A74="-","",ISTEXT(D73),1,ISTEXT(B73),D73+1,TRUE,1) -> 6 | E74: =_xlfn.IFS(A74="-","",ISTEXT(E73),1,TRUE,E73+1) -> 66 | R74: 0 | S74: 0 | T74: 0 | U74: 0 | V74: 0 | W74: 0 | X74: 0 | Y74: 0 | Z74: 0 | AA74: 0 | AB74: 0
A75: =_xlfn.IFS(EDATE($A$9,12)=A74+1,"-",TRUE,A74+1) -> 2025-03-08 | B75: =_xlfn.IFS(A75="-","",NOT(ISNUMBER(A76)),2,WEEKDAY(A75)=$H$3,1,TRUE,"") -> 1 | C75: =_xlfn.IFS(A75="-","",$A$9=$A75,"",DAY($A$9)=DAY(A75+1),DATEDIF($A$9,A75+1,"M"),TRUE,"") ->  | D75: =_xlfn.IFS(A75="-","",ISTEXT(D74),1,ISTEXT(B74),D74+1,TRUE,1) -> 7 | E75: =_xlfn.IFS(A75="-","",ISTEXT(E74),1,TRUE,E74+1) -> 67 | R75: 0 | S75: 0 | T75: 0 | U75: 0 | V75: 0 | W75: 0 | X75: 0 | Y75: 0 | Z75: 0 | AA75: 0 | AB75: 0
A76: =_xlfn.IFS(EDATE($A$9,12)=A75+1,"-",TRUE,A75+1) -> 2025-03-09 | B76: =_xlfn.IFS(A76="-","",NOT(ISNUMBER(A77)),2,WEEKDAY(A76)=$H$3,1,TRUE,"") ->  | C76: =_xlfn.IFS(A76="-","",$A$9=$A76,"",DAY($A$9)=DAY(A76+1),DATEDIF($A$9,A76+1,"M"),TRUE,"") ->  | D76: =_xlfn.IFS(A76="-","",ISTEXT(D75),1,ISTEXT(B75),D75+1,TRUE,1) -> 1 | E76: =_xlfn.IFS(A76="-","",ISTEXT(E75),1,TRUE,E75+1) -> 68 | R76: 0 | S76: 0 | T76: 0 | U76: 0 | V76: 0 | W76: 0 | X76: 0 | Y76: 0 | Z76: 0 | AA76: 0 | AB76: 0
A77: =_xlfn.IFS(EDATE($A$9,12)=A76+1,"-",TRUE,A76+1) -> 2025-03-10 | B77: =_xlfn.IFS(A77="-","",NOT(ISNUMBER(A78)),2,WEEKDAY(A77)=$H$3,1,TRUE,"") ->  | C77: =_xlfn.IFS(A77="-","",$A$9=$A77,"",DAY($A$9)=DAY(A77+1),DATEDIF($A$9,A77+1,"M"),TRUE,"") ->  | D77: =_xlfn.IFS(A77="-","",ISTEXT(D76),1,ISTEXT(B76),D76+1,TRUE,1) -> 2 | E77: =_xlfn.IFS(A77="-","",ISTEXT(E76),1,TRUE,E76+1) -> 69 | R77: 0 | S77: 0 | T77: 0 | U77: 0 | V77: 0 | W77: 0 | X77: 0 | Y77: 0 | Z77: 0 | AA77: 0 | AB77: 0
A78: =_xlfn.IFS(EDATE($A$9,12)=A77+1,"-",TRUE,A77+1) -> 2025-03-11 | B78: =_xlfn.IFS(A78="-","",NOT(ISNUMBER(A79)),2,WEEKDAY(A78)=$H$3,1,TRUE,"") ->  | C78: =_xlfn.IFS(A78="-","",$A$9=$A78,"",DAY($A$9)=DAY(A78+1),DATEDIF($A$9,A78+1,"M"),TRUE,"") ->  | D78: =_xlfn.IFS(A78="-","",ISTEXT(D77),1,ISTEXT(B77),D77+1,TRUE,1) -> 3 | E78: =_xlfn.IFS(A78="-","",ISTEXT(E77),1,TRUE,E77+1) -> 70 | R78: =K78-J78-SUM(L78:P78) -> 0 | S78: 0 | T78: 0 | U78: 0 | V78: 0 | W78: 0 | X78: 0 | Y78: 0 | Z78: 0 | AA78: 0 | AB78: 0
A79: =_xlfn.IFS(EDATE($A$9,12)=A78+1,"-",TRUE,A78+1) -> 2025-03-12 | B79: =_xlfn.IFS(A79="-","",NOT(ISNUMBER(A80)),2,WEEKDAY(A79)=$H$3,1,TRUE,"") ->  | C79: =_xlfn.IFS(A79="-","",$A$9=$A79,"",DAY($A$9)=DAY(A79+1),DATEDIF($A$9,A79+1,"M"),TRUE,"") ->  | D79: =_xlfn.IFS(A79="-","",ISTEXT(D78),1,ISTEXT(B78),D78+1,TRUE,1) -> 4 | E79: =_xlfn.IFS(A79="-","",ISTEXT(E78),1,TRUE,E78+1) -> 71 | R79: 0 | S79: 0 | T79: 0 | U79: 0 | V79: 0 | W79: 0 | X79: 0 | Y79: 0 | Z79: 0 | AA79: 0 | AB79: 0
A80: =_xlfn.IFS(EDATE($A$9,12)=A79+1,"-",TRUE,A79+1) -> 2025-03-13 | B80: =_xlfn.IFS(A80="-","",NOT(ISNUMBER(A81)),2,WEEKDAY(A80)=$H$3,1,TRUE,"") ->  | C80: =_xlfn.IFS(A80="-","",$A$9=$A80,"",DAY($A$9)=DAY(A80+1),DATEDIF($A$9,A80+1,"M"),TRUE,"") ->  | D80: =_xlfn.IFS(A80="-","",ISTEXT(D79),1,ISTEXT(B79),D79+1,TRUE,1) -> 5 | E80: =_xlfn.IFS(A80="-","",ISTEXT(E79),1,TRUE,E79+1) -> 72 | R80: 0 | S80: 0 | T80: 0 | U80: 0 | V80: 0 | W80: 0 | X80: 0 | Y80: 0 | Z80: 0 | AA80: 0 | AB80: 0
A81: =_xlfn.IFS(EDATE($A$9,12)=A80+1,"-",TRUE,A80+1) -> 2025-03-14 | B81: =_xlfn.IFS(A81="-","",NOT(ISNUMBER(A82)),2,WEEKDAY(A81)=$H$3,1,TRUE,"") ->  | C81: =_xlfn.IFS(A81="-","",$A$9=$A81,"",DAY($A$9)=DAY(A81+1),DATEDIF($A$9,A81+1,"M"),TRUE,"") ->  | D81: =_xlfn.IFS(A81="-","",ISTEXT(D80),1,ISTEXT(B80),D80+1,TRUE,1) -> 6 | E81: =_xlfn.IFS(A81="-","",ISTEXT(E80),1,TRUE,E80+1) -> 73 | R81: 0 | S81: 0 | T81: 0 | U81: 0 | V81: 0 | W81: 0 | X81: 0 | Y81: 0 | Z81: 0 | AA81: 0 | AB81: 0
A82: =_xlfn.IFS(EDATE($A$9,12)=A81+1,"-",TRUE,A81+1) -> 2025-03-15 | B82: =_xlfn.IFS(A82="-","",NOT(ISNUMBER(A83)),2,WEEKDAY(A82)=$H$3,1,TRUE,"") -> 1 | C82: =_xlfn.IFS(A82="-","",$A$9=$A82,"",DAY($A$9)=DAY(A82+1),DATEDIF($A$9,A82+1,"M"),TRUE,"") ->  | D82: =_xlfn.IFS(A82="-","",ISTEXT(D81),1,ISTEXT(B81),D81+1,TRUE,1) -> 7 | E82: =_xlfn.IFS(A82="-","",ISTEXT(E81),1,TRUE,E81+1) -> 74 | R82: 0 | S82: 0 | T82: 0 | U82: 0 | V82: 0 | W82: 0 | X82: 0 | Y82: 0 | Z82: 0 | AA82: 0 | AB82: 0
A83: =_xlfn.IFS(EDATE($A$9,12)=A82+1,"-",TRUE,A82+1) -> 2025-03-16 | B83: =_xlfn.IFS(A83="-","",NOT(ISNUMBER(A84)),2,WEEKDAY(A83)=$H$3,1,TRUE,"") ->  | C83: =_xlfn.IFS(A83="-","",$A$9=$A83,"",DAY($A$9)=DAY(A83+1),DATEDIF($A$9,A83+1,"M"),TRUE,"") ->  | D83: =_xlfn.IFS(A83="-","",ISTEXT(D82),1,ISTEXT(B82),D82+1,TRUE,1) -> 1 | E83: =_xlfn.IFS(A83="-","",ISTEXT(E82),1,TRUE,E82+1) -> 75 | R83: 0 | S83: 0 | T83: 0 | U83: 0 | V83: 0 | W83: 0 | X83: 0 | Y83: 0 | Z83: 0 | AA83: 0 | AB83: 0
A84: =_xlfn.IFS(EDATE($A$9,12)=A83+1,"-",TRUE,A83+1) -> 2025-03-17 | B84: =_xlfn.IFS(A84="-","",NOT(ISNUMBER(A85)),2,WEEKDAY(A84)=$H$3,1,TRUE,"") ->  | C84: =_xlfn.IFS(A84="-","",$A$9=$A84,"",DAY($A$9)=DAY(A84+1),DATEDIF($A$9,A84+1,"M"),TRUE,"") ->  | D84: =_xlfn.IFS(A84="-","",ISTEXT(D83),1,ISTEXT(B83),D83+1,TRUE,1) -> 2 | E84: =_xlfn.IFS(A84="-","",ISTEXT(E83),1,TRUE,E83+1) -> 76 | R84: 0 | S84: 0 | T84: 0 | U84: 0 | V84: 0 | W84: 0 | X84: 0 | Y84: 0 | Z84: 0 | AA84: 0 | AB84: 0
A85: =_xlfn.IFS(EDATE($A$9,12)=A84+1,"-",TRUE,A84+1) -> 2025-03-18 | B85: =_xlfn.IFS(A85="-","",NOT(ISNUMBER(A86)),2,WEEKDAY(A85)=$H$3,1,TRUE,"") ->  | C85: =_xlfn.IFS(A85="-","",$A$9=$A85,"",DAY($A$9)=DAY(A85+1),DATEDIF($A$9,A85+1,"M"),TRUE,"") ->  | D85: =_xlfn.IFS(A85="-","",ISTEXT(D84),1,ISTEXT(B84),D84+1,TRUE,1) -> 3 | E85: =_xlfn.IFS(A85="-","",ISTEXT(E84),1,TRUE,E84+1) -> 77 | R85: 0 | S85: 0 | T85: 0 | U85: 0 | V85: 0 | W85: 0 | X85: 0 | Y85: 0 | Z85: 0 | AA85: 0 | AB85: 0
A86: =_xlfn.IFS(EDATE($A$9,12)=A85+1,"-",TRUE,A85+1) -> 2025-03-19 | B86: =_xlfn.IFS(A86="-","",NOT(ISNUMBER(A87)),2,WEEKDAY(A86)=$H$3,1,TRUE,"") ->  | C86: =_xlfn.IFS(A86="-","",$A$9=$A86,"",DAY($A$9)=DAY(A86+1),DATEDIF($A$9,A86+1,"M"),TRUE,"") ->  | D86: =_xlfn.IFS(A86="-","",ISTEXT(D85),1,ISTEXT(B85),D85+1,TRUE,1) -> 4 | E86: =_xlfn.IFS(A86="-","",ISTEXT(E85),1,TRUE,E85+1) -> 78 | R86: 0 | S86: 0 | T86: 0 | U86: 0 | V86: 0 | W86: 0 | X86: 0 | Y86: 0 | Z86: 0 | AA86: 0 | AB86: 0
A87: =_xlfn.IFS(EDATE($A$9,12)=A86+1,"-",TRUE,A86+1) -> 2025-03-20 | B87: =_xlfn.IFS(A87="-","",NOT(ISNUMBER(A88)),2,WEEKDAY(A87)=$H$3,1,TRUE,"") ->  | C87: =_xlfn.IFS(A87="-","",$A$9=$A87,"",DAY($A$9)=DAY(A87+1),DATEDIF($A$9,A87+1,"M"),TRUE,"") ->  | D87: =_xlfn.IFS(A87="-","",ISTEXT(D86),1,ISTEXT(B86),D86+1,TRUE,1) -> 5 | E87: =_xlfn.IFS(A87="-","",ISTEXT(E86),1,TRUE,E86+1) -> 79 | R87: 0 | S87: 0 | T87: 0 | U87: 0 | V87: 0 | W87: 0 | X87: 0 | Y87: 0 | Z87: 0 | AA87: 0 | AB87: 0
A88: =_xlfn.IFS(EDATE($A$9,12)=A87+1,"-",TRUE,A87+1) -> 2025-03-21 | B88: =_xlfn.IFS(A88="-","",NOT(ISNUMBER(A89)),2,WEEKDAY(A88)=$H$3,1,TRUE,"") ->  | C88: =_xlfn.IFS(A88="-","",$A$9=$A88,"",DAY($A$9)=DAY(A88+1),DATEDIF($A$9,A88+1,"M"),TRUE,"") ->  | D88: =_xlfn.IFS(A88="-","",ISTEXT(D87),1,ISTEXT(B87),D87+1,TRUE,1) -> 6 | E88: =_xlfn.IFS(A88="-","",ISTEXT(E87),1,TRUE,E87+1) -> 80 | R88: 0 | S88: 0 | T88: 0 | U88: 0 | V88: 0 | W88: 0 | X88: 0 | Y88: 0 | Z88: 0 | AA88: 0 | AB88: 0
A89: =_xlfn.IFS(EDATE($A$9,12)=A88+1,"-",TRUE,A88+1) -> 2025-03-22 | B89: =_xlfn.IFS(A89="-","",NOT(ISNUMBER(A90)),2,WEEKDAY(A89)=$H$3,1,TRUE,"") -> 1 | C89: =_xlfn.IFS(A89="-","",$A$9=$A89,"",DAY($A$9)=DAY(A89+1),DATEDIF($A$9,A89+1,"M"),TRUE,"") ->  | D89: =_xlfn.IFS(A89="-","",ISTEXT(D88),1,ISTEXT(B88),D88+1,TRUE,1) -> 7 | E89: =_xlfn.IFS(A89="-","",ISTEXT(E88),1,TRUE,E88+1) -> 81 | R89: 0 | S89: 0 | T89: 0 | U89: 0 | V89: 0 | W89: 0 | X89: 0 | Y89: 0 | Z89: 0 | AA89: 0 | AB89: 0
A90: =_xlfn.IFS(EDATE($A$9,12)=A89+1,"-",TRUE,A89+1) -> 2025-03-23 | B90: =_xlfn.IFS(A90="-","",NOT(ISNUMBER(A91)),2,WEEKDAY(A90)=$H$3,1,TRUE,"") ->  | C90: =_xlfn.IFS(A90="-","",$A$9=$A90,"",DAY($A$9)=DAY(A90+1),DATEDIF($A$9,A90+1,"M"),TRUE,"") ->  | D90: =_xlfn.IFS(A90="-","",ISTEXT(D89),1,ISTEXT(B89),D89+1,TRUE,1) -> 1 | E90: =_xlfn.IFS(A90="-","",ISTEXT(E89),1,TRUE,E89+1) -> 82 | R90: 0 | S90: 0 | T90: 0 | U90: 0 | V90: 0 | W90: 0 | X90: 0 | Y90: 0 | Z90: 0 | AA90: 0 | AB90: 0
A91: =_xlfn.IFS(EDATE($A$9,12)=A90+1,"-",TRUE,A90+1) -> 2025-03-24 | B91: =_xlfn.IFS(A91="-","",NOT(ISNUMBER(A92)),2,WEEKDAY(A91)=$H$3,1,TRUE,"") ->  | C91: =_xlfn.IFS(A91="-","",$A$9=$A91,"",DAY($A$9)=DAY(A91+1),DATEDIF($A$9,A91+1,"M"),TRUE,"") ->  | D91: =_xlfn.IFS(A91="-","",ISTEXT(D90),1,ISTEXT(B90),D90+1,TRUE,1) -> 2 | E91: =_xlfn.IFS(A91="-","",ISTEXT(E90),1,TRUE,E90+1) -> 83 | R91: 0 | S91: 0 | T91: 0 | U91: 0 | V91: 0 | W91: 0 | X91: 0 | Y91: 0 | Z91: 0 | AA91: 0 | AB91: 0
A92: =_xlfn.IFS(EDATE($A$9,12)=A91+1,"-",TRUE,A91+1) -> 2025-03-25 | B92: =_xlfn.IFS(A92="-","",NOT(ISNUMBER(A93)),2,WEEKDAY(A92)=$H$3,1,TRUE,"") ->  | C92: =_xlfn.IFS(A92="-","",$A$9=$A92,"",DAY($A$9)=DAY(A92+1),DATEDIF($A$9,A92+1,"M"),TRUE,"") ->  | D92: =_xlfn.IFS(A92="-","",ISTEXT(D91),1,ISTEXT(B91),D91+1,TRUE,1) -> 3 | E92: =_xlfn.IFS(A92="-","",ISTEXT(E91),1,TRUE,E91+1) -> 84 | R92: 0 | S92: 0 | T92: 0 | U92: 0 | V92: 0 | W92: 0 | X92: 0 | Y92: 0 | Z92: 0 | AA92: 0 | AB92: 0
A93: =_xlfn.IFS(EDATE($A$9,12)=A92+1,"-",TRUE,A92+1) -> 2025-03-26 | B93: =_xlfn.IFS(A93="-","",NOT(ISNUMBER(A94)),2,WEEKDAY(A93)=$H$3,1,TRUE,"") ->  | C93: =_xlfn.IFS(A93="-","",$A$9=$A93,"",DAY($A$9)=DAY(A93+1),DATEDIF($A$9,A93+1,"M"),TRUE,"") ->  | D93: =_xlfn.IFS(A93="-","",ISTEXT(D92),1,ISTEXT(B92),D92+1,TRUE,1) -> 4 | E93: =_xlfn.IFS(A93="-","",ISTEXT(E92),1,TRUE,E92+1) -> 85 | R93: 0 | S93: 0 | T93: 0 | U93: 0 | V93: 0 | W93: 0 | X93: 0 | Y93: 0 | Z93: 0 | AA93: 0 | AB93: 0
A94: =_xlfn.IFS(EDATE($A$9,12)=A93+1,"-",TRUE,A93+1) -> 2025-03-27 | B94: =_xlfn.IFS(A94="-","",NOT(ISNUMBER(A95)),2,WEEKDAY(A94)=$H$3,1,TRUE,"") ->  | C94: =_xlfn.IFS(A94="-","",$A$9=$A94,"",DAY($A$9)=DAY(A94+1),DATEDIF($A$9,A94+1,"M"),TRUE,"") ->  | D94: =_xlfn.IFS(A94="-","",ISTEXT(D93),1,ISTEXT(B93),D93+1,TRUE,1) -> 5 | E94: =_xlfn.IFS(A94="-","",ISTEXT(E93),1,TRUE,E93+1) -> 86 | R94: 0 | S94: 0 | T94: 0 | U94: 0 | V94: 0 | W94: 0 | X94: 0 | Y94: 0 | Z94: 0 | AA94: 0 | AB94: 0
A95: =_xlfn.IFS(EDATE($A$9,12)=A94+1,"-",TRUE,A94+1) -> 2025-03-28 | B95: =_xlfn.IFS(A95="-","",NOT(ISNUMBER(A96)),2,WEEKDAY(A95)=$H$3,1,TRUE,"") ->  | C95: =_xlfn.IFS(A95="-","",$A$9=$A95,"",DAY($A$9)=DAY(A95+1),DATEDIF($A$9,A95+1,"M"),TRUE,"") ->  | D95: =_xlfn.IFS(A95="-","",ISTEXT(D94),1,ISTEXT(B94),D94+1,TRUE,1) -> 6 | E95: =_xlfn.IFS(A95="-","",ISTEXT(E94),1,TRUE,E94+1) -> 87 | R95: 0 | S95: 0 | T95: 0 | U95: 0 | V95: 0 | W95: 0 | X95: 0 | Y95: 0 | Z95: 0 | AA95: 0 | AB95: 0
A96: =_xlfn.IFS(EDATE($A$9,12)=A95+1,"-",TRUE,A95+1) -> 2025-03-29 | B96: =_xlfn.IFS(A96="-","",NOT(ISNUMBER(A97)),2,WEEKDAY(A96)=$H$3,1,TRUE,"") -> 1 | C96: =_xlfn.IFS(A96="-","",$A$9=$A96,"",DAY($A$9)=DAY(A96+1),DATEDIF($A$9,A96+1,"M"),TRUE,"") ->  | D96: =_xlfn.IFS(A96="-","",ISTEXT(D95),1,ISTEXT(B95),D95+1,TRUE,1) -> 7 | E96: =_xlfn.IFS(A96="-","",ISTEXT(E95),1,TRUE,E95+1) -> 88 | R96: 0 | S96: 0 | T96: 0 | U96: 0 | V96: 0 | W96: 0 | X96: 0 | Y96: 0 | Z96: 0 | AA96: 0 | AB96: 0
A97: =_xlfn.IFS(EDATE($A$9,12)=A96+1,"-",TRUE,A96+1) -> 2025-03-30 | B97: =_xlfn.IFS(A97="-","",NOT(ISNUMBER(A98)),2,WEEKDAY(A97)=$H$3,1,TRUE,"") ->  | C97: =_xlfn.IFS(A97="-","",$A$9=$A97,"",DAY($A$9)=DAY(A97+1),DATEDIF($A$9,A97+1,"M"),TRUE,"") ->  | D97: =_xlfn.IFS(A97="-","",ISTEXT(D96),1,ISTEXT(B96),D96+1,TRUE,1) -> 1 | E97: =_xlfn.IFS(A97="-","",ISTEXT(E96),1,TRUE,E96+1) -> 89 | R97: 0 | S97: 0 | T97: 0 | U97: 0 | V97: 0 | W97: 0 | X97: 0 | Y97: 0 | Z97: 0 | AA97: 0 | AB97: 0
A98: =_xlfn.IFS(EDATE($A$9,12)=A97+1,"-",TRUE,A97+1) -> 2025-03-31 | B98: =_xlfn.IFS(A98="-","",NOT(ISNUMBER(A99)),2,WEEKDAY(A98)=$H$3,1,TRUE,"") ->  | C98: =_xlfn.IFS(A98="-","",$A$9=$A98,"",DAY($A$9)=DAY(A98+1),DATEDIF($A$9,A98+1,"M"),TRUE,"") -> 3 | D98: =_xlfn.IFS(A98="-","",ISTEXT(D97),1,ISTEXT(B97),D97+1,TRUE,1) -> 2 | E98: =_xlfn.IFS(A98="-","",ISTEXT(E97),1,TRUE,E97+1) -> 90 | R98: 0 | S98: 0 | T98: 0 | U98: 0 | V98: 0 | W98: 0 | X98: 0 | Y98: 0 | Z98: 0 | AA98: 0 | AB98: 0
A99: =_xlfn.IFS(EDATE($A$9,12)=A98+1,"-",TRUE,A98+1) -> 2025-04-01 | B99: =_xlfn.IFS(A99="-","",NOT(ISNUMBER(A100)),2,WEEKDAY(A99)=$H$3,1,TRUE,"") ->  | C99: =_xlfn.IFS(A99="-","",$A$9=$A99,"",DAY($A$9)=DAY(A99+1),DATEDIF($A$9,A99+1,"M"),TRUE,"") ->  | D99: =_xlfn.IFS(A99="-","",ISTEXT(D98),1,ISTEXT(B98),D98+1,TRUE,1) -> 3 | E99: =_xlfn.IFS(A99="-","",ISTEXT(E98),1,TRUE,E98+1) -> 91 | R99: 0 | S99: 0 | T99: 0 | U99: 0 | V99: 0 | W99: 0 | X99: 0 | Y99: 0 | Z99: 0 | AA99: 0 | AB99: 0
A100: =_xlfn.IFS(EDATE($A$9,12)=A99+1,"-",TRUE,A99+1) -> 2025-04-02 | B100: =_xlfn.IFS(A100="-","",NOT(ISNUMBER(A101)),2,WEEKDAY(A100)=$H$3,1,TRUE,"") ->  | C100: =_xlfn.IFS(A100="-","",$A$9=$A100,"",DAY($A$9)=DAY(A100+1),DATEDIF($A$9,A100+1,"M"),TRUE,"") ->  | D100: =_xlfn.IFS(A100="-","",ISTEXT(D99),1,ISTEXT(B99),D99+1,TRUE,1) -> 4 | E100: =_xlfn.IFS(A100="-","",ISTEXT(E99),1,TRUE,E99+1) -> 92 | R100: 0 | S100: 0 | T100: 0 | U100: 0 | V100: 0 | W100: 0 | X100: 0 | Y100: 0 | Z100: 0 | AA100: 0 | AB100: 0
A101: =_xlfn.IFS(EDATE($A$9,12)=A100+1,"-",TRUE,A100+1) -> 2025-04-03 | B101: =_xlfn.IFS(A101="-","",NOT(ISNUMBER(A102)),2,WEEKDAY(A101)=$H$3,1,TRUE,"") ->  | C101: =_xlfn.IFS(A101="-","",$A$9=$A101,"",DAY($A$9)=DAY(A101+1),DATEDIF($A$9,A101+1,"M"),TRUE,"") ->  | D101: =_xlfn.IFS(A101="-","",ISTEXT(D100),1,ISTEXT(B100),D100+1,TRUE,1) -> 5 | E101: =_xlfn.IFS(A101="-","",ISTEXT(E100),1,TRUE,E100+1) -> 93 | R101: 0 | S101: 0 | T101: 0 | U101: 0 | V101: 0 | W101: 0 | X101: 0 | Y101: 0 | Z101: 0 | AA101: 0 | AB101: 0
A102: =_xlfn.IFS(EDATE($A$9,12)=A101+1,"-",TRUE,A101+1) -> 2025-04-04 | B102: =_xlfn.IFS(A102="-","",NOT(ISNUMBER(A103)),2,WEEKDAY(A102)=$H$3,1,TRUE,"") ->  | C102: =_xlfn.IFS(A102="-","",$A$9=$A102,"",DAY($A$9)=DAY(A102+1),DATEDIF($A$9,A102+1,"M"),TRUE,"") ->  | D102: =_xlfn.IFS(A102="-","",ISTEXT(D101),1,ISTEXT(B101),D101+1,TRUE,1) -> 6 | E102: =_xlfn.IFS(A102="-","",ISTEXT(E101),1,TRUE,E101+1) -> 94 | R102: 0 | S102: 0 | T102: 0 | U102: 0 | V102: 0 | W102: 0 | X102: 0 | Y102: 0 | Z102: 0 | AA102: 0 | AB102: 0
A103: =_xlfn.IFS(EDATE($A$9,12)=A102+1,"-",TRUE,A102+1) -> 2025-04-05 | B103: =_xlfn.IFS(A103="-","",NOT(ISNUMBER(A104)),2,WEEKDAY(A103)=$H$3,1,TRUE,"") -> 1 | C103: =_xlfn.IFS(A103="-","",$A$9=$A103,"",DAY($A$9)=DAY(A103+1),DATEDIF($A$9,A103+1,"M"),TRUE,"") ->  | D103: =_xlfn.IFS(A103="-","",ISTEXT(D102),1,ISTEXT(B102),D102+1,TRUE,1) -> 7 | E103: =_xlfn.IFS(A103="-","",ISTEXT(E102),1,TRUE,E102+1) -> 95 | R103: 0 | S103: 0 | T103: 0 | U103: 0 | V103: 0 | W103: 0 | X103: 0 | Y103: 0 | Z103: 0 | AA103: 0 | AB103: 0
A104: =_xlfn.IFS(EDATE($A$9,12)=A103+1,"-",TRUE,A103+1) -> 2025-04-06 | B104: =_xlfn.IFS(A104="-","",NOT(ISNUMBER(A105)),2,WEEKDAY(A104)=$H$3,1,TRUE,"") ->  | C104: =_xlfn.IFS(A104="-","",$A$9=$A104,"",DAY($A$9)=DAY(A104+1),DATEDIF($A$9,A104+1,"M"),TRUE,"") ->  | D104: =_xlfn.IFS(A104="-","",ISTEXT(D103),1,ISTEXT(B103),D103+1,TRUE,1) -> 1 | E104: =_xlfn.IFS(A104="-","",ISTEXT(E103),1,TRUE,E103+1) -> 96 | R104: 0 | S104: 0 | T104: 0 | U104: 0 | V104: 0 | W104: 0 | X104: 0 | Y104: 0 | Z104: 0 | AA104: 0 | AB104: 0
A105: =_xlfn.IFS(EDATE($A$9,12)=A104+1,"-",TRUE,A104+1) -> 2025-04-07 | B105: =_xlfn.IFS(A105="-","",NOT(ISNUMBER(A106)),2,WEEKDAY(A105)=$H$3,1,TRUE,"") ->  | C105: =_xlfn.IFS(A105="-","",$A$9=$A105,"",DAY($A$9)=DAY(A105+1),DATEDIF($A$9,A105+1,"M"),TRUE,"") ->  | D105: =_xlfn.IFS(A105="-","",ISTEXT(D104),1,ISTEXT(B104),D104+1,TRUE,1) -> 2 | E105: =_xlfn.IFS(A105="-","",ISTEXT(E104),1,TRUE,E104+1) -> 97 | R105: 0 | S105: 0 | T105: 0 | U105: 0 | V105: 0 | W105: 0 | X105: 0 | Y105: 0 | Z105: 0 | AA105: 0 | AB105: 0
A106: =_xlfn.IFS(EDATE($A$9,12)=A105+1,"-",TRUE,A105+1) -> 2025-04-08 | B106: =_xlfn.IFS(A106="-","",NOT(ISNUMBER(A107)),2,WEEKDAY(A106)=$H$3,1,TRUE,"") ->  | C106: =_xlfn.IFS(A106="-","",$A$9=$A106,"",DAY($A$9)=DAY(A106+1),DATEDIF($A$9,A106+1,"M"),TRUE,"") ->  | D106: =_xlfn.IFS(A106="-","",ISTEXT(D105),1,ISTEXT(B105),D105+1,TRUE,1) -> 3 | E106: =_xlfn.IFS(A106="-","",ISTEXT(E105),1,TRUE,E105+1) -> 98 | R106: 0 | S106: 0 | T106: 0 | U106: 0 | V106: 0 | W106: 0 | X106: 0 | Y106: 0 | Z106: 0 | AA106: 0 | AB106: 0
A107: =_xlfn.IFS(EDATE($A$9,12)=A106+1,"-",TRUE,A106+1) -> 2025-04-09 | B107: =_xlfn.IFS(A107="-","",NOT(ISNUMBER(A108)),2,WEEKDAY(A107)=$H$3,1,TRUE,"") ->  | C107: =_xlfn.IFS(A107="-","",$A$9=$A107,"",DAY($A$9)=DAY(A107+1),DATEDIF($A$9,A107+1,"M"),TRUE,"") ->  | D107: =_xlfn.IFS(A107="-","",ISTEXT(D106),1,ISTEXT(B106),D106+1,TRUE,1) -> 4 | E107: =_xlfn.IFS(A107="-","",ISTEXT(E106),1,TRUE,E106+1) -> 99 | R107: 0 | S107: 0 | T107: 0 | U107: 0 | V107: 0 | W107: 0 | X107: 0 | Y107: 0 | Z107: 0 | AA107: 0 | AB107: 0
A108: =_xlfn.IFS(EDATE($A$9,12)=A107+1,"-",TRUE,A107+1) -> 2025-04-10 | B108: =_xlfn.IFS(A108="-","",NOT(ISNUMBER(A109)),2,WEEKDAY(A108)=$H$3,1,TRUE,"") ->  | C108: =_xlfn.IFS(A108="-","",$A$9=$A108,"",DAY($A$9)=DAY(A108+1),DATEDIF($A$9,A108+1,"M"),TRUE,"") ->  | D108: =_xlfn.IFS(A108="-","",ISTEXT(D107),1,ISTEXT(B107),D107+1,TRUE,1) -> 5 | E108: =_xlfn.IFS(A108="-","",ISTEXT(E107),1,TRUE,E107+1) -> 100 | R108: 0 | S108: 0 | T108: 0 | U108: 0 | V108: 0 | W108: 0 | X108: 0 | Y108: 0 | Z108: 0 | AA108: 0 | AB108: 0
A109: =_xlfn.IFS(EDATE($A$9,12)=A108+1,"-",TRUE,A108+1) -> 2025-04-11 | B109: =_xlfn.IFS(A109="-","",NOT(ISNUMBER(A110)),2,WEEKDAY(A109)=$H$3,1,TRUE,"") ->  | C109: =_xlfn.IFS(A109="-","",$A$9=$A109,"",DAY($A$9)=DAY(A109+1),DATEDIF($A$9,A109+1,"M"),TRUE,"") ->  | D109: =_xlfn.IFS(A109="-","",ISTEXT(D108),1,ISTEXT(B108),D108+1,TRUE,1) -> 6 | E109: =_xlfn.IFS(A109="-","",ISTEXT(E108),1,TRUE,E108+1) -> 101 | R109: 0 | S109: 0 | T109: 0 | U109: 0 | V109: 0 | W109: 0 | X109: 0 | Y109: 0 | Z109: 0 | AA109: 0 | AB109: 0
A110: =_xlfn.IFS(EDATE($A$9,12)=A109+1,"-",TRUE,A109+1) -> 2025-04-12 | B110: =_xlfn.IFS(A110="-","",NOT(ISNUMBER(A111)),2,WEEKDAY(A110)=$H$3,1,TRUE,"") -> 1 | C110: =_xlfn.IFS(A110="-","",$A$9=$A110,"",DAY($A$9)=DAY(A110+1),DATEDIF($A$9,A110+1,"M"),TRUE,"") ->  | D110: =_xlfn.IFS(A110="-","",ISTEXT(D109),1,ISTEXT(B109),D109+1,TRUE,1) -> 7 | E110: =_xlfn.IFS(A110="-","",ISTEXT(E109),1,TRUE,E109+1) -> 102 | R110: 0 | S110: 0 | T110: 0 | U110: 0 | V110: 0 | W110: 0 | X110: 0 | Y110: 0 | Z110: 0 | AA110: 0 | AB110: 0
A111: =_xlfn.IFS(EDATE($A$9,12)=A110+1,"-",TRUE,A110+1) -> 2025-04-13 | B111: =_xlfn.IFS(A111="-","",NOT(ISNUMBER(A112)),2,WEEKDAY(A111)=$H$3,1,TRUE,"") ->  | C111: =_xlfn.IFS(A111="-","",$A$9=$A111,"",DAY($A$9)=DAY(A111+1),DATEDIF($A$9,A111+1,"M"),TRUE,"") ->  | D111: =_xlfn.IFS(A111="-","",ISTEXT(D110),1,ISTEXT(B110),D110+1,TRUE,1) -> 1 | E111: =_xlfn.IFS(A111="-","",ISTEXT(E110),1,TRUE,E110+1) -> 103 | R111: 0 | S111: 0 | T111: 0 | U111: 0 | V111: 0 | W111: 0 | X111: 0 | Y111: 0 | Z111: 0 | AA111: 0 | AB111: 0
A112: =_xlfn.IFS(EDATE($A$9,12)=A111+1,"-",TRUE,A111+1) -> 2025-04-14 | B112: =_xlfn.IFS(A112="-","",NOT(ISNUMBER(A113)),2,WEEKDAY(A112)=$H$3,1,TRUE,"") ->  | C112: =_xlfn.IFS(A112="-","",$A$9=$A112,"",DAY($A$9)=DAY(A112+1),DATEDIF($A$9,A112+1,"M"),TRUE,"") ->  | D112: =_xlfn.IFS(A112="-","",ISTEXT(D111),1,ISTEXT(B111),D111+1,TRUE,1) -> 2 | E112: =_xlfn.IFS(A112="-","",ISTEXT(E111),1,TRUE,E111+1) -> 104 | R112: 0 | S112: 0 | T112: 0 | U112: 0 | V112: 0 | W112: 0 | X112: 0 | Y112: 0 | Z112: 0 | AA112: 0 | AB112: 0
A113: =_xlfn.IFS(EDATE($A$9,12)=A112+1,"-",TRUE,A112+1) -> 2025-04-15 | B113: =_xlfn.IFS(A113="-","",NOT(ISNUMBER(A114)),2,WEEKDAY(A113)=$H$3,1,TRUE,"") ->  | C113: =_xlfn.IFS(A113="-","",$A$9=$A113,"",DAY($A$9)=DAY(A113+1),DATEDIF($A$9,A113+1,"M"),TRUE,"") ->  | D113: =_xlfn.IFS(A113="-","",ISTEXT(D112),1,ISTEXT(B112),D112+1,TRUE,1) -> 3 | E113: =_xlfn.IFS(A113="-","",ISTEXT(E112),1,TRUE,E112+1) -> 105 | R113: 0 | S113: 0 | T113: 0 | U113: 0 | V113: 0 | W113: 0 | X113: 0 | Y113: 0 | Z113: 0 | AA113: 0 | AB113: 0
A114: =_xlfn.IFS(EDATE($A$9,12)=A113+1,"-",TRUE,A113+1) -> 2025-04-16 | B114: =_xlfn.IFS(A114="-","",NOT(ISNUMBER(A115)),2,WEEKDAY(A114)=$H$3,1,TRUE,"") ->  | C114: =_xlfn.IFS(A114="-","",$A$9=$A114,"",DAY($A$9)=DAY(A114+1),DATEDIF($A$9,A114+1,"M"),TRUE,"") ->  | D114: =_xlfn.IFS(A114="-","",ISTEXT(D113),1,ISTEXT(B113),D113+1,TRUE,1) -> 4 | E114: =_xlfn.IFS(A114="-","",ISTEXT(E113),1,TRUE,E113+1) -> 106 | R114: 0 | S114: 0 | T114: 0 | U114: 0 | V114: 0 | W114: 0 | X114: 0 | Y114: 0 | Z114: 0 | AA114: 0 | AB114: 0
A115: =_xlfn.IFS(EDATE($A$9,12)=A114+1,"-",TRUE,A114+1) -> 2025-04-17 | B115: =_xlfn.IFS(A115="-","",NOT(ISNUMBER(A116)),2,WEEKDAY(A115)=$H$3,1,TRUE,"") ->  | C115: =_xlfn.IFS(A115="-","",$A$9=$A115,"",DAY($A$9)=DAY(A115+1),DATEDIF($A$9,A115+1,"M"),TRUE,"") ->  | D115: =_xlfn.IFS(A115="-","",ISTEXT(D114),1,ISTEXT(B114),D114+1,TRUE,1) -> 5 | E115: =_xlfn.IFS(A115="-","",ISTEXT(E114),1,TRUE,E114+1) -> 107 | R115: 0 | S115: 0 | T115: 0 | U115: 0 | V115: 0 | W115: 0 | X115: 0 | Y115: 0 | Z115: 0 | AA115: 0 | AB115: 0
A116: =_xlfn.IFS(EDATE($A$9,12)=A115+1,"-",TRUE,A115+1) -> 2025-04-18 | B116: =_xlfn.IFS(A116="-","",NOT(ISNUMBER(A117)),2,WEEKDAY(A116)=$H$3,1,TRUE,"") ->  | C116: =_xlfn.IFS(A116="-","",$A$9=$A116,"",DAY($A$9)=DAY(A116+1),DATEDIF($A$9,A116+1,"M"),TRUE,"") ->  | D116: =_xlfn.IFS(A116="-","",ISTEXT(D115),1,ISTEXT(B115),D115+1,TRUE,1) -> 6 | E116: =_xlfn.IFS(A116="-","",ISTEXT(E115),1,TRUE,E115+1) -> 108 | R116: 0 | S116: 0 | T116: 0 | U116: 0 | V116: 0 | W116: 0 | X116: 0 | Y116: 0 | Z116: 0 | AA116: 0 | AB116: 0
A117: =_xlfn.IFS(EDATE($A$9,12)=A116+1,"-",TRUE,A116+1) -> 2025-04-19 | B117: =_xlfn.IFS(A117="-","",NOT(ISNUMBER(A118)),2,WEEKDAY(A117)=$H$3,1,TRUE,"") -> 1 | C117: =_xlfn.IFS(A117="-","",$A$9=$A117,"",DAY($A$9)=DAY(A117+1),DATEDIF($A$9,A117+1,"M"),TRUE,"") ->  | D117: =_xlfn.IFS(A117="-","",ISTEXT(D116),1,ISTEXT(B116),D116+1,TRUE,1) -> 7 | E117: =_xlfn.IFS(A117="-","",ISTEXT(E116),1,TRUE,E116+1) -> 109 | R117: 0 | S117: 0 | T117: 0 | U117: 0 | V117: 0 | W117: 0 | X117: 0 | Y117: 0 | Z117: 0 | AA117: 0 | AB117: 0
A118: =_xlfn.IFS(EDATE($A$9,12)=A117+1,"-",TRUE,A117+1) -> 2025-04-20 | B118: =_xlfn.IFS(A118="-","",NOT(ISNUMBER(A119)),2,WEEKDAY(A118)=$H$3,1,TRUE,"") ->  | C118: =_xlfn.IFS(A118="-","",$A$9=$A118,"",DAY($A$9)=DAY(A118+1),DATEDIF($A$9,A118+1,"M"),TRUE,"") ->  | D118: =_xlfn.IFS(A118="-","",ISTEXT(D117),1,ISTEXT(B117),D117+1,TRUE,1) -> 1 | E118: =_xlfn.IFS(A118="-","",ISTEXT(E117),1,TRUE,E117+1) -> 110 | R118: 0 | S118: 0 | T118: 0 | U118: 0 | V118: 0 | W118: 0 | X118: 0 | Y118: 0 | Z118: 0 | AA118: 0 | AB118: 0
A119: =_xlfn.IFS(EDATE($A$9,12)=A118+1,"-",TRUE,A118+1) -> 2025-04-21 | B119: =_xlfn.IFS(A119="-","",NOT(ISNUMBER(A120)),2,WEEKDAY(A119)=$H$3,1,TRUE,"") ->  | C119: =_xlfn.IFS(A119="-","",$A$9=$A119,"",DAY($A$9)=DAY(A119+1),DATEDIF($A$9,A119+1,"M"),TRUE,"") ->  | D119: =_xlfn.IFS(A119="-","",ISTEXT(D118),1,ISTEXT(B118),D118+1,TRUE,1) -> 2 | E119: =_xlfn.IFS(A119="-","",ISTEXT(E118),1,TRUE,E118+1) -> 111 | R119: 0 | S119: 0 | T119: 0 | U119: 0 | V119: 0 | W119: 0 | X119: 0 | Y119: 0 | Z119: 0 | AA119: 0 | AB119: 0
A120: =_xlfn.IFS(EDATE($A$9,12)=A119+1,"-",TRUE,A119+1) -> 2025-04-22 | B120: =_xlfn.IFS(A120="-","",NOT(ISNUMBER(A121)),2,WEEKDAY(A120)=$H$3,1,TRUE,"") ->  | C120: =_xlfn.IFS(A120="-","",$A$9=$A120,"",DAY($A$9)=DAY(A120+1),DATEDIF($A$9,A120+1,"M"),TRUE,"") ->  | D120: =_xlfn.IFS(A120="-","",ISTEXT(D119),1,ISTEXT(B119),D119+1,TRUE,1) -> 3 | E120: =_xlfn.IFS(A120="-","",ISTEXT(E119),1,TRUE,E119+1) -> 112 | R120: 0 | S120: 0 | T120: 0 | U120: 0 | V120: 0 | W120: 0 | X120: 0 | Y120: 0 | Z120: 0 | AA120: 0 | AB120: 0
A121: =_xlfn.IFS(EDATE($A$9,12)=A120+1,"-",TRUE,A120+1) -> 2025-04-23 | B121: =_xlfn.IFS(A121="-","",NOT(ISNUMBER(A122)),2,WEEKDAY(A121)=$H$3,1,TRUE,"") ->  | C121: =_xlfn.IFS(A121="-","",$A$9=$A121,"",DAY($A$9)=DAY(A121+1),DATEDIF($A$9,A121+1,"M"),TRUE,"") ->  | D121: =_xlfn.IFS(A121="-","",ISTEXT(D120),1,ISTEXT(B120),D120+1,TRUE,1) -> 4 | E121: =_xlfn.IFS(A121="-","",ISTEXT(E120),1,TRUE,E120+1) -> 113 | R121: 0 | S121: 0 | T121: 0 | U121: 0 | V121: 0 | W121: 0 | X121: 0 | Y121: 0 | Z121: 0 | AA121: 0 | AB121: 0
A122: =_xlfn.IFS(EDATE($A$9,12)=A121+1,"-",TRUE,A121+1) -> 2025-04-24 | B122: =_xlfn.IFS(A122="-","",NOT(ISNUMBER(A123)),2,WEEKDAY(A122)=$H$3,1,TRUE,"") ->  | C122: =_xlfn.IFS(A122="-","",$A$9=$A122,"",DAY($A$9)=DAY(A122+1),DATEDIF($A$9,A122+1,"M"),TRUE,"") ->  | D122: =_xlfn.IFS(A122="-","",ISTEXT(D121),1,ISTEXT(B121),D121+1,TRUE,1) -> 5 | E122: =_xlfn.IFS(A122="-","",ISTEXT(E121),1,TRUE,E121+1) -> 114 | R122: 0 | S122: 0 | T122: 0 | U122: 0 | V122: 0 | W122: 0 | X122: 0 | Y122: 0 | Z122: 0 | AA122: 0 | AB122: 0
A123: =_xlfn.IFS(EDATE($A$9,12)=A122+1,"-",TRUE,A122+1) -> 2025-04-25 | B123: =_xlfn.IFS(A123="-","",NOT(ISNUMBER(A124)),2,WEEKDAY(A123)=$H$3,1,TRUE,"") ->  | C123: =_xlfn.IFS(A123="-","",$A$9=$A123,"",DAY($A$9)=DAY(A123+1),DATEDIF($A$9,A123+1,"M"),TRUE,"") ->  | D123: =_xlfn.IFS(A123="-","",ISTEXT(D122),1,ISTEXT(B122),D122+1,TRUE,1) -> 6 | E123: =_xlfn.IFS(A123="-","",ISTEXT(E122),1,TRUE,E122+1) -> 115 | R123: 0 | S123: 0 | T123: 0 | U123: 0 | V123: 0 | W123: 0 | X123: 0 | Y123: 0 | Z123: 0 | AA123: 0 | AB123: 0
A124: =_xlfn.IFS(EDATE($A$9,12)=A123+1,"-",TRUE,A123+1) -> 2025-04-26 | B124: =_xlfn.IFS(A124="-","",NOT(ISNUMBER(A125)),2,WEEKDAY(A124)=$H$3,1,TRUE,"") -> 1 | C124: =_xlfn.IFS(A124="-","",$A$9=$A124,"",DAY($A$9)=DAY(A124+1),DATEDIF($A$9,A124+1,"M"),TRUE,"") ->  | D124: =_xlfn.IFS(A124="-","",ISTEXT(D123),1,ISTEXT(B123),D123+1,TRUE,1) -> 7 | E124: =_xlfn.IFS(A124="-","",ISTEXT(E123),1,TRUE,E123+1) -> 116 | R124: 0 | S124: 0 | T124: 0 | U124: 0 | V124: 0 | W124: 0 | X124: 0 | Y124: 0 | Z124: 0 | AA124: 0 | AB124: 0
A125: =_xlfn.IFS(EDATE($A$9,12)=A124+1,"-",TRUE,A124+1) -> 2025-04-27 | B125: =_xlfn.IFS(A125="-","",NOT(ISNUMBER(A126)),2,WEEKDAY(A125)=$H$3,1,TRUE,"") ->  | C125: =_xlfn.IFS(A125="-","",$A$9=$A125,"",DAY($A$9)=DAY(A125+1),DATEDIF($A$9,A125+1,"M"),TRUE,"") ->  | D125: =_xlfn.IFS(A125="-","",ISTEXT(D124),1,ISTEXT(B124),D124+1,TRUE,1) -> 1 | E125: =_xlfn.IFS(A125="-","",ISTEXT(E124),1,TRUE,E124+1) -> 117 | R125: 0 | S125: 0 | T125: 0 | U125: 0 | V125: 0 | W125: 0 | X125: 0 | Y125: 0 | Z125: 0 | AA125: 0 | AB125: 0
A126: =_xlfn.IFS(EDATE($A$9,12)=A125+1,"-",TRUE,A125+1) -> 2025-04-28 | B126: =_xlfn.IFS(A126="-","",NOT(ISNUMBER(A127)),2,WEEKDAY(A126)=$H$3,1,TRUE,"") ->  | C126: =_xlfn.IFS(A126="-","",$A$9=$A126,"",DAY($A$9)=DAY(A126+1),DATEDIF($A$9,A126+1,"M"),TRUE,"") ->  | D126: =_xlfn.IFS(A126="-","",ISTEXT(D125),1,ISTEXT(B125),D125+1,TRUE,1) -> 2 | E126: =_xlfn.IFS(A126="-","",ISTEXT(E125),1,TRUE,E125+1) -> 118 | R126: 0 | S126: 0 | T126: 0 | U126: 0 | V126: 0 | W126: 0 | X126: 0 | Y126: 0 | Z126: 0 | AA126: 0 | AB126: 0
A127: =_xlfn.IFS(EDATE($A$9,12)=A126+1,"-",TRUE,A126+1) -> 2025-04-29 | B127: =_xlfn.IFS(A127="-","",NOT(ISNUMBER(A128)),2,WEEKDAY(A127)=$H$3,1,TRUE,"") ->  | C127: =_xlfn.IFS(A127="-","",$A$9=$A127,"",DAY($A$9)=DAY(A127+1),DATEDIF($A$9,A127+1,"M"),TRUE,"") ->  | D127: =_xlfn.IFS(A127="-","",ISTEXT(D126),1,ISTEXT(B126),D126+1,TRUE,1) -> 3 | E127: =_xlfn.IFS(A127="-","",ISTEXT(E126),1,TRUE,E126+1) -> 119 | R127: 0 | S127: 0 | T127: 0 | U127: 0 | V127: 0 | W127: 0 | X127: 0 | Y127: 0 | Z127: 0 | AA127: 0 | AB127: 0
A128: =_xlfn.IFS(EDATE($A$9,12)=A127+1,"-",TRUE,A127+1) -> 2025-04-30 | B128: =_xlfn.IFS(A128="-","",NOT(ISNUMBER(A129)),2,WEEKDAY(A128)=$H$3,1,TRUE,"") ->  | C128: =_xlfn.IFS(A128="-","",$A$9=$A128,"",DAY($A$9)=DAY(A128+1),DATEDIF($A$9,A128+1,"M"),TRUE,"") -> 4 | D128: =_xlfn.IFS(A128="-","",ISTEXT(D127),1,ISTEXT(B127),D127+1,TRUE,1) -> 4 | E128: =_xlfn.IFS(A128="-","",ISTEXT(E127),1,TRUE,E127+1) -> 120 | R128: 0 | S128: 0 | T128: 0 | U128: 0 | V128: 0 | W128: 0 | X128: 0 | Y128: 0 | Z128: 0 | AA128: 0 | AB128: 0
A129: =_xlfn.IFS(EDATE($A$9,12)=A128+1,"-",TRUE,A128+1) -> 2025-05-01 | B129: =_xlfn.IFS(A129="-","",NOT(ISNUMBER(A130)),2,WEEKDAY(A129)=$H$3,1,TRUE,"") ->  | C129: =_xlfn.IFS(A129="-","",$A$9=$A129,"",DAY($A$9)=DAY(A129+1),DATEDIF($A$9,A129+1,"M"),TRUE,"") ->  | D129: =_xlfn.IFS(A129="-","",ISTEXT(D128),1,ISTEXT(B128),D128+1,TRUE,1) -> 5 | E129: =_xlfn.IFS(A129="-","",ISTEXT(E128),1,TRUE,E128+1) -> 121 | R129: 0 | S129: 0 | T129: 0 | U129: 0 | V129: 0 | W129: 0 | X129: 0 | Y129: 0 | Z129: 0 | AA129: 0 | AB129: 0
A130: =_xlfn.IFS(EDATE($A$9,12)=A129+1,"-",TRUE,A129+1) -> 2025-05-02 | B130: =_xlfn.IFS(A130="-","",NOT(ISNUMBER(A131)),2,WEEKDAY(A130)=$H$3,1,TRUE,"") ->  | C130: =_xlfn.IFS(A130="-","",$A$9=$A130,"",DAY($A$9)=DAY(A130+1),DATEDIF($A$9,A130+1,"M"),TRUE,"") ->  | D130: =_xlfn.IFS(A130="-","",ISTEXT(D129),1,ISTEXT(B129),D129+1,TRUE,1) -> 6 | E130: =_xlfn.IFS(A130="-","",ISTEXT(E129),1,TRUE,E129+1) -> 122 | R130: 0 | S130: 0 | T130: 0 | U130: 0 | V130: 0 | W130: 0 | X130: 0 | Y130: 0 | Z130: 0 | AA130: 0 | AB130: 0
A131: =_xlfn.IFS(EDATE($A$9,12)=A130+1,"-",TRUE,A130+1) -> 2025-05-03 | B131: =_xlfn.IFS(A131="-","",NOT(ISNUMBER(A132)),2,WEEKDAY(A131)=$H$3,1,TRUE,"") -> 1 | C131: =_xlfn.IFS(A131="-","",$A$9=$A131,"",DAY($A$9)=DAY(A131+1),DATEDIF($A$9,A131+1,"M"),TRUE,"") ->  | D131: =_xlfn.IFS(A131="-","",ISTEXT(D130),1,ISTEXT(B130),D130+1,TRUE,1) -> 7 | E131: =_xlfn.IFS(A131="-","",ISTEXT(E130),1,TRUE,E130+1) -> 123 | R131: 0 | S131: 0 | T131: 0 | U131: 0 | V131: 0 | W131: 0 | X131: 0 | Y131: 0 | Z131: 0 | AA131: 0 | AB131: 0
A132: =_xlfn.IFS(EDATE($A$9,12)=A131+1,"-",TRUE,A131+1) -> 2025-05-04 | B132: =_xlfn.IFS(A132="-","",NOT(ISNUMBER(A133)),2,WEEKDAY(A132)=$H$3,1,TRUE,"") ->  | C132: =_xlfn.IFS(A132="-","",$A$9=$A132,"",DAY($A$9)=DAY(A132+1),DATEDIF($A$9,A132+1,"M"),TRUE,"") ->  | D132: =_xlfn.IFS(A132="-","",ISTEXT(D131),1,ISTEXT(B131),D131+1,TRUE,1) -> 1 | E132: =_xlfn.IFS(A132="-","",ISTEXT(E131),1,TRUE,E131+1) -> 124 | R132: 0 | S132: 0 | T132: 0 | U132: 0 | V132: 0 | W132: 0 | X132: 0 | Y132: 0 | Z132: 0 | AA132: 0 | AB132: 0
A133: =_xlfn.IFS(EDATE($A$9,12)=A132+1,"-",TRUE,A132+1) -> 2025-05-05 | B133: =_xlfn.IFS(A133="-","",NOT(ISNUMBER(A134)),2,WEEKDAY(A133)=$H$3,1,TRUE,"") ->  | C133: =_xlfn.IFS(A133="-","",$A$9=$A133,"",DAY($A$9)=DAY(A133+1),DATEDIF($A$9,A133+1,"M"),TRUE,"") ->  | D133: =_xlfn.IFS(A133="-","",ISTEXT(D132),1,ISTEXT(B132),D132+1,TRUE,1) -> 2 | E133: =_xlfn.IFS(A133="-","",ISTEXT(E132),1,TRUE,E132+1) -> 125 | R133: 0 | S133: 0 | T133: 0 | U133: 0 | V133: 0 | W133: 0 | X133: 0 | Y133: 0 | Z133: 0 | AA133: 0 | AB133: 0
A134: =_xlfn.IFS(EDATE($A$9,12)=A133+1,"-",TRUE,A133+1) -> 2025-05-06 | B134: =_xlfn.IFS(A134="-","",NOT(ISNUMBER(A135)),2,WEEKDAY(A134)=$H$3,1,TRUE,"") ->  | C134: =_xlfn.IFS(A134="-","",$A$9=$A134,"",DAY($A$9)=DAY(A134+1),DATEDIF($A$9,A134+1,"M"),TRUE,"") ->  | D134: =_xlfn.IFS(A134="-","",ISTEXT(D133),1,ISTEXT(B133),D133+1,TRUE,1) -> 3 | E134: =_xlfn.IFS(A134="-","",ISTEXT(E133),1,TRUE,E133+1) -> 126 | R134: 0 | S134: 0 | T134: 0 | U134: 0 | V134: 0 | W134: 0 | X134: 0 | Y134: 0 | Z134: 0 | AA134: 0 | AB134: 0
A135: =_xlfn.IFS(EDATE($A$9,12)=A134+1,"-",TRUE,A134+1) -> 2025-05-07 | B135: =_xlfn.IFS(A135="-","",NOT(ISNUMBER(A136)),2,WEEKDAY(A135)=$H$3,1,TRUE,"") ->  | C135: =_xlfn.IFS(A135="-","",$A$9=$A135,"",DAY($A$9)=DAY(A135+1),DATEDIF($A$9,A135+1,"M"),TRUE,"") ->  | D135: =_xlfn.IFS(A135="-","",ISTEXT(D134),1,ISTEXT(B134),D134+1,TRUE,1) -> 4 | E135: =_xlfn.IFS(A135="-","",ISTEXT(E134),1,TRUE,E134+1) -> 127 | R135: 0 | S135: 0 | T135: 0 | U135: 0 | V135: 0 | W135: 0 | X135: 0 | Y135: 0 | Z135: 0 | AA135: 0 | AB135: 0
A136: =_xlfn.IFS(EDATE($A$9,12)=A135+1,"-",TRUE,A135+1) -> 2025-05-08 | B136: =_xlfn.IFS(A136="-","",NOT(ISNUMBER(A137)),2,WEEKDAY(A136)=$H$3,1,TRUE,"") ->  | C136: =_xlfn.IFS(A136="-","",$A$9=$A136,"",DAY($A$9)=DAY(A136+1),DATEDIF($A$9,A136+1,"M"),TRUE,"") ->  | D136: =_xlfn.IFS(A136="-","",ISTEXT(D135),1,ISTEXT(B135),D135+1,TRUE,1) -> 5 | E136: =_xlfn.IFS(A136="-","",ISTEXT(E135),1,TRUE,E135+1) -> 128 | R136: 0 | S136: 0 | T136: 0 | U136: 0 | V136: 0 | W136: 0 | X136: 0 | Y136: 0 | Z136: 0 | AA136: 0 | AB136: 0
A137: =_xlfn.IFS(EDATE($A$9,12)=A136+1,"-",TRUE,A136+1) -> 2025-05-09 | B137: =_xlfn.IFS(A137="-","",NOT(ISNUMBER(A138)),2,WEEKDAY(A137)=$H$3,1,TRUE,"") ->  | C137: =_xlfn.IFS(A137="-","",$A$9=$A137,"",DAY($A$9)=DAY(A137+1),DATEDIF($A$9,A137+1,"M"),TRUE,"") ->  | D137: =_xlfn.IFS(A137="-","",ISTEXT(D136),1,ISTEXT(B136),D136+1,TRUE,1) -> 6 | E137: =_xlfn.IFS(A137="-","",ISTEXT(E136),1,TRUE,E136+1) -> 129 | R137: 0 | S137: 0 | T137: 0 | U137: 0 | V137: 0 | W137: 0 | X137: 0 | Y137: 0 | Z137: 0 | AA137: 0 | AB137: 0
A138: =_xlfn.IFS(EDATE($A$9,12)=A137+1,"-",TRUE,A137+1) -> 2025-05-10 | B138: =_xlfn.IFS(A138="-","",NOT(ISNUMBER(A139)),2,WEEKDAY(A138)=$H$3,1,TRUE,"") -> 1 | C138: =_xlfn.IFS(A138="-","",$A$9=$A138,"",DAY($A$9)=DAY(A138+1),DATEDIF($A$9,A138+1,"M"),TRUE,"") ->  | D138: =_xlfn.IFS(A138="-","",ISTEXT(D137),1,ISTEXT(B137),D137+1,TRUE,1) -> 7 | E138: =_xlfn.IFS(A138="-","",ISTEXT(E137),1,TRUE,E137+1) -> 130 | R138: 0 | S138: 0 | T138: 0 | U138: 0 | V138: 0 | W138: 0 | X138: 0 | Y138: 0 | Z138: 0 | AA138: 0 | AB138: 0
A139: =_xlfn.IFS(EDATE($A$9,12)=A138+1,"-",TRUE,A138+1) -> 2025-05-11 | B139: =_xlfn.IFS(A139="-","",NOT(ISNUMBER(A140)),2,WEEKDAY(A139)=$H$3,1,TRUE,"") ->  | C139: =_xlfn.IFS(A139="-","",$A$9=$A139,"",DAY($A$9)=DAY(A139+1),DATEDIF($A$9,A139+1,"M"),TRUE,"") ->  | D139: =_xlfn.IFS(A139="-","",ISTEXT(D138),1,ISTEXT(B138),D138+1,TRUE,1) -> 1 | E139: =_xlfn.IFS(A139="-","",ISTEXT(E138),1,TRUE,E138+1) -> 131 | R139: 0 | S139: 0 | T139: 0 | U139: 0 | V139: 0 | W139: 0 | X139: 0 | Y139: 0 | Z139: 0 | AA139: 0 | AB139: 0
A140: =_xlfn.IFS(EDATE($A$9,12)=A139+1,"-",TRUE,A139+1) -> 2025-05-12 | B140: =_xlfn.IFS(A140="-","",NOT(ISNUMBER(A141)),2,WEEKDAY(A140)=$H$3,1,TRUE,"") ->  | C140: =_xlfn.IFS(A140="-","",$A$9=$A140,"",DAY($A$9)=DAY(A140+1),DATEDIF($A$9,A140+1,"M"),TRUE,"") ->  | D140: =_xlfn.IFS(A140="-","",ISTEXT(D139),1,ISTEXT(B139),D139+1,TRUE,1) -> 2 | E140: =_xlfn.IFS(A140="-","",ISTEXT(E139),1,TRUE,E139+1) -> 132 | R140: 0 | S140: 0 | T140: 0 | U140: 0 | V140: 0 | W140: 0 | X140: 0 | Y140: 0 | Z140: 0 | AA140: 0 | AB140: 0
A141: =_xlfn.IFS(EDATE($A$9,12)=A140+1,"-",TRUE,A140+1) -> 2025-05-13 | B141: =_xlfn.IFS(A141="-","",NOT(ISNUMBER(A142)),2,WEEKDAY(A141)=$H$3,1,TRUE,"") ->  | C141: =_xlfn.IFS(A141="-","",$A$9=$A141,"",DAY($A$9)=DAY(A141+1),DATEDIF($A$9,A141+1,"M"),TRUE,"") ->  | D141: =_xlfn.IFS(A141="-","",ISTEXT(D140),1,ISTEXT(B140),D140+1,TRUE,1) -> 3 | E141: =_xlfn.IFS(A141="-","",ISTEXT(E140),1,TRUE,E140+1) -> 133 | R141: 0 | S141: 0 | T141: 0 | U141: 0 | V141: 0 | W141: 0 | X141: 0 | Y141: 0 | Z141: 0 | AA141: 0 | AB141: 0
A142: =_xlfn.IFS(EDATE($A$9,12)=A141+1,"-",TRUE,A141+1) -> 2025-05-14 | B142: =_xlfn.IFS(A142="-","",NOT(ISNUMBER(A143)),2,WEEKDAY(A142)=$H$3,1,TRUE,"") ->  | C142: =_xlfn.IFS(A142="-","",$A$9=$A142,"",DAY($A$9)=DAY(A142+1),DATEDIF($A$9,A142+1,"M"),TRUE,"") ->  | D142: =_xlfn.IFS(A142="-","",ISTEXT(D141),1,ISTEXT(B141),D141+1,TRUE,1) -> 4 | E142: =_xlfn.IFS(A142="-","",ISTEXT(E141),1,TRUE,E141+1) -> 134 | R142: =K142-J142-SUM(L142:P142) -> 0 | S142: 0 | T142: 0 | U142: 0 | V142: 0 | W142: 0 | X142: 0 | Y142: 0 | Z142: 0 | AA142: 0 | AB142: 0
A143: =_xlfn.IFS(EDATE($A$9,12)=A142+1,"-",TRUE,A142+1) -> 2025-05-15 | B143: =_xlfn.IFS(A143="-","",NOT(ISNUMBER(A144)),2,WEEKDAY(A143)=$H$3,1,TRUE,"") ->  | C143: =_xlfn.IFS(A143="-","",$A$9=$A143,"",DAY($A$9)=DAY(A143+1),DATEDIF($A$9,A143+1,"M"),TRUE,"") ->  | D143: =_xlfn.IFS(A143="-","",ISTEXT(D142),1,ISTEXT(B142),D142+1,TRUE,1) -> 5 | E143: =_xlfn.IFS(A143="-","",ISTEXT(E142),1,TRUE,E142+1) -> 135 | R143: 0 | S143: 0 | T143: 0 | U143: 0 | V143: 0 | W143: 0 | X143: 0 | Y143: 0 | Z143: 0 | AA143: 0 | AB143: 0
A144: =_xlfn.IFS(EDATE($A$9,12)=A143+1,"-",TRUE,A143+1) -> 2025-05-16 | B144: =_xlfn.IFS(A144="-","",NOT(ISNUMBER(A145)),2,WEEKDAY(A144)=$H$3,1,TRUE,"") ->  | C144: =_xlfn.IFS(A144="-","",$A$9=$A144,"",DAY($A$9)=DAY(A144+1),DATEDIF($A$9,A144+1,"M"),TRUE,"") ->  | D144: =_xlfn.IFS(A144="-","",ISTEXT(D143),1,ISTEXT(B143),D143+1,TRUE,1) -> 6 | E144: =_xlfn.IFS(A144="-","",ISTEXT(E143),1,TRUE,E143+1) -> 136 | R144: 0 | S144: 0 | T144: 0 | U144: 0 | V144: 0 | W144: 0 | X144: 0 | Y144: 0 | Z144: 0 | AA144: 0 | AB144: 0
A145: =_xlfn.IFS(EDATE($A$9,12)=A144+1,"-",TRUE,A144+1) -> 2025-05-17 | B145: =_xlfn.IFS(A145="-","",NOT(ISNUMBER(A146)),2,WEEKDAY(A145)=$H$3,1,TRUE,"") -> 1 | C145: =_xlfn.IFS(A145="-","",$A$9=$A145,"",DAY($A$9)=DAY(A145+1),DATEDIF($A$9,A145+1,"M"),TRUE,"") ->  | D145: =_xlfn.IFS(A145="-","",ISTEXT(D144),1,ISTEXT(B144),D144+1,TRUE,1) -> 7 | E145: =_xlfn.IFS(A145="-","",ISTEXT(E144),1,TRUE,E144+1) -> 137 | R145: 0 | S145: 0 | T145: 0 | U145: 0 | V145: 0 | W145: 0 | X145: 0 | Y145: 0 | Z145: 0 | AA145: 0 | AB145: 0
A146: =_xlfn.IFS(EDATE($A$9,12)=A145+1,"-",TRUE,A145+1) -> 2025-05-18 | B146: =_xlfn.IFS(A146="-","",NOT(ISNUMBER(A147)),2,WEEKDAY(A146)=$H$3,1,TRUE,"") ->  | C146: =_xlfn.IFS(A146="-","",$A$9=$A146,"",DAY($A$9)=DAY(A146+1),DATEDIF($A$9,A146+1,"M"),TRUE,"") ->  | D146: =_xlfn.IFS(A146="-","",ISTEXT(D145),1,ISTEXT(B145),D145+1,TRUE,1) -> 1 | E146: =_xlfn.IFS(A146="-","",ISTEXT(E145),1,TRUE,E145+1) -> 138 | R146: 0 | S146: 0 | T146: 0 | U146: 0 | V146: 0 | W146: 0 | X146: 0 | Y146: 0 | Z146: 0 | AA146: 0 | AB146: 0
A147: =_xlfn.IFS(EDATE($A$9,12)=A146+1,"-",TRUE,A146+1) -> 2025-05-19 | B147: =_xlfn.IFS(A147="-","",NOT(ISNUMBER(A148)),2,WEEKDAY(A147)=$H$3,1,TRUE,"") ->  | C147: =_xlfn.IFS(A147="-","",$A$9=$A147,"",DAY($A$9)=DAY(A147+1),DATEDIF($A$9,A147+1,"M"),TRUE,"") ->  | D147: =_xlfn.IFS(A147="-","",ISTEXT(D146),1,ISTEXT(B146),D146+1,TRUE,1) -> 2 | E147: =_xlfn.IFS(A147="-","",ISTEXT(E146),1,TRUE,E146+1) -> 139 | R147: 0 | S147: 0 | T147: 0 | U147: 0 | V147: 0 | W147: 0 | X147: 0 | Y147: 0 | Z147: 0 | AA147: 0 | AB147: 0
A148: =_xlfn.IFS(EDATE($A$9,12)=A147+1,"-",TRUE,A147+1) -> 2025-05-20 | B148: =_xlfn.IFS(A148="-","",NOT(ISNUMBER(A149)),2,WEEKDAY(A148)=$H$3,1,TRUE,"") ->  | C148: =_xlfn.IFS(A148="-","",$A$9=$A148,"",DAY($A$9)=DAY(A148+1),DATEDIF($A$9,A148+1,"M"),TRUE,"") ->  | D148: =_xlfn.IFS(A148="-","",ISTEXT(D147),1,ISTEXT(B147),D147+1,TRUE,1) -> 3 | E148: =_xlfn.IFS(A148="-","",ISTEXT(E147),1,TRUE,E147+1) -> 140 | R148: 0 | S148: 0 | T148: 0 | U148: 0 | V148: 0 | W148: 0 | X148: 0 | Y148: 0 | Z148: 0 | AA148: 0 | AB148: 0
A149: =_xlfn.IFS(EDATE($A$9,12)=A148+1,"-",TRUE,A148+1) -> 2025-05-21 | B149: =_xlfn.IFS(A149="-","",NOT(ISNUMBER(A150)),2,WEEKDAY(A149)=$H$3,1,TRUE,"") ->  | C149: =_xlfn.IFS(A149="-","",$A$9=$A149,"",DAY($A$9)=DAY(A149+1),DATEDIF($A$9,A149+1,"M"),TRUE,"") ->  | D149: =_xlfn.IFS(A149="-","",ISTEXT(D148),1,ISTEXT(B148),D148+1,TRUE,1) -> 4 | E149: =_xlfn.IFS(A149="-","",ISTEXT(E148),1,TRUE,E148+1) -> 141 | R149: 0 | S149: 0 | T149: 0 | U149: 0 | V149: 0 | W149: 0 | X149: 0 | Y149: 0 | Z149: 0 | AA149: 0 | AB149: 0
A150: =_xlfn.IFS(EDATE($A$9,12)=A149+1,"-",TRUE,A149+1) -> 2025-05-22 | B150: =_xlfn.IFS(A150="-","",NOT(ISNUMBER(A151)),2,WEEKDAY(A150)=$H$3,1,TRUE,"") ->  | C150: =_xlfn.IFS(A150="-","",$A$9=$A150,"",DAY($A$9)=DAY(A150+1),DATEDIF($A$9,A150+1,"M"),TRUE,"") ->  | D150: =_xlfn.IFS(A150="-","",ISTEXT(D149),1,ISTEXT(B149),D149+1,TRUE,1) -> 5 | E150: =_xlfn.IFS(A150="-","",ISTEXT(E149),1,TRUE,E149+1) -> 142 | R150: 0 | S150: 0 | T150: 0 | U150: 0 | V150: 0 | W150: 0 | X150: 0 | Y150: 0 | Z150: 0 | AA150: 0 | AB150: 0
A151: =_xlfn.IFS(EDATE($A$9,12)=A150+1,"-",TRUE,A150+1) -> 2025-05-23 | B151: =_xlfn.IFS(A151="-","",NOT(ISNUMBER(A152)),2,WEEKDAY(A151)=$H$3,1,TRUE,"") ->  | C151: =_xlfn.IFS(A151="-","",$A$9=$A151,"",DAY($A$9)=DAY(A151+1),DATEDIF($A$9,A151+1,"M"),TRUE,"") ->  | D151: =_xlfn.IFS(A151="-","",ISTEXT(D150),1,ISTEXT(B150),D150+1,TRUE,1) -> 6 | E151: =_xlfn.IFS(A151="-","",ISTEXT(E150),1,TRUE,E150+1) -> 143 | R151: 0 | S151: 0 | T151: 0 | U151: 0 | V151: 0 | W151: 0 | X151: 0 | Y151: 0 | Z151: 0 | AA151: 0 | AB151: 0
A152: =_xlfn.IFS(EDATE($A$9,12)=A151+1,"-",TRUE,A151+1) -> 2025-05-24 | B152: =_xlfn.IFS(A152="-","",NOT(ISNUMBER(A153)),2,WEEKDAY(A152)=$H$3,1,TRUE,"") -> 1 | C152: =_xlfn.IFS(A152="-","",$A$9=$A152,"",DAY($A$9)=DAY(A152+1),DATEDIF($A$9,A152+1,"M"),TRUE,"") ->  | D152: =_xlfn.IFS(A152="-","",ISTEXT(D151),1,ISTEXT(B151),D151+1,TRUE,1) -> 7 | E152: =_xlfn.IFS(A152="-","",ISTEXT(E151),1,TRUE,E151+1) -> 144 | R152: 0 | S152: 0 | T152: 0 | U152: 0 | V152: 0 | W152: 0 | X152: 0 | Y152: 0 | Z152: 0 | AA152: 0 | AB152: 0
A153: =_xlfn.IFS(EDATE($A$9,12)=A152+1,"-",TRUE,A152+1) -> 2025-05-25 | B153: =_xlfn.IFS(A153="-","",NOT(ISNUMBER(A154)),2,WEEKDAY(A153)=$H$3,1,TRUE,"") ->  | C153: =_xlfn.IFS(A153="-","",$A$9=$A153,"",DAY($A$9)=DAY(A153+1),DATEDIF($A$9,A153+1,"M"),TRUE,"") ->  | D153: =_xlfn.IFS(A153="-","",ISTEXT(D152),1,ISTEXT(B152),D152+1,TRUE,1) -> 1 | E153: =_xlfn.IFS(A153="-","",ISTEXT(E152),1,TRUE,E152+1) -> 145 | R153: 0 | S153: 0 | T153: 0 | U153: 0 | V153: 0 | W153: 0 | X153: 0 | Y153: 0 | Z153: 0 | AA153: 0 | AB153: 0
A154: =_xlfn.IFS(EDATE($A$9,12)=A153+1,"-",TRUE,A153+1) -> 2025-05-26 | B154: =_xlfn.IFS(A154="-","",NOT(ISNUMBER(A155)),2,WEEKDAY(A154)=$H$3,1,TRUE,"") ->  | C154: =_xlfn.IFS(A154="-","",$A$9=$A154,"",DAY($A$9)=DAY(A154+1),DATEDIF($A$9,A154+1,"M"),TRUE,"") ->  | D154: =_xlfn.IFS(A154="-","",ISTEXT(D153),1,ISTEXT(B153),D153+1,TRUE,1) -> 2 | E154: =_xlfn.IFS(A154="-","",ISTEXT(E153),1,TRUE,E153+1) -> 146 | R154: 0 | S154: 0 | T154: 0 | U154: 0 | V154: 0 | W154: 0 | X154: 0 | Y154: 0 | Z154: 0 | AA154: 0 | AB154: 0
A155: =_xlfn.IFS(EDATE($A$9,12)=A154+1,"-",TRUE,A154+1) -> 2025-05-27 | B155: =_xlfn.IFS(A155="-","",NOT(ISNUMBER(A156)),2,WEEKDAY(A155)=$H$3,1,TRUE,"") ->  | C155: =_xlfn.IFS(A155="-","",$A$9=$A155,"",DAY($A$9)=DAY(A155+1),DATEDIF($A$9,A155+1,"M"),TRUE,"") ->  | D155: =_xlfn.IFS(A155="-","",ISTEXT(D154),1,ISTEXT(B154),D154+1,TRUE,1) -> 3 | E155: =_xlfn.IFS(A155="-","",ISTEXT(E154),1,TRUE,E154+1) -> 147 | R155: 0 | S155: 0 | T155: 0 | U155: 0 | V155: 0 | W155: 0 | X155: 0 | Y155: 0 | Z155: 0 | AA155: 0 | AB155: 0
A156: =_xlfn.IFS(EDATE($A$9,12)=A155+1,"-",TRUE,A155+1) -> 2025-05-28 | B156: =_xlfn.IFS(A156="-","",NOT(ISNUMBER(A157)),2,WEEKDAY(A156)=$H$3,1,TRUE,"") ->  | C156: =_xlfn.IFS(A156="-","",$A$9=$A156,"",DAY($A$9)=DAY(A156+1),DATEDIF($A$9,A156+1,"M"),TRUE,"") ->  | D156: =_xlfn.IFS(A156="-","",ISTEXT(D155),1,ISTEXT(B155),D155+1,TRUE,1) -> 4 | E156: =_xlfn.IFS(A156="-","",ISTEXT(E155),1,TRUE,E155+1) -> 148 | R156: 0 | S156: 0 | T156: 0 | U156: 0 | V156: 0 | W156: 0 | X156: 0 | Y156: 0 | Z156: 0 | AA156: 0 | AB156: 0
A157: =_xlfn.IFS(EDATE($A$9,12)=A156+1,"-",TRUE,A156+1) -> 2025-05-29 | B157: =_xlfn.IFS(A157="-","",NOT(ISNUMBER(A158)),2,WEEKDAY(A157)=$H$3,1,TRUE,"") ->  | C157: =_xlfn.IFS(A157="-","",$A$9=$A157,"",DAY($A$9)=DAY(A157+1),DATEDIF($A$9,A157+1,"M"),TRUE,"") ->  | D157: =_xlfn.IFS(A157="-","",ISTEXT(D156),1,ISTEXT(B156),D156+1,TRUE,1) -> 5 | E157: =_xlfn.IFS(A157="-","",ISTEXT(E156),1,TRUE,E156+1) -> 149 | R157: 0 | S157: 0 | T157: 0 | U157: 0 | V157: 0 | W157: 0 | X157: 0 | Y157: 0 | Z157: 0 | AA157: 0 | AB157: 0
A158: =_xlfn.IFS(EDATE($A$9,12)=A157+1,"-",TRUE,A157+1) -> 2025-05-30 | B158: =_xlfn.IFS(A158="-","",NOT(ISNUMBER(A159)),2,WEEKDAY(A158)=$H$3,1,TRUE,"") ->  | C158: =_xlfn.IFS(A158="-","",$A$9=$A158,"",DAY($A$9)=DAY(A158+1),DATEDIF($A$9,A158+1,"M"),TRUE,"") ->  | D158: =_xlfn.IFS(A158="-","",ISTEXT(D157),1,ISTEXT(B157),D157+1,TRUE,1) -> 6 | E158: =_xlfn.IFS(A158="-","",ISTEXT(E157),1,TRUE,E157+1) -> 150 | R158: 0 | S158: 0 | T158: 0 | U158: 0 | V158: 0 | W158: 0 | X158: 0 | Y158: 0 | Z158: 0 | AA158: 0 | AB158: 0
A159: =_xlfn.IFS(EDATE($A$9,12)=A158+1,"-",TRUE,A158+1) -> 2025-05-31 | B159: =_xlfn.IFS(A159="-","",NOT(ISNUMBER(A160)),2,WEEKDAY(A159)=$H$3,1,TRUE,"") -> 1 | C159: =_xlfn.IFS(A159="-","",$A$9=$A159,"",DAY($A$9)=DAY(A159+1),DATEDIF($A$9,A159+1,"M"),TRUE,"") -> 5 | D159: =_xlfn.IFS(A159="-","",ISTEXT(D158),1,ISTEXT(B158),D158+1,TRUE,1) -> 7 | E159: =_xlfn.IFS(A159="-","",ISTEXT(E158),1,TRUE,E158+1) -> 151 | R159: 0 | S159: 0 | T159: 0 | U159: 0 | V159: 0 | W159: 0 | X159: 0 | Y159: 0 | Z159: 0 | AA159: 0 | AB159: 0
A160: =_xlfn.IFS(EDATE($A$9,12)=A159+1,"-",TRUE,A159+1) -> 2025-06-01 | B160: =_xlfn.IFS(A160="-","",NOT(ISNUMBER(A161)),2,WEEKDAY(A160)=$H$3,1,TRUE,"") ->  | C160: =_xlfn.IFS(A160="-","",$A$9=$A160,"",DAY($A$9)=DAY(A160+1),DATEDIF($A$9,A160+1,"M"),TRUE,"") ->  | D160: =_xlfn.IFS(A160="-","",ISTEXT(D159),1,ISTEXT(B159),D159+1,TRUE,1) -> 1 | E160: =_xlfn.IFS(A160="-","",ISTEXT(E159),1,TRUE,E159+1) -> 152 | R160: 0 | S160: 0 | T160: 0 | U160: 0 | V160: 0 | W160: 0 | X160: 0 | Y160: 0 | Z160: 0 | AA160: 0 | AB160: 0
A161: =_xlfn.IFS(EDATE($A$9,12)=A160+1,"-",TRUE,A160+1) -> 2025-06-02 | B161: =_xlfn.IFS(A161="-","",NOT(ISNUMBER(A162)),2,WEEKDAY(A161)=$H$3,1,TRUE,"") ->  | C161: =_xlfn.IFS(A161="-","",$A$9=$A161,"",DAY($A$9)=DAY(A161+1),DATEDIF($A$9,A161+1,"M"),TRUE,"") ->  | D161: =_xlfn.IFS(A161="-","",ISTEXT(D160),1,ISTEXT(B160),D160+1,TRUE,1) -> 2 | E161: =_xlfn.IFS(A161="-","",ISTEXT(E160),1,TRUE,E160+1) -> 153 | R161: 0 | S161: 0 | T161: 0 | U161: 0 | V161: 0 | W161: 0 | X161: 0 | Y161: 0 | Z161: 0 | AA161: 0 | AB161: 0
A162: =_xlfn.IFS(EDATE($A$9,12)=A161+1,"-",TRUE,A161+1) -> 2025-06-03 | B162: =_xlfn.IFS(A162="-","",NOT(ISNUMBER(A163)),2,WEEKDAY(A162)=$H$3,1,TRUE,"") ->  | C162: =_xlfn.IFS(A162="-","",$A$9=$A162,"",DAY($A$9)=DAY(A162+1),DATEDIF($A$9,A162+1,"M"),TRUE,"") ->  | D162: =_xlfn.IFS(A162="-","",ISTEXT(D161),1,ISTEXT(B161),D161+1,TRUE,1) -> 3 | E162: =_xlfn.IFS(A162="-","",ISTEXT(E161),1,TRUE,E161+1) -> 154 | R162: 0 | S162: 0 | T162: 0 | U162: 0 | V162: 0 | W162: 0 | X162: 0 | Y162: 0 | Z162: 0 | AA162: 0 | AB162: 0
A163: =_xlfn.IFS(EDATE($A$9,12)=A162+1,"-",TRUE,A162+1) -> 2025-06-04 | B163: =_xlfn.IFS(A163="-","",NOT(ISNUMBER(A164)),2,WEEKDAY(A163)=$H$3,1,TRUE,"") ->  | C163: =_xlfn.IFS(A163="-","",$A$9=$A163,"",DAY($A$9)=DAY(A163+1),DATEDIF($A$9,A163+1,"M"),TRUE,"") ->  | D163: =_xlfn.IFS(A163="-","",ISTEXT(D162),1,ISTEXT(B162),D162+1,TRUE,1) -> 4 | E163: =_xlfn.IFS(A163="-","",ISTEXT(E162),1,TRUE,E162+1) -> 155 | R163: 0 | S163: 0 | T163: 0 | U163: 0 | V163: 0 | W163: 0 | X163: 0 | Y163: 0 | Z163: 0 | AA163: 0 | AB163: 0
A164: =_xlfn.IFS(EDATE($A$9,12)=A163+1,"-",TRUE,A163+1) -> 2025-06-05 | B164: =_xlfn.IFS(A164="-","",NOT(ISNUMBER(A165)),2,WEEKDAY(A164)=$H$3,1,TRUE,"") ->  | C164: =_xlfn.IFS(A164="-","",$A$9=$A164,"",DAY($A$9)=DAY(A164+1),DATEDIF($A$9,A164+1,"M"),TRUE,"") ->  | D164: =_xlfn.IFS(A164="-","",ISTEXT(D163),1,ISTEXT(B163),D163+1,TRUE,1) -> 5 | E164: =_xlfn.IFS(A164="-","",ISTEXT(E163),1,TRUE,E163+1) -> 156 | R164: 0 | S164: 0 | T164: 0 | U164: 0 | V164: 0 | W164: 0 | X164: 0 | Y164: 0 | Z164: 0 | AA164: 0 | AB164: 0
A165: =_xlfn.IFS(EDATE($A$9,12)=A164+1,"-",TRUE,A164+1) -> 2025-06-06 | B165: =_xlfn.IFS(A165="-","",NOT(ISNUMBER(A166)),2,WEEKDAY(A165)=$H$3,1,TRUE,"") ->  | C165: =_xlfn.IFS(A165="-","",$A$9=$A165,"",DAY($A$9)=DAY(A165+1),DATEDIF($A$9,A165+1,"M"),TRUE,"") ->  | D165: =_xlfn.IFS(A165="-","",ISTEXT(D164),1,ISTEXT(B164),D164+1,TRUE,1) -> 6 | E165: =_xlfn.IFS(A165="-","",ISTEXT(E164),1,TRUE,E164+1) -> 157 | R165: 0 | S165: 0 | T165: 0 | U165: 0 | V165: 0 | W165: 0 | X165: 0 | Y165: 0 | Z165: 0 | AA165: 0 | AB165: 0
A166: =_xlfn.IFS(EDATE($A$9,12)=A165+1,"-",TRUE,A165+1) -> 2025-06-07 | B166: =_xlfn.IFS(A166="-","",NOT(ISNUMBER(A167)),2,WEEKDAY(A166)=$H$3,1,TRUE,"") -> 1 | C166: =_xlfn.IFS(A166="-","",$A$9=$A166,"",DAY($A$9)=DAY(A166+1),DATEDIF($A$9,A166+1,"M"),TRUE,"") ->  | D166: =_xlfn.IFS(A166="-","",ISTEXT(D165),1,ISTEXT(B165),D165+1,TRUE,1) -> 7 | E166: =_xlfn.IFS(A166="-","",ISTEXT(E165),1,TRUE,E165+1) -> 158 | R166: 0 | S166: 0 | T166: 0 | U166: 0 | V166: 0 | W166: 0 | X166: 0 | Y166: 0 | Z166: 0 | AA166: 0 | AB166: 0
A167: =_xlfn.IFS(EDATE($A$9,12)=A166+1,"-",TRUE,A166+1) -> 2025-06-08 | B167: =_xlfn.IFS(A167="-","",NOT(ISNUMBER(A168)),2,WEEKDAY(A167)=$H$3,1,TRUE,"") ->  | C167: =_xlfn.IFS(A167="-","",$A$9=$A167,"",DAY($A$9)=DAY(A167+1),DATEDIF($A$9,A167+1,"M"),TRUE,"") ->  | D167: =_xlfn.IFS(A167="-","",ISTEXT(D166),1,ISTEXT(B166),D166+1,TRUE,1) -> 1 | E167: =_xlfn.IFS(A167="-","",ISTEXT(E166),1,TRUE,E166+1) -> 159 | R167: 0 | S167: 0 | T167: 0 | U167: 0 | V167: 0 | W167: 0 | X167: 0 | Y167: 0 | Z167: 0 | AA167: 0 | AB167: 0
A168: =_xlfn.IFS(EDATE($A$9,12)=A167+1,"-",TRUE,A167+1) -> 2025-06-09 | B168: =_xlfn.IFS(A168="-","",NOT(ISNUMBER(A169)),2,WEEKDAY(A168)=$H$3,1,TRUE,"") ->  | C168: =_xlfn.IFS(A168="-","",$A$9=$A168,"",DAY($A$9)=DAY(A168+1),DATEDIF($A$9,A168+1,"M"),TRUE,"") ->  | D168: =_xlfn.IFS(A168="-","",ISTEXT(D167),1,ISTEXT(B167),D167+1,TRUE,1) -> 2 | E168: =_xlfn.IFS(A168="-","",ISTEXT(E167),1,TRUE,E167+1) -> 160 | R168: 0 | S168: 0 | T168: 0 | U168: 0 | V168: 0 | W168: 0 | X168: 0 | Y168: 0 | Z168: 0 | AA168: 0 | AB168: 0
A169: =_xlfn.IFS(EDATE($A$9,12)=A168+1,"-",TRUE,A168+1) -> 2025-06-10 | B169: =_xlfn.IFS(A169="-","",NOT(ISNUMBER(A170)),2,WEEKDAY(A169)=$H$3,1,TRUE,"") ->  | C169: =_xlfn.IFS(A169="-","",$A$9=$A169,"",DAY($A$9)=DAY(A169+1),DATEDIF($A$9,A169+1,"M"),TRUE,"") ->  | D169: =_xlfn.IFS(A169="-","",ISTEXT(D168),1,ISTEXT(B168),D168+1,TRUE,1) -> 3 | E169: =_xlfn.IFS(A169="-","",ISTEXT(E168),1,TRUE,E168+1) -> 161 | R169: 0 | S169: 0 | T169: 0 | U169: 0 | V169: 0 | W169: 0 | X169: 0 | Y169: 0 | Z169: 0 | AA169: 0 | AB169: 0
A170: =_xlfn.IFS(EDATE($A$9,12)=A169+1,"-",TRUE,A169+1) -> 2025-06-11 | B170: =_xlfn.IFS(A170="-","",NOT(ISNUMBER(A171)),2,WEEKDAY(A170)=$H$3,1,TRUE,"") ->  | C170: =_xlfn.IFS(A170="-","",$A$9=$A170,"",DAY($A$9)=DAY(A170+1),DATEDIF($A$9,A170+1,"M"),TRUE,"") ->  | D170: =_xlfn.IFS(A170="-","",ISTEXT(D169),1,ISTEXT(B169),D169+1,TRUE,1) -> 4 | E170: =_xlfn.IFS(A170="-","",ISTEXT(E169),1,TRUE,E169+1) -> 162 | R170: 0 | S170: 0 | T170: 0 | U170: 0 | V170: 0 | W170: 0 | X170: 0 | Y170: 0 | Z170: 0 | AA170: 0 | AB170: 0
A171: =_xlfn.IFS(EDATE($A$9,12)=A170+1,"-",TRUE,A170+1) -> 2025-06-12 | B171: =_xlfn.IFS(A171="-","",NOT(ISNUMBER(A172)),2,WEEKDAY(A171)=$H$3,1,TRUE,"") ->  | C171: =_xlfn.IFS(A171="-","",$A$9=$A171,"",DAY($A$9)=DAY(A171+1),DATEDIF($A$9,A171+1,"M"),TRUE,"") ->  | D171: =_xlfn.IFS(A171="-","",ISTEXT(D170),1,ISTEXT(B170),D170+1,TRUE,1) -> 5 | E171: =_xlfn.IFS(A171="-","",ISTEXT(E170),1,TRUE,E170+1) -> 163 | R171: 0 | S171: 0 | T171: 0 | U171: 0 | V171: 0 | W171: 0 | X171: 0 | Y171: 0 | Z171: 0 | AA171: 0 | AB171: 0
A172: =_xlfn.IFS(EDATE($A$9,12)=A171+1,"-",TRUE,A171+1) -> 2025-06-13 | B172: =_xlfn.IFS(A172="-","",NOT(ISNUMBER(A173)),2,WEEKDAY(A172)=$H$3,1,TRUE,"") ->  | C172: =_xlfn.IFS(A172="-","",$A$9=$A172,"",DAY($A$9)=DAY(A172+1),DATEDIF($A$9,A172+1,"M"),TRUE,"") ->  | D172: =_xlfn.IFS(A172="-","",ISTEXT(D171),1,ISTEXT(B171),D171+1,TRUE,1) -> 6 | E172: =_xlfn.IFS(A172="-","",ISTEXT(E171),1,TRUE,E171+1) -> 164 | R172: 0 | S172: 0 | T172: 0 | U172: 0 | V172: 0 | W172: 0 | X172: 0 | Y172: 0 | Z172: 0 | AA172: 0 | AB172: 0
A173: =_xlfn.IFS(EDATE($A$9,12)=A172+1,"-",TRUE,A172+1) -> 2025-06-14 | B173: =_xlfn.IFS(A173="-","",NOT(ISNUMBER(A174)),2,WEEKDAY(A173)=$H$3,1,TRUE,"") -> 1 | C173: =_xlfn.IFS(A173="-","",$A$9=$A173,"",DAY($A$9)=DAY(A173+1),DATEDIF($A$9,A173+1,"M"),TRUE,"") ->  | D173: =_xlfn.IFS(A173="-","",ISTEXT(D172),1,ISTEXT(B172),D172+1,TRUE,1) -> 7 | E173: =_xlfn.IFS(A173="-","",ISTEXT(E172),1,TRUE,E172+1) -> 165 | R173: 0 | S173: 0 | T173: 0 | U173: 0 | V173: 0 | W173: 0 | X173: 0 | Y173: 0 | Z173: 0 | AA173: 0 | AB173: 0
A174: =_xlfn.IFS(EDATE($A$9,12)=A173+1,"-",TRUE,A173+1) -> 2025-06-15 | B174: =_xlfn.IFS(A174="-","",NOT(ISNUMBER(A175)),2,WEEKDAY(A174)=$H$3,1,TRUE,"") ->  | C174: =_xlfn.IFS(A174="-","",$A$9=$A174,"",DAY($A$9)=DAY(A174+1),DATEDIF($A$9,A174+1,"M"),TRUE,"") ->  | D174: =_xlfn.IFS(A174="-","",ISTEXT(D173),1,ISTEXT(B173),D173+1,TRUE,1) -> 1 | E174: =_xlfn.IFS(A174="-","",ISTEXT(E173),1,TRUE,E173+1) -> 166 | R174: 0 | S174: 0 | T174: 0 | U174: 0 | V174: 0 | W174: 0 | X174: 0 | Y174: 0 | Z174: 0 | AA174: 0 | AB174: 0
A175: =_xlfn.IFS(EDATE($A$9,12)=A174+1,"-",TRUE,A174+1) -> 2025-06-16 | B175: =_xlfn.IFS(A175="-","",NOT(ISNUMBER(A176)),2,WEEKDAY(A175)=$H$3,1,TRUE,"") ->  | C175: =_xlfn.IFS(A175="-","",$A$9=$A175,"",DAY($A$9)=DAY(A175+1),DATEDIF($A$9,A175+1,"M"),TRUE,"") ->  | D175: =_xlfn.IFS(A175="-","",ISTEXT(D174),1,ISTEXT(B174),D174+1,TRUE,1) -> 2 | E175: =_xlfn.IFS(A175="-","",ISTEXT(E174),1,TRUE,E174+1) -> 167 | R175: 0 | S175: 0 | T175: 0 | U175: 0 | V175: 0 | W175: 0 | X175: 0 | Y175: 0 | Z175: 0 | AA175: 0 | AB175: 0
A176: =_xlfn.IFS(EDATE($A$9,12)=A175+1,"-",TRUE,A175+1) -> 2025-06-17 | B176: =_xlfn.IFS(A176="-","",NOT(ISNUMBER(A177)),2,WEEKDAY(A176)=$H$3,1,TRUE,"") ->  | C176: =_xlfn.IFS(A176="-","",$A$9=$A176,"",DAY($A$9)=DAY(A176+1),DATEDIF($A$9,A176+1,"M"),TRUE,"") ->  | D176: =_xlfn.IFS(A176="-","",ISTEXT(D175),1,ISTEXT(B175),D175+1,TRUE,1) -> 3 | E176: =_xlfn.IFS(A176="-","",ISTEXT(E175),1,TRUE,E175+1) -> 168 | R176: 0 | S176: 0 | T176: 0 | U176: 0 | V176: 0 | W176: 0 | X176: 0 | Y176: 0 | Z176: 0 | AA176: 0 | AB176: 0
A177: =_xlfn.IFS(EDATE($A$9,12)=A176+1,"-",TRUE,A176+1) -> 2025-06-18 | B177: =_xlfn.IFS(A177="-","",NOT(ISNUMBER(A178)),2,WEEKDAY(A177)=$H$3,1,TRUE,"") ->  | C177: =_xlfn.IFS(A177="-","",$A$9=$A177,"",DAY($A$9)=DAY(A177+1),DATEDIF($A$9,A177+1,"M"),TRUE,"") ->  | D177: =_xlfn.IFS(A177="-","",ISTEXT(D176),1,ISTEXT(B176),D176+1,TRUE,1) -> 4 | E177: =_xlfn.IFS(A177="-","",ISTEXT(E176),1,TRUE,E176+1) -> 169 | R177: 0 | S177: 0 | T177: 0 | U177: 0 | V177: 0 | W177: 0 | X177: 0 | Y177: 0 | Z177: 0 | AA177: 0 | AB177: 0
A178: =_xlfn.IFS(EDATE($A$9,12)=A177+1,"-",TRUE,A177+1) -> 2025-06-19 | B178: =_xlfn.IFS(A178="-","",NOT(ISNUMBER(A179)),2,WEEKDAY(A178)=$H$3,1,TRUE,"") ->  | C178: =_xlfn.IFS(A178="-","",$A$9=$A178,"",DAY($A$9)=DAY(A178+1),DATEDIF($A$9,A178+1,"M"),TRUE,"") ->  | D178: =_xlfn.IFS(A178="-","",ISTEXT(D177),1,ISTEXT(B177),D177+1,TRUE,1) -> 5 | E178: =_xlfn.IFS(A178="-","",ISTEXT(E177),1,TRUE,E177+1) -> 170 | R178: 0 | S178: 0 | T178: 0 | U178: 0 | V178: 0 | W178: 0 | X178: 0 | Y178: 0 | Z178: 0 | AA178: 0 | AB178: 0
A179: =_xlfn.IFS(EDATE($A$9,12)=A178+1,"-",TRUE,A178+1) -> 2025-06-20 | B179: =_xlfn.IFS(A179="-","",NOT(ISNUMBER(A180)),2,WEEKDAY(A179)=$H$3,1,TRUE,"") ->  | C179: =_xlfn.IFS(A179="-","",$A$9=$A179,"",DAY($A$9)=DAY(A179+1),DATEDIF($A$9,A179+1,"M"),TRUE,"") ->  | D179: =_xlfn.IFS(A179="-","",ISTEXT(D178),1,ISTEXT(B178),D178+1,TRUE,1) -> 6 | E179: =_xlfn.IFS(A179="-","",ISTEXT(E178),1,TRUE,E178+1) -> 171 | R179: 0 | S179: 0 | T179: 0 | U179: 0 | V179: 0 | W179: 0 | X179: 0 | Y179: 0 | Z179: 0 | AA179: 0 | AB179: 0
A180: =_xlfn.IFS(EDATE($A$9,12)=A179+1,"-",TRUE,A179+1) -> 2025-06-21 | B180: =_xlfn.IFS(A180="-","",NOT(ISNUMBER(A181)),2,WEEKDAY(A180)=$H$3,1,TRUE,"") -> 1 | C180: =_xlfn.IFS(A180="-","",$A$9=$A180,"",DAY($A$9)=DAY(A180+1),DATEDIF($A$9,A180+1,"M"),TRUE,"") ->  | D180: =_xlfn.IFS(A180="-","",ISTEXT(D179),1,ISTEXT(B179),D179+1,TRUE,1) -> 7 | E180: =_xlfn.IFS(A180="-","",ISTEXT(E179),1,TRUE,E179+1) -> 172 | R180: 0 | S180: 0 | T180: 0 | U180: 0 | V180: 0 | W180: 0 | X180: 0 | Y180: 0 | Z180: 0 | AA180: 0 | AB180: 0
A181: =_xlfn.IFS(EDATE($A$9,12)=A180+1,"-",TRUE,A180+1) -> 2025-06-22 | B181: =_xlfn.IFS(A181="-","",NOT(ISNUMBER(A182)),2,WEEKDAY(A181)=$H$3,1,TRUE,"") ->  | C181: =_xlfn.IFS(A181="-","",$A$9=$A181,"",DAY($A$9)=DAY(A181+1),DATEDIF($A$9,A181+1,"M"),TRUE,"") ->  | D181: =_xlfn.IFS(A181="-","",ISTEXT(D180),1,ISTEXT(B180),D180+1,TRUE,1) -> 1 | E181: =_xlfn.IFS(A181="-","",ISTEXT(E180),1,TRUE,E180+1) -> 173 | R181: 0 | S181: 0 | T181: 0 | U181: 0 | V181: 0 | W181: 0 | X181: 0 | Y181: 0 | Z181: 0 | AA181: 0 | AB181: 0
A182: =_xlfn.IFS(EDATE($A$9,12)=A181+1,"-",TRUE,A181+1) -> 2025-06-23 | B182: =_xlfn.IFS(A182="-","",NOT(ISNUMBER(A183)),2,WEEKDAY(A182)=$H$3,1,TRUE,"") ->  | C182: =_xlfn.IFS(A182="-","",$A$9=$A182,"",DAY($A$9)=DAY(A182+1),DATEDIF($A$9,A182+1,"M"),TRUE,"") ->  | D182: =_xlfn.IFS(A182="-","",ISTEXT(D181),1,ISTEXT(B181),D181+1,TRUE,1) -> 2 | E182: =_xlfn.IFS(A182="-","",ISTEXT(E181),1,TRUE,E181+1) -> 174 | R182: 0 | S182: 0 | T182: 0 | U182: 0 | V182: 0 | W182: 0 | X182: 0 | Y182: 0 | Z182: 0 | AA182: 0 | AB182: 0
A183: =_xlfn.IFS(EDATE($A$9,12)=A182+1,"-",TRUE,A182+1) -> 2025-06-24 | B183: =_xlfn.IFS(A183="-","",NOT(ISNUMBER(A184)),2,WEEKDAY(A183)=$H$3,1,TRUE,"") ->  | C183: =_xlfn.IFS(A183="-","",$A$9=$A183,"",DAY($A$9)=DAY(A183+1),DATEDIF($A$9,A183+1,"M"),TRUE,"") ->  | D183: =_xlfn.IFS(A183="-","",ISTEXT(D182),1,ISTEXT(B182),D182+1,TRUE,1) -> 3 | E183: =_xlfn.IFS(A183="-","",ISTEXT(E182),1,TRUE,E182+1) -> 175 | R183: 0 | S183: 0 | T183: 0 | U183: 0 | V183: 0 | W183: 0 | X183: 0 | Y183: 0 | Z183: 0 | AA183: 0 | AB183: 0
A184: =_xlfn.IFS(EDATE($A$9,12)=A183+1,"-",TRUE,A183+1) -> 2025-06-25 | B184: =_xlfn.IFS(A184="-","",NOT(ISNUMBER(A185)),2,WEEKDAY(A184)=$H$3,1,TRUE,"") ->  | C184: =_xlfn.IFS(A184="-","",$A$9=$A184,"",DAY($A$9)=DAY(A184+1),DATEDIF($A$9,A184+1,"M"),TRUE,"") ->  | D184: =_xlfn.IFS(A184="-","",ISTEXT(D183),1,ISTEXT(B183),D183+1,TRUE,1) -> 4 | E184: =_xlfn.IFS(A184="-","",ISTEXT(E183),1,TRUE,E183+1) -> 176 | R184: 0 | S184: 0 | T184: 0 | U184: 0 | V184: 0 | W184: 0 | X184: 0 | Y184: 0 | Z184: 0 | AA184: 0 | AB184: 0
A185: =_xlfn.IFS(EDATE($A$9,12)=A184+1,"-",TRUE,A184+1) -> 2025-06-26 | B185: =_xlfn.IFS(A185="-","",NOT(ISNUMBER(A186)),2,WEEKDAY(A185)=$H$3,1,TRUE,"") ->  | C185: =_xlfn.IFS(A185="-","",$A$9=$A185,"",DAY($A$9)=DAY(A185+1),DATEDIF($A$9,A185+1,"M"),TRUE,"") ->  | D185: =_xlfn.IFS(A185="-","",ISTEXT(D184),1,ISTEXT(B184),D184+1,TRUE,1) -> 5 | E185: =_xlfn.IFS(A185="-","",ISTEXT(E184),1,TRUE,E184+1) -> 177 | R185: 0 | S185: 0 | T185: 0 | U185: 0 | V185: 0 | W185: 0 | X185: 0 | Y185: 0 | Z185: 0 | AA185: 0 | AB185: 0
A186: =_xlfn.IFS(EDATE($A$9,12)=A185+1,"-",TRUE,A185+1) -> 2025-06-27 | B186: =_xlfn.IFS(A186="-","",NOT(ISNUMBER(A187)),2,WEEKDAY(A186)=$H$3,1,TRUE,"") ->  | C186: =_xlfn.IFS(A186="-","",$A$9=$A186,"",DAY($A$9)=DAY(A186+1),DATEDIF($A$9,A186+1,"M"),TRUE,"") ->  | D186: =_xlfn.IFS(A186="-","",ISTEXT(D185),1,ISTEXT(B185),D185+1,TRUE,1) -> 6 | E186: =_xlfn.IFS(A186="-","",ISTEXT(E185),1,TRUE,E185+1) -> 178 | R186: 0 | S186: 0 | T186: 0 | U186: 0 | V186: 0 | W186: 0 | X186: 0 | Y186: 0 | Z186: 0 | AA186: 0 | AB186: 0
A187: =_xlfn.IFS(EDATE($A$9,12)=A186+1,"-",TRUE,A186+1) -> 2025-06-28 | B187: =_xlfn.IFS(A187="-","",NOT(ISNUMBER(A188)),2,WEEKDAY(A187)=$H$3,1,TRUE,"") -> 1 | C187: =_xlfn.IFS(A187="-","",$A$9=$A187,"",DAY($A$9)=DAY(A187+1),DATEDIF($A$9,A187+1,"M"),TRUE,"") ->  | D187: =_xlfn.IFS(A187="-","",ISTEXT(D186),1,ISTEXT(B186),D186+1,TRUE,1) -> 7 | E187: =_xlfn.IFS(A187="-","",ISTEXT(E186),1,TRUE,E186+1) -> 179 | R187: 0 | S187: 0 | T187: 0 | U187: 0 | V187: 0 | W187: 0 | X187: 0 | Y187: 0 | Z187: 0 | AA187: 0 | AB187: 0
A188: =_xlfn.IFS(EDATE($A$9,12)=A187+1,"-",TRUE,A187+1) -> 2025-06-29 | B188: =_xlfn.IFS(A188="-","",NOT(ISNUMBER(A189)),2,WEEKDAY(A188)=$H$3,1,TRUE,"") ->  | C188: =_xlfn.IFS(A188="-","",$A$9=$A188,"",DAY($A$9)=DAY(A188+1),DATEDIF($A$9,A188+1,"M"),TRUE,"") ->  | D188: =_xlfn.IFS(A188="-","",ISTEXT(D187),1,ISTEXT(B187),D187+1,TRUE,1) -> 1 | E188: =_xlfn.IFS(A188="-","",ISTEXT(E187),1,TRUE,E187+1) -> 180 | R188: 0 | S188: 0 | T188: 0 | U188: 0 | V188: 0 | W188: 0 | X188: 0 | Y188: 0 | Z188: 0 | AA188: 0 | AB188: 0
A189: =_xlfn.IFS(EDATE($A$9,12)=A188+1,"-",TRUE,A188+1) -> 2025-06-30 | B189: =_xlfn.IFS(A189="-","",NOT(ISNUMBER(A190)),2,WEEKDAY(A189)=$H$3,1,TRUE,"") ->  | C189: =_xlfn.IFS(A189="-","",$A$9=$A189,"",DAY($A$9)=DAY(A189+1),DATEDIF($A$9,A189+1,"M"),TRUE,"") -> 6 | D189: =_xlfn.IFS(A189="-","",ISTEXT(D188),1,ISTEXT(B188),D188+1,TRUE,1) -> 2 | E189: =_xlfn.IFS(A189="-","",ISTEXT(E188),1,TRUE,E188+1) -> 181 | R189: 0 | S189: 0 | T189: 0 | U189: 0 | V189: 0 | W189: 0 | X189: 0 | Y189: 0 | Z189: 0 | AA189: 0 | AB189: 0
A190: =_xlfn.IFS(EDATE($A$9,12)=A189+1,"-",TRUE,A189+1) -> 2025-07-01 | B190: =_xlfn.IFS(A190="-","",NOT(ISNUMBER(A191)),2,WEEKDAY(A190)=$H$3,1,TRUE,"") ->  | C190: =_xlfn.IFS(A190="-","",$A$9=$A190,"",DAY($A$9)=DAY(A190+1),DATEDIF($A$9,A190+1,"M"),TRUE,"") ->  | D190: =_xlfn.IFS(A190="-","",ISTEXT(D189),1,ISTEXT(B189),D189+1,TRUE,1) -> 3 | E190: =_xlfn.IFS(A190="-","",ISTEXT(E189),1,TRUE,E189+1) -> 182 | R190: 0 | S190: 0 | T190: 0 | U190: 0 | V190: 0 | W190: 0 | X190: 0 | Y190: 0 | Z190: 0 | AA190: 0 | AB190: 0
A191: =_xlfn.IFS(EDATE($A$9,12)=A190+1,"-",TRUE,A190+1) -> 2025-07-02 | B191: =_xlfn.IFS(A191="-","",NOT(ISNUMBER(A192)),2,WEEKDAY(A191)=$H$3,1,TRUE,"") ->  | C191: =_xlfn.IFS(A191="-","",$A$9=$A191,"",DAY($A$9)=DAY(A191+1),DATEDIF($A$9,A191+1,"M"),TRUE,"") ->  | D191: =_xlfn.IFS(A191="-","",ISTEXT(D190),1,ISTEXT(B190),D190+1,TRUE,1) -> 4 | E191: =_xlfn.IFS(A191="-","",ISTEXT(E190),1,TRUE,E190+1) -> 183 | R191: 0 | S191: 0 | T191: 0 | U191: 0 | V191: 0 | W191: 0 | X191: 0 | Y191: 0 | Z191: 0 | AA191: 0 | AB191: 0
A192: =_xlfn.IFS(EDATE($A$9,12)=A191+1,"-",TRUE,A191+1) -> 2025-07-03 | B192: =_xlfn.IFS(A192="-","",NOT(ISNUMBER(A193)),2,WEEKDAY(A192)=$H$3,1,TRUE,"") ->  | C192: =_xlfn.IFS(A192="-","",$A$9=$A192,"",DAY($A$9)=DAY(A192+1),DATEDIF($A$9,A192+1,"M"),TRUE,"") ->  | D192: =_xlfn.IFS(A192="-","",ISTEXT(D191),1,ISTEXT(B191),D191+1,TRUE,1) -> 5 | E192: =_xlfn.IFS(A192="-","",ISTEXT(E191),1,TRUE,E191+1) -> 184 | R192: 0 | S192: 0 | T192: 0 | U192: 0 | V192: 0 | W192: 0 | X192: 0 | Y192: 0 | Z192: 0 | AA192: 0 | AB192: 0
A193: =_xlfn.IFS(EDATE($A$9,12)=A192+1,"-",TRUE,A192+1) -> 2025-07-04 | B193: =_xlfn.IFS(A193="-","",NOT(ISNUMBER(A194)),2,WEEKDAY(A193)=$H$3,1,TRUE,"") ->  | C193: =_xlfn.IFS(A193="-","",$A$9=$A193,"",DAY($A$9)=DAY(A193+1),DATEDIF($A$9,A193+1,"M"),TRUE,"") ->  | D193: =_xlfn.IFS(A193="-","",ISTEXT(D192),1,ISTEXT(B192),D192+1,TRUE,1) -> 6 | E193: =_xlfn.IFS(A193="-","",ISTEXT(E192),1,TRUE,E192+1) -> 185 | R193: 0 | S193: 0 | T193: 0 | U193: 0 | V193: 0 | W193: 0 | X193: 0 | Y193: 0 | Z193: 0 | AA193: 0 | AB193: 0
A194: =_xlfn.IFS(EDATE($A$9,12)=A193+1,"-",TRUE,A193+1) -> 2025-07-05 | B194: =_xlfn.IFS(A194="-","",NOT(ISNUMBER(A195)),2,WEEKDAY(A194)=$H$3,1,TRUE,"") -> 1 | C194: =_xlfn.IFS(A194="-","",$A$9=$A194,"",DAY($A$9)=DAY(A194+1),DATEDIF($A$9,A194+1,"M"),TRUE,"") ->  | D194: =_xlfn.IFS(A194="-","",ISTEXT(D193),1,ISTEXT(B193),D193+1,TRUE,1) -> 7 | E194: =_xlfn.IFS(A194="-","",ISTEXT(E193),1,TRUE,E193+1) -> 186 | R194: 0 | S194: 0 | T194: 0 | U194: 0 | V194: 0 | W194: 0 | X194: 0 | Y194: 0 | Z194: 0 | AA194: 0 | AB194: 0
A195: =_xlfn.IFS(EDATE($A$9,12)=A194+1,"-",TRUE,A194+1) -> 2025-07-06 | B195: =_xlfn.IFS(A195="-","",NOT(ISNUMBER(A196)),2,WEEKDAY(A195)=$H$3,1,TRUE,"") ->  | C195: =_xlfn.IFS(A195="-","",$A$9=$A195,"",DAY($A$9)=DAY(A195+1),DATEDIF($A$9,A195+1,"M"),TRUE,"") ->  | D195: =_xlfn.IFS(A195="-","",ISTEXT(D194),1,ISTEXT(B194),D194+1,TRUE,1) -> 1 | E195: =_xlfn.IFS(A195="-","",ISTEXT(E194),1,TRUE,E194+1) -> 187 | R195: 0 | S195: 0 | T195: 0 | U195: 0 | V195: 0 | W195: 0 | X195: 0 | Y195: 0 | Z195: 0 | AA195: 0 | AB195: 0
A196: =_xlfn.IFS(EDATE($A$9,12)=A195+1,"-",TRUE,A195+1) -> 2025-07-07 | B196: =_xlfn.IFS(A196="-","",NOT(ISNUMBER(A197)),2,WEEKDAY(A196)=$H$3,1,TRUE,"") ->  | C196: =_xlfn.IFS(A196="-","",$A$9=$A196,"",DAY($A$9)=DAY(A196+1),DATEDIF($A$9,A196+1,"M"),TRUE,"") ->  | D196: =_xlfn.IFS(A196="-","",ISTEXT(D195),1,ISTEXT(B195),D195+1,TRUE,1) -> 2 | E196: =_xlfn.IFS(A196="-","",ISTEXT(E195),1,TRUE,E195+1) -> 188 | R196: 0 | S196: 0 | T196: 0 | U196: 0 | V196: 0 | W196: 0 | X196: 0 | Y196: 0 | Z196: 0 | AA196: 0 | AB196: 0
A197: =_xlfn.IFS(EDATE($A$9,12)=A196+1,"-",TRUE,A196+1) -> 2025-07-08 | B197: =_xlfn.IFS(A197="-","",NOT(ISNUMBER(A198)),2,WEEKDAY(A197)=$H$3,1,TRUE,"") ->  | C197: =_xlfn.IFS(A197="-","",$A$9=$A197,"",DAY($A$9)=DAY(A197+1),DATEDIF($A$9,A197+1,"M"),TRUE,"") ->  | D197: =_xlfn.IFS(A197="-","",ISTEXT(D196),1,ISTEXT(B196),D196+1,TRUE,1) -> 3 | E197: =_xlfn.IFS(A197="-","",ISTEXT(E196),1,TRUE,E196+1) -> 189 | R197: 0 | S197: 0 | T197: 0 | U197: 0 | V197: 0 | W197: 0 | X197: 0 | Y197: 0 | Z197: 0 | AA197: 0 | AB197: 0
A198: =_xlfn.IFS(EDATE($A$9,12)=A197+1,"-",TRUE,A197+1) -> 2025-07-09 | B198: =_xlfn.IFS(A198="-","",NOT(ISNUMBER(A199)),2,WEEKDAY(A198)=$H$3,1,TRUE,"") ->  | C198: =_xlfn.IFS(A198="-","",$A$9=$A198,"",DAY($A$9)=DAY(A198+1),DATEDIF($A$9,A198+1,"M"),TRUE,"") ->  | D198: =_xlfn.IFS(A198="-","",ISTEXT(D197),1,ISTEXT(B197),D197+1,TRUE,1) -> 4 | E198: =_xlfn.IFS(A198="-","",ISTEXT(E197),1,TRUE,E197+1) -> 190 | R198: 0 | S198: 0 | T198: 0 | U198: 0 | V198: 0 | W198: 0 | X198: 0 | Y198: 0 | Z198: 0 | AA198: 0 | AB198: 0
A199: =_xlfn.IFS(EDATE($A$9,12)=A198+1,"-",TRUE,A198+1) -> 2025-07-10 | B199: =_xlfn.IFS(A199="-","",NOT(ISNUMBER(A200)),2,WEEKDAY(A199)=$H$3,1,TRUE,"") ->  | C199: =_xlfn.IFS(A199="-","",$A$9=$A199,"",DAY($A$9)=DAY(A199+1),DATEDIF($A$9,A199+1,"M"),TRUE,"") ->  | D199: =_xlfn.IFS(A199="-","",ISTEXT(D198),1,ISTEXT(B198),D198+1,TRUE,1) -> 5 | E199: =_xlfn.IFS(A199="-","",ISTEXT(E198),1,TRUE,E198+1) -> 191 | R199: 0 | S199: 0 | T199: 0 | U199: 0 | V199: 0 | W199: 0 | X199: 0 | Y199: 0 | Z199: 0 | AA199: 0 | AB199: 0
A200: =_xlfn.IFS(EDATE($A$9,12)=A199+1,"-",TRUE,A199+1) -> 2025-07-11 | B200: =_xlfn.IFS(A200="-","",NOT(ISNUMBER(A201)),2,WEEKDAY(A200)=$H$3,1,TRUE,"") ->  | C200: =_xlfn.IFS(A200="-","",$A$9=$A200,"",DAY($A$9)=DAY(A200+1),DATEDIF($A$9,A200+1,"M"),TRUE,"") ->  | D200: =_xlfn.IFS(A200="-","",ISTEXT(D199),1,ISTEXT(B199),D199+1,TRUE,1) -> 6 | E200: =_xlfn.IFS(A200="-","",ISTEXT(E199),1,TRUE,E199+1) -> 192 | R200: 0 | S200: 0 | T200: 0 | U200: 0 | V200: 0 | W200: 0 | X200: 0 | Y200: 0 | Z200: 0 | AA200: 0 | AB200: 0
... 191 more rows

Sheet （非表示・計算用）1年変形 (hidden)
F1: 計算条件 | T1: 入力欄 | W1: 計算結果欄
F2: 週起算日 | H2: ='1年変形'!H2 -> 1 | I2: 1:日 2:月 3:火 4:水 5:木 6:金 7:土 | L2: 労働時間制 | N2: ='1年変形'!N2 -> 1年変形 | O2: 1年変形（固定） | U2: 入力可 | X2: 労基法第37条の割増賃金の対象となる時間
F3: 週締め日 | H3: ='1年変形'!H3 -> 7 | I3: 週起算日から自動判定 | L3: 端数処理（切捨） | N3: ='1年変形'!N3 -> なし | O3: 年法定労働時間の端数処理
F4: 週法定労働時間 | H4: ='1年変形'!H4 -> 40 | I4: 40時間（固定） | L4: 年法定労働時間 | N4: ='1年変形'!N4 -> 86.90416667 | O4: 40時間×暦日数÷7 | U4: 入力必須 | X4: 上記以外（給与や割増賃金の計算に使用する時間）
G5: =IF(G374>N3,"年の所定労働時間が週平均40時間を超えています。","") ->  | U5: 入力不可
A6: 勤怠状況 | G6: =IF(G375>N4,"年の所定労働時間が週平均40時間を超えています。","") -> 
B7: 集計用 | F7: 勤務予定 | H7: 振替 | J7: 勤務実績 | T7: 時間外労働 | X7: 時間外労働内訳 | AC7: 法定内労働 | AH7: 控除 | AL7: 実働時間（時間帯別） | AQ7: 1日時間外 | AS7: 週時間外 | AX7: 年時間外 | BA7: 60時間超
A8: 年月日 | B8: 週 締日 | C8: 月 締日 | D8: 週 日数 | E8: 期間日数 | F8: 休日 | G8: 所定 労働時間 | H8: 振替 | I8: 振替後の所定 労働時間 | J8: 始業時刻 | K8: 終業時刻 | L8: 中抜時間 (0～5時) | M8: 中抜時間 (5～22時) | N8: 中抜時間 (22～24時) | O8: 中抜時間 (24～翌5時) | P8: 中抜時間 (翌5時～) | Q8: 有給休暇 時間 | R8: 実働時間 | S8: 法定休日 | T8: 時間外(日) | U8: 時間外 (週) | V8: 時間外 (年) | W8: 時間外 (合計) | X8: 勤務日 (60H以下) | Y8: 所定休日 (60H以下) | Z8: 勤務日 (60H超) | AA8: 所定休日 (60H超) | AB8: 深夜 | AC8: 所定内 | AD8: 振替出勤 | AE8: 所定外 | AF8: 所定休日 | AG8: 法定内 （合計） | AH8: 欠勤等 | AI8: 振替休日 | AJ8: 100％ 相殺 | AK8: 控除 (合計) | AL8: 実働時間 (0～5時) | AM8: 実働時間 (5～22時) | AN8: 実働時間 (22～24時) | AO8: 実働時間 (24～翌5時) | AP8: 実働時間 (翌5時～) | AQ8: 法定休日 以外 | AR8: 1日法定 労働時間 | AS8: 週所定 労働時間 | AT8: 週法定 労働時間 | AU8: 法定休日 以外 (週計) | AV8: 1日時間外(週計) | AW8: 前日まで 週時間外 (週計) | AX8: 法定休日以外 (年計) | AY8: 1日・週 時間外 (年計) | AZ8: 前日まで年時間外 (年計) | BA8: 時間外 (月計)
A9: 2024-01-01 | D9: 1 | E9: 1 | R9: =K9-J9-SUM(L9:P9) -> 0 | S9: =IF(AND(F9="法定",H9<>"振出"),SUM(AL9:AN9),0)+IF(F10="法定",AO9+AP9,0) -> 0 | T9: =_xlfn.LET(_xlpm.値,MAX(0,AQ9-IF(AR9=0,8/24,AR9)),IF(_xlpm.値<TIME(0,0,1),0,_xlpm.値)) -> 0 | U9: =_xlfn.LET(_xlpm.値,IF($A9="-",0,MAX(0,AU9-AV9-AW9-AT9)),IF(_xlpm.値<TIME(0,0,1),0,_xlpm.値)) -> 0 | V9: =MAX(0,AX9-AY9-AZ9-$N$4) -> 0 | W9: =SUM(T9,U9,V9) -> 0 | X9: =_xlfn.IFS(AND(F9="所定",H9<>"振出"),0,BA9>60/24,W9-MIN(W9,BA9-60/24),TRUE,W9) -> 0 | Y9: =_xlfn.IFS(OR(F9<>"所定",H9="振出"),0,BA9>60/24,W9-MIN(W9,BA9-60/24),TRUE,W9) -> 0 | Z9: =IF(AND(F9="所定",H9<>"振出"),0,W9-X9) -> 0 | AA9: =IF(OR(F9<>"所定",H9="振出"),0,W9-Y9) -> 0 | AB9: =SUM(AL9,AN9:AO9) -> 0 | AC9: =IF(G9="",0,MIN(AG9,G9-Q9)) -> 0 | AD9: =IF(H9="振出",MIN(AG9,I9-Q9),0) -> 0 | AE9: =_xlfn.LET(_xlpm.値,AG9-AF9-AC9-AD9,IF(_xlpm.値<TIME(0,0,1),0,_xlpm.値)) -> 0 | AF9: =_xlfn.LET(_xlpm.値,IF(AND(F9="所定",H9<>"振出"),MAX(0,AG9-AC9),0),IF(_xlpm.値<TIME(0,0,1),0,_xlpm.値)) -> 0 | AG9: =_xlfn.LET(_xlpm.値,MAX(0,AQ9-W9),IF(_xlpm.値<TIME(0,0,1),0,_xlpm.値)) -> 0 | AH9: =_xlfn.IFS(H9="振休",0,R9<G9,MAX(0,G9-R9-Q9),TRUE,0) -> 0 | AI9: =IF(H9="振休",MAX(0,G9-AG9-Q9),0) -> 0 | AJ9: =_xlfn.LET(_xlpm.値,IF(G9="",0,G9-Q9-AC9-AH9-AI9),IF(_xlpm.値<TIME(0,0,1),0,_xlpm.値)) -> 0 | AK9: =_xlfn.LET(_xlpm.値,MAX(0,G9-Q9-R9)+AJ9,IF(_xlpm.値<TIME(0,0,1),0,_xlpm.値)) -> 0 | AL9: =IF(J9="",0,MAX(0,MIN(5/24,K9)-MAX(0,J9)-L9)) -> 0 | AM9: =IF(J9="",0,MAX(0,MIN(22/24,K9)-MAX(5/24,J9)-M9)) -> 0 | AN9: =IF(J9="",0,MAX(0,MIN(24/24,K9)-MAX(22/24,J9)-N9)) -> 0 | AO9: =IF(J9="",0,MAX(0,MIN(29/24,K9)-MAX(24/24,J9)-O9)) -> 0 | AP9: =IF(J9="",0,MAX(0,MIN(48/24,K9)-MAX(29/24,J9)-P9)) -> 0 | AQ9: =R9-S9 -> 0 | AR9: =_xlfn.IFS(A9="-",0,H9="振出",IF($N$2="原則",8/24,MAX(I9,8/24)),F9="法定",0,TRUE,IF($N$2="原則",8/24,MAX(G9,8/24))) -> 0.3333333333 | AS9: =_xlfn.IFS(A9="-",0,B9="",AS10,TRUE,SUM(OFFSET(G9,D9*-1+1,0,D9,1))) -> 0 | AT9: =_xlfn.IFS(A9="-",0,B9="",AT10,$N$2="原則",$H$4/24,TRUE,MAX(AS9,$H$4/24*D9/7)) -> 1.428571429 | AU9: =IF(A9="-",0,SUM(OFFSET(AQ9,D9*-1+1,0,D9,1))) -> 0 | AV9: =IF(A9="-",0,SUM(OFFSET(T9,$D9*-1+1,0,D9,1))) -> 0 | AW9: =IF(OR($D9=1,A9="-"),0,SUM(OFFSET(U9,D9*-1+1,0,D9-1,1))) -> 0 | AX9: =IF(A9="-",0,SUM(AQ$9:AQ9)) -> 0 | AY9: =IF(A9="-",0,SUM(T$9:T9)+SUM(U$9:U9)) -> 0 | AZ9: =IF(ISTEXT(V8),0,SUM(V8:V$9)) -> 0 | BA9: =IF(C8<>"",W9,BA8+W9) -> 0
A10: 2024-01-02 | D10: 2 | E10: 2 | R10: =K10-J10-SUM(L10:P10) -> 0 | S10: 0 | T10: =_xlfn.LET(_xlpm.値,MAX(0,AQ10-IF(AR10=0,8/24,AR10)),IF(_xlpm.値<TIME(0,0,1),0,_xlpm.値)) -> 0 | U10: =_xlfn.LET(_xlpm.値,IF($A10="-",0,MAX(0,AU10-AV10-AW10-AT10)),IF(_xlpm.値<TIME(0,0,1),0,_xlpm.値)) -> 0 | V10: =MAX(0,AX10-AY10-AZ10-$N$4) -> 0 | W10: =SUM(T10,U10,V10) -> 0 | X10: 0 | Y10: 0 | Z10: 0 | AA10: 0 | AB10: =SUM(AL10,AN10:AO10) -> 0 | AC10: 0 | AD10: 0 | AE10: =_xlfn.LET(_xlpm.値,AG10-AF10-AC10-AD10,IF(_xlpm.値<TIME(0,0,1),0,_xlpm.値)) -> 0 | AF10: 0 | AG10: =_xlfn.LET(_xlpm.値,MAX(0,AQ10-W10),IF(_xlpm.値<TIME(0,0,1),0,_xlpm.値)) -> 0 | AH10: 0 | AI10: 0 | AJ10: 0 | AK10: 0 | AL10: 0 | AM10: 0 | AN10: 0 | AO10: 0 | AP10: 0 | AQ10: 0 | AR10: 0.3333333333 | AS10: 0 | AT10: 1.428571429 | AU10: 0 | AV10: 0 | AW10: 0 | AX10: =IF(A10="-",0,SUM(AQ$9:AQ10)) -> 0 | AY10: =IF(A10="-",0,SUM(T$9:T10)+SUM(U$9:U10)) -> 0 | AZ10: =IF(ISTEXT(V9),0,SUM(V9:V$9)) -> 0 | BA10: 0
A11: 2024-01-03 | D11: 3 | E11: 3 | R11: 0 | S11: 0 | T11: 0 | U11: 0 | V11: 0 | W11: 0 | X11: 0 | Y11: 0 | Z11: 0 | AA11: 0 | AB11: 0 | AC11: 0 | AD11: 0 | AE11: 0 | AF11: 0 | AG11: 0 | AH11: 0 | AI11: 0 | AJ11: 0 | AK11: 0 | AL11: 0 | AM11: 0 | AN11: 0 | AO11: 0 | AP11: 0 | AQ11: 0 | AR11: 0.3333333333 | AS11: 0 | AT11: 1.428571429 | AU11: 0 | AV11: 0 | AW11: 0 | AX11: =IF(A11="-",0,SUM(AQ$9:AQ11)) -> 0 | AY11: =IF(A11="-",0,SUM(T$9:T11)+SUM(U$9:U11)) -> 0 | AZ11: =IF(ISTEXT(V10),0,SUM(V$9:V10)) -> 0 | BA11: 0
A12: 2024-01-04 | D12: 4 | E12: 4 | R12: 0 | S12: 0 | T12: 0 | U12: 0 | V12: 0 | W12: 0 | X12: 0 | Y12: 0 | Z12: 0 | AA12: 0 | AB12: 0 | AC12: 0 | AD12: 0 | AE12: 0 | AF12: 0 | AG12: 0 | AH12: 0 | AI12: 0 | AJ12: 0 | AK12: 0 | AL12: 0 | AM12: 0 | AN12: 0 | AO12: 0 | AP12: 0 | AQ12: 0 | AR12: 0.3333333333 | AS12: 0 | AT12: 1.428571429 | AU12: 0 | AV12: 0 | AW12: 0 | AX12: =IF(A12="-",0,SUM(AQ$9:AQ12)) -> 0 | AY12: =IF(A12="-",0,SUM(T$9:T12)+SUM(U$9:U12)) -> 0 | AZ12: =IF(ISTEXT(V11),0,SUM(V$9:V11)) -> 0 | BA12: 0
A13: 2024-01-05 | D13: 5 | E13: 5 | R13: 0 | S13: 0 | T13: 0 | U13: 0 | V13: 0 | W13: 0 | X13: 0 | Y13: 0 | Z13: 0 | AA13: 0 | AB13: 0 | AC13: 0 | AD13: 0 | AE13: 0 | AF13: 0 | AG13: 0 | AH13: 0 | AI13: 0 | AJ13: 0 | AK13: 0 | AL13: 0 | AM13: 0 | AN13: 0 | AO13: 0 | AP13: 0 | AQ13: 0 | AR13: 0.3333333333 | AS13: 0 | AT13: 1.428571429 | AU13: 0 | AV13: 0 | AW13: 0 | AX13: =IF(A13="-",0,SUM(AQ$9:AQ13)) -> 0 | AY13: =IF(A13="-",0,SUM(T$9:T13)+SUM(U$9:U13)) -> 0 | AZ13: =IF(ISTEXT(V12),0,SUM(V$9:V12)) -> 0 | BA13: 0
A14: 2024-01-06 | B14: 1 | D14: 6 | E14: 6 | R14: 0 | S14: 0 | T14: 0 | U14: 0 | V14: 0 | W14: 0 | X14: 0 | Y14: 0 | Z14: 0 | AA14: 0 | AB14: 0 | AC14: 0 | AD14: 0 | AE14: 0 | AF14: 0 | AG14: 0 | AH14: 0 | AI14: 0 | AJ14: 0 | AK14: 0 | AL14: 0 | AM14: 0 | AN14: 0 | AO14: 0 | AP14: 0 | AQ14: 0 | AR14: 0.3333333333 | AS14: 0 | AT14: 1.428571429 | AU14: 0 | AV14: 0 | AW14: 0 | AX14: =IF(A14="-",0,SUM(AQ$9:AQ14)) -> 0 | AY14: =IF(A14="-",0,SUM(T$9:T14)+SUM(U$9:U14)) -> 0 | AZ14: =IF(ISTEXT(V13),0,SUM(V$9:V13)) -> 0 | BA14: 0
A15: 2024-01-07 | D15: 1 | E15: 7 | R15: 0 | S15: 0 | T15: 0 | U15: 0 | V15: 0 | W15: 0 | X15: 0 | Y15: 0 | Z15: 0 | AA15: 0 | AB15: 0 | AC15: 0 | AD15: 0 | AE15: 0 | AF15: 0 | AG15: 0 | AH15: 0 | AI15: 0 | AJ15: 0 | AK15: 0 | AL15: 0 | AM15: 0 | AN15: 0 | AO15: 0 | AP15: 0 | AQ15: 0 | AR15: 0.3333333333 | AS15: 0 | AT15: 1.666666667 | AU15: 0 | AV15: 0 | AW15: 0 | AX15: =IF(A15="-",0,SUM(AQ$9:AQ15)) -> 0 | AY15: =IF(A15="-",0,SUM(T$9:T15)+SUM(U$9:U15)) -> 0 | AZ15: =IF(ISTEXT(V14),0,SUM(V$9:V14)) -> 0 | BA15: 0
A16: 2024-01-08 | D16: 2 | E16: 8 | R16: 0 | S16: 0 | T16: 0 | U16: 0 | V16: 0 | W16: 0 | X16: 0 | Y16: 0 | Z16: 0 | AA16: 0 | AB16: 0 | AC16: 0 | AD16: 0 | AE16: 0 | AF16: 0 | AG16: 0 | AH16: 0 | AI16: 0 | AJ16: 0 | AK16: 0 | AL16: 0 | AM16: 0 | AN16: 0 | AO16: 0 | AP16: 0 | AQ16: 0 | AR16: 0.3333333333 | AS16: 0 | AT16: 1.666666667 | AU16: 0 | AV16: 0 | AW16: 0 | AX16: =IF(A16="-",0,SUM(AQ$9:AQ16)) -> 0 | AY16: =IF(A16="-",0,SUM(T$9:T16)+SUM(U$9:U16)) -> 0 | AZ16: =IF(ISTEXT(V15),0,SUM(V$9:V15)) -> 0 | BA16: 0
A17: 2024-01-09 | D17: 3 | E17: 9 | R17: 0 | S17: 0 | T17: 0 | U17: 0 | V17: 0 | W17: 0 | X17: 0 | Y17: 0 | Z17: 0 | AA17: 0 | AB17: 0 | AC17: 0 | AD17: 0 | AE17: 0 | AF17: 0 | AG17: 0 | AH17: 0 | AI17: 0 | AJ17: 0 | AK17: 0 | AL17: 0 | AM17: 0 | AN17: 0 | AO17: 0 | AP17: 0 | AQ17: 0 | AR17: 0.3333333333 | AS17: 0 | AT17: 1.666666667 | AU17: 0 | AV17: 0 | AW17: 0 | AX17: =IF(A17="-",0,SUM(AQ$9:AQ17)) -> 0 | AY17: =IF(A17="-",0,SUM(T$9:T17)+SUM(U$9:U17)) -> 0 | AZ17: =IF(ISTEXT(V16),0,SUM(V$9:V16)) -> 0 | BA17: 0
A18: 2024-01-10 | D18: 4 | E18: 10 | R18: 0 | S18: 0 | T18: 0 | U18: 0 | V18: 0 | W18: 0 | X18: 0 | Y18: 0 | Z18: 0 | AA18: 0 | AB18: 0 | AC18: 0 | AD18: 0 | AE18: 0 | AF18: 0 | AG18: 0 | AH18: 0 | AI18: 0 | AJ18: 0 | AK18: 0 | AL18: 0 | AM18: 0 | AN18: 0 | AO18: 0 | AP18: 0 | AQ18: 0 | AR18: 0.3333333333 | AS18: 0 | AT18: 1.666666667 | AU18: 0 | AV18: 0 | AW18: 0 | AX18: =IF(A18="-",0,SUM(AQ$9:AQ18)) -> 0 | AY18: =IF(A18="-",0,SUM(T$9:T18)+SUM(U$9:U18)) -> 0 | AZ18: =IF(ISTEXT(V17),0,SUM(V$9:V17)) -> 0 | BA18: 0
A19: 2024-01-11 | D19: 5 | E19: 11 | R19: 0 | S19: 0 | T19: 0 | U19: 0 | V19: 0 | W19: 0 | X19: 0 | Y19: 0 | Z19: 0 | AA19: 0 | AB19: 0 | AC19: 0 | AD19: 0 | AE19: 0 | AF19: 0 | AG19: 0 | AH19: 0 | AI19: 0 | AJ19: 0 | AK19: 0 | AL19: 0 | AM19: 0 | AN19: 0 | AO19: 0 | AP19: 0 | AQ19: 0 | AR19: 0.3333333333 | AS19: 0 | AT19: 1.666666667 | AU19: 0 | AV19: 0 | AW19: 0 | AX19: =IF(A19="-",0,SUM(AQ$9:AQ19)) -> 0 | AY19: =IF(A19="-",0,SUM(T$9:T19)+SUM(U$9:U19)) -> 0 | AZ19: =IF(ISTEXT(V18),0,SUM(V$9:V18)) -> 0 | BA19: 0
A20: 2024-01-12 | D20: 6 | E20: 12 | R20: 0 | S20: 0 | T20: 0 | U20: 0 | V20: 0 | W20: 0 | X20: 0 | Y20: 0 | Z20: 0 | AA20: 0 | AB20: 0 | AC20: 0 | AD20: 0 | AE20: 0 | AF20: 0 | AG20: 0 | AH20: 0 | AI20: 0 | AJ20: 0 | AK20: 0 | AL20: 0 | AM20: 0 | AN20: 0 | AO20: 0 | AP20: 0 | AQ20: 0 | AR20: 0.3333333333 | AS20: 0 | AT20: 1.666666667 | AU20: 0 | AV20: 0 | AW20: 0 | AX20: =IF(A20="-",0,SUM(AQ$9:AQ20)) -> 0 | AY20: =IF(A20="-",0,SUM(T$9:T20)+SUM(U$9:U20)) -> 0 | AZ20: =IF(ISTEXT(V19),0,SUM(V$9:V19)) -> 0 | BA20: 0
A21: 2024-01-13 | B21: 1 | D21: 7 | E21: 13 | R21: 0 | S21: 0 | T21: 0 | U21: 0 | V21: 0 | W21: 0 | X21: 0 | Y21: 0 | Z21: 0 | AA21: 0 | AB21: 0 | AC21: 0 | AD21: 0 | AE21: 0 | AF21: 0 | AG21: 0 | AH21: 0 | AI21: 0 | AJ21: 0 | AK21: 0 | AL21: 0 | AM21: 0 | AN21: 0 | AO21: 0 | AP21: 0 | AQ21: 0 | AR21: 0.3333333333 | AS21: 0 | AT21: 1.666666667 | AU21: 0 | AV21: 0 | AW21: 0 | AX21: =IF(A21="-",0,SUM(AQ$9:AQ21)) -> 0 | AY21: =IF(A21="-",0,SUM(T$9:T21)+SUM(U$9:U21)) -> 0 | AZ21: =IF(ISTEXT(V20),0,SUM(V$9:V20)) -> 0 | BA21: 0
A22: 2024-01-14 | D22: 1 | E22: 14 | R22: 0 | S22: 0 | T22: 0 | U22: 0 | V22: 0 | W22: 0 | X22: 0 | Y22: 0 | Z22: 0 | AA22: 0 | AB22: 0 | AC22: 0 | AD22: 0 | AE22: 0 | AF22: 0 | AG22: 0 | AH22: 0 | AI22: 0 | AJ22: 0 | AK22: 0 | AL22: 0 | AM22: 0 | AN22: 0 | AO22: 0 | AP22: 0 | AQ22: 0 | AR22: 0.3333333333 | AS22: 0 | AT22: 1.666666667 | AU22: 0 | AV22: 0 | AW22: 0 | AX22: =IF(A22="-",0,SUM(AQ$9:AQ22)) -> 0 | AY22: =IF(A22="-",0,SUM(T$9:T22)+SUM(U$9:U22)) -> 0 | AZ22: =IF(ISTEXT(V21),0,SUM(V$9:V21)) -> 0 | BA22: 0
A23: 2024-01-15 | D23: 2 | E23: 15 | R23: 0 | S23: 0 | T23: 0 | U23: 0 | V23: 0 | W23: 0 | X23: 0 | Y23: 0 | Z23: 0 | AA23: 0 | AB23: 0 | AC23: 0 | AD23: 0 | AE23: 0 | AF23: 0 | AG23: 0 | AH23: 0 | AI23: 0 | AJ23: 0 | AK23: 0 | AL23: 0 | AM23: 0 | AN23: 0 | AO23: 0 | AP23: 0 | AQ23: 0 | AR23: 0.3333333333 | AS23: 0 | AT23: 1.666666667 | AU23: 0 | AV23: 0 | AW23: 0 | AX23: =IF(A23="-",0,SUM(AQ$9:AQ23)) -> 0 | AY23: =IF(A23="-",0,SUM(T$9:T23)+SUM(U$9:U23)) -> 0 | AZ23: =IF(ISTEXT(V22),0,SUM(V$9:V22)) -> 0 | BA23: 0
A24: 2024-01-16 | D24: 3 | E24: 16 | R24: =K24-J24-SUM(L24:P24) -> 0 | S24: 0 | T24: 0 | U24: 0 | V24: 0 | W24: 0 | X24: 0 | Y24: 0 | Z24: 0 | AA24: 0 | AB24: 0 | AC24: 0 | AD24: 0 | AE24: 0 | AF24: 0 | AG24: 0 | AH24: 0 | AI24: 0 | AJ24: 0 | AK24: 0 | AL24: 0 | AM24: 0 | AN24: 0 | AO24: 0 | AP24: 0 | AQ24: 0 | AR24: 0.3333333333 | AS24: 0 | AT24: 1.666666667 | AU24: 0 | AV24: 0 | AW24: 0 | AX24: =IF(A24="-",0,SUM(AQ$9:AQ24)) -> 0 | AY24: =IF(A24="-",0,SUM(T$9:T24)+SUM(U$9:U24)) -> 0 | AZ24: =IF(ISTEXT(V23),0,SUM(V$9:V23)) -> 0 | BA24: 0
A25: 2024-01-17 | D25: 4 | E25: 17 | R25: 0 | S25: 0 | T25: 0 | U25: 0 | V25: 0 | W25: 0 | X25: 0 | Y25: 0 | Z25: 0 | AA25: 0 | AB25: 0 | AC25: 0 | AD25: 0 | AE25: 0 | AF25: 0 | AG25: 0 | AH25: 0 | AI25: 0 | AJ25: 0 | AK25: 0 | AL25: 0 | AM25: 0 | AN25: 0 | AO25: 0 | AP25: 0 | AQ25: 0 | AR25: 0.3333333333 | AS25: 0 | AT25: 1.666666667 | AU25: 0 | AV25: 0 | AW25: 0 | AX25: =IF(A25="-",0,SUM(AQ$9:AQ25)) -> 0 | AY25: =IF(A25="-",0,SUM(T$9:T25)+SUM(U$9:U25)) -> 0 | AZ25: =IF(ISTEXT(V24),0,SUM(V$9:V24)) -> 0 | BA25: 0
A26: 2024-01-18 | D26: 5 | E26: 18 | R26: 0 | S26: 0 | T26: 0 | U26: 0 | V26: 0 | W26: 0 | X26: 0 | Y26: 0 | Z26: 0 | AA26: 0 | AB26: 0 | AC26: 0 | AD26: 0 | AE26: 0 | AF26: 0 | AG26: 0 | AH26: 0 | AI26: 0 | AJ26: 0 | AK26: 0 | AL26: 0 | AM26: 0 | AN26: 0 | AO26: 0 | AP26: 0 | AQ26: 0 | AR26: 0.3333333333 | AS26: 0 | AT26: 1.666666667 | AU26: 0 | AV26: 0 | AW26: 0 | AX26: =IF(A26="-",0,SUM(AQ$9:AQ26)) -> 0 | AY26: =IF(A26="-",0,SUM(T$9:T26)+SUM(U$9:U26)) -> 0 | AZ26: =IF(ISTEXT(V25),0,SUM(V$9:V25)) -> 0 | BA26: 0
A27: 2024-01-19 | D27: 6 | E27: 19 | R27: 0 | S27: 0 | T27: 0 | U27: 0 | V27: 0 | W27: 0 | X27: 0 | Y27: 0 | Z27: 0 | AA27: 0 | AB27: 0 | AC27: 0 | AD27: 0 | AE27: 0 | AF27: 0 | AG27: 0 | AH27: 0 | AI27: 0 | AJ27: 0 | AK27: 0 | AL27: 0 | AM27: 0 | AN27: 0 | AO27: 0 | AP27: 0 | AQ27: 0 | AR27: 0.3333333333 | AS27: 0 | AT27: 1.666666667 | AU27: 0 | AV27: 0 | AW27: 0 | AX27: =IF(A27="-",0,SUM(AQ$9:AQ27)) -> 0 | AY27: =IF(A27="-",0,SUM(T$9:T27)+SUM(U$9:U27)) -> 0 | AZ27: =IF(ISTEXT(V26),0,SUM(V$9:V26)) -> 0 | BA27: 0
A28: 2024-01-20 | B28: 1 | D28: 7 | E28: 20 | R28: 0 | S28: 0 | T28: 0 | U28: 0 | V28: 0 | W28: 0 | X28: 0 | Y28: 0 | Z28: 0 | AA28: 0 | AB28: 0 | AC28: 0 | AD28: 0 | AE28: 0 | AF28: 0 | AG28: 0 | AH28: 0 | AI28: 0 | AJ28: 0 | AK28: 0 | AL28: 0 | AM28: 0 | AN28: 0 | AO28: 0 | AP28: 0 | AQ28: 0 | AR28: 0.3333333333 | AS28: 0 | AT28: 1.666666667 | AU28: 0 | AV28: 0 | AW28: 0 | AX28: =IF(A28="-",0,SUM(AQ$9:AQ28)) -> 0 | AY28: =IF(A28="-",0,SUM(T$9:T28)+SUM(U$9:U28)) -> 0 | AZ28: =IF(ISTEXT(V27),0,SUM(V$9:V27)) -> 0 | BA28: 0
A29: 2024-01-21 | D29: 1 | E29: 21 | R29: 0 | S29: 0 | T29: 0 | U29: 0 | V29: 0 | W29: 0 | X29: 0 | Y29: 0 | Z29: 0 | AA29: 0 | AB29: 0 | AC29: 0 | AD29: 0 | AE29: 0 | AF29: 0 | AG29: 0 | AH29: 0 | AI29: 0 | AJ29: 0 | AK29: 0 | AL29: 0 | AM29: 0 | AN29: 0 | AO29: 0 | AP29: 0 | AQ29: 0 | AR29: 0.3333333333 | AS29: 0 | AT29: 1.666666667 | AU29: 0 | AV29: 0 | AW29: 0 | AX29: =IF(A29="-",0,SUM(AQ$9:AQ29)) -> 0 | AY29: =IF(A29="-",0,SUM(T$9:T29)+SUM(U$9:U29)) -> 0 | AZ29: =IF(ISTEXT(V28),0,SUM(V$9:V28)) -> 0 | BA29: 0
A30: 2024-01-22 | D30: 2 | E30: 22 | R30: 0 | S30: 0 | T30: 0 | U30: 0 | V30: 0 | W30: 0 | X30: 0 | Y30: 0 | Z30: 0 | AA30: 0 | AB30: 0 | AC30: 0 | AD30: 0 | AE30: 0 | AF30: 0 | AG30: 0 | AH30: 0 | AI30: 0 | AJ30: 0 | AK30: 0 | AL30: 0 | AM30: 0 | AN30: 0 | AO30: 0 | AP30: 0 | AQ30: 0 | AR30: 0.3333333333 | AS30: 0 | AT30: 1.666666667 | AU30: 0 | AV30: 0 | AW30: 0 | AX30: =IF(A30="-",0,SUM(AQ$9:AQ30)) -> 0 | AY30: =IF(A30="-",0,SUM(T$9:T30)+SUM(U$9:U30)) -> 0 | AZ30: =IF(ISTEXT(V29),0,SUM(V$9:V29)) -> 0 | BA30: 0
A31: 2024-01-23 | D31: 3 | E31: 23 | R31: 0 | S31: 0 | T31: 0 | U31: 0 | V31: 0 | W31: 0 | X31: 0 | Y31: 0 | Z31: 0 | AA31: 0 | AB31: 0 | AC31: 0 | AD31: 0 | AE31: 0 | AF31: 0 | AG31: 0 | AH31: 0 | AI31: 0 | AJ31: 0 | AK31: 0 | AL31: 0 | AM31: 0 | AN31: 0 | AO31: 0 | AP31: 0 | AQ31: 0 | AR31: 0.3333333333 | AS31: 0 | AT31: 1.666666667 | AU31: 0 | AV31: 0 | AW31: 0 | AX31: =IF(A31="-",0,SUM(AQ$9:AQ31)) -> 0 | AY31: =IF(A31="-",0,SUM(T$9:T31)+SUM(U$9:U31)) -> 0 | AZ31: =IF(ISTEXT(V30),0,SUM(V$9:V30)) -> 0 | BA31: 0
A32: 2024-01-24 | D32: 4 | E32: 24 | R32: 0 | S32: 0 | T32: 0 | U32: 0 | V32: 0 | W32: 0 | X32: 0 | Y32: 0 | Z32: 0 | AA32: 0 | AB32: 0 | AC32: 0 | AD32: 0 | AE32: 0 | AF32: 0 | AG32: 0 | AH32: 0 | AI32: 0 | AJ32: 0 | AK32: 0 | AL32: 0 | AM32: 0 | AN32: 0 | AO32: 0 | AP32: 0 | AQ32: 0 | AR32: 0.3333333333 | AS32: 0 | AT32: 1.666666667 | AU32: 0 | AV32: 0 | AW32: 0 | AX32: =IF(A32="-",0,SUM(AQ$9:AQ32)) -> 0 | AY32: =IF(A32="-",0,SUM(T$9:T32)+SUM(U$9:U32)) -> 0 | AZ32: =IF(ISTEXT(V31),0,SUM(V$9:V31)) -> 0 | BA32: 0
A33: 2024-01-25 | D33: 5 | E33: 25 | R33: 0 | S33: 0 | T33: 0 | U33: 0 | V33: 0 | W33: 0 | X33: 0 | Y33: 0 | Z33: 0 | AA33: 0 | AB33: 0 | AC33: 0 | AD33: 0 | AE33: 0 | AF33: 0 | AG33: 0 | AH33: 0 | AI33: 0 | AJ33: 0 | AK33: 0 | AL33: 0 | AM33: 0 | AN33: 0 | AO33: 0 | AP33: 0 | AQ33: 0 | AR33: 0.3333333333 | AS33: 0 | AT33: 1.666666667 | AU33: 0 | AV33: 0 | AW33: 0 | AX33: =IF(A33="-",0,SUM(AQ$9:AQ33)) -> 0 | AY33: =IF(A33="-",0,SUM(T$9:T33)+SUM(U$9:U33)) -> 0 | AZ33: =IF(ISTEXT(V32),0,SUM(V$9:V32)) -> 0 | BA33: 0
A34: 2024-01-26 | D34: 6 | E34: 26 | R34: 0 | S34: 0 | T34: 0 | U34: 0 | V34: 0 | W34: 0 | X34: 0 | Y34: 0 | Z34: 0 | AA34: 0 | AB34: 0 | AC34: 0 | AD34: 0 | AE34: 0 | AF34: 0 | AG34: 0 | AH34: 0 | AI34: 0 | AJ34: 0 | AK34: 0 | AL34: 0 | AM34: 0 | AN34: 0 | AO34: 0 | AP34: 0 | AQ34: 0 | AR34: 0.3333333333 | AS34: 0 | AT34: 1.666666667 | AU34: 0 | AV34: 0 | AW34: 0 | AX34: =IF(A34="-",0,SUM(AQ$9:AQ34)) -> 0 | AY34: =IF(A34="-",0,SUM(T$9:T34)+SUM(U$9:U34)) -> 0 | AZ34: =IF(ISTEXT(V33),0,SUM(V$9:V33)) -> 0 | BA34: 0
A35: 2024-01-27 | B35: 1 | D35: 7 | E35: 27 | R35: 0 | S35: 0 | T35: 0 | U35: 0 | V35: 0 | W35: 0 | X35: 0 | Y35: 0 | Z35: 0 | AA35: 0 | AB35: 0 | AC35: 0 | AD35: 0 | AE35: 0 | AF35: 0 | AG35: 0 | AH35: 0 | AI35: 0 | AJ35: 0 | AK35: 0 | AL35: 0 | AM35: 0 | AN35: 0 | AO35: 0 | AP35: 0 | AQ35: 0 | AR35: 0.3333333333 | AS35: 0 | AT35: 1.666666667 | AU35: 0 | AV35: 0 | AW35: 0 | AX35: =IF(A35="-",0,SUM(AQ$9:AQ35)) -> 0 | AY35: =IF(A35="-",0,SUM(T$9:T35)+SUM(U$9:U35)) -> 0 | AZ35: =IF(ISTEXT(V34),0,SUM(V$9:V34)) -> 0 | BA35: 0
A36: 2024-01-28 | D36: 1 | E36: 28 | R36: 0 | S36: 0 | T36: 0 | U36: 0 | V36: 0 | W36: 0 | X36: 0 | Y36: 0 | Z36: 0 | AA36: 0 | AB36: 0 | AC36: 0 | AD36: 0 | AE36: 0 | AF36: 0 | AG36: 0 | AH36: 0 | AI36: 0 | AJ36: 0 | AK36: 0 | AL36: 0 | AM36: 0 | AN36: 0 | AO36: 0 | AP36: 0 | AQ36: 0 | AR36: 0.3333333333 | AS36: 0 | AT36: 1.666666667 | AU36: 0 | AV36: 0 | AW36: 0 | AX36: =IF(A36="-",0,SUM(AQ$9:AQ36)) -> 0 | AY36: =IF(A36="-",0,SUM(T$9:T36)+SUM(U$9:U36)) -> 0 | AZ36: =IF(ISTEXT(V35),0,SUM(V$9:V35)) -> 0 | BA36: 0
A37: 2024-01-29 | D37: 2 | E37: 29 | R37: 0 | S37: 0 | T37: 0 | U37: 0 | V37: 0 | W37: 0 | X37: 0 | Y37: 0 | Z37: 0 | AA37: 0 | AB37: 0 | AC37: 0 | AD37: 0 | AE37: 0 | AF37: 0 | AG37: 0 | AH37: 0 | AI37: 0 | AJ37: 0 | AK37: 0 | AL37: 0 | AM37: 0 | AN37: 0 | AO37: 0 | AP37: 0 | AQ37: 0 | AR37: 0.3333333333 | AS37: 0 | AT37: 1.666666667 | AU37: 0 | AV37: 0 | AW37: 0 | AX37: =IF(A37="-",0,SUM(AQ$9:AQ37)) -> 0 | AY37: =IF(A37="-",0,SUM(T$9:T37)+SUM(U$9:U37)) -> 0 | AZ37: =IF(ISTEXT(V36),0,SUM(V$9:V36)) -> 0 | BA37: 0
A38: 2024-01-30 | D38: 3 | E38: 30 | R38: =K38-J38-SUM(L38:P38) -> 0 | S38: 0 | T38: 0 | U38: 0 | V38: 0 | W38: 0 | X38: 0 | Y38: 0 | Z38: 0 | AA38: 0 | AB38: 0 | AC38: 0 | AD38: 0 | AE38: 0 | AF38: 0 | AG38: 0 | AH38: 0 | AI38: 0 | AJ38: 0 | AK38: 0 | AL38: 0 | AM38: 0 | AN38: 0 | AO38: 0 | AP38: 0 | AQ38: 0 | AR38: 0.3333333333 | AS38: 0 | AT38: 1.666666667 | AU38: 0 | AV38: 0 | AW38: 0 | AX38: =IF(A38="-",0,SUM(AQ$9:AQ38)) -> 0 | AY38: =IF(A38="-",0,SUM(T$9:T38)+SUM(U$9:U38)) -> 0 | AZ38: =IF(ISTEXT(V37),0,SUM(V$9:V37)) -> 0 | BA38: 0
A39: 2024-01-31 | C39: 1 | D39: 4 | E39: 31 | R39: 0 | S39: 0 | T39: 0 | U39: 0 | V39: 0 | W39: 0 | X39: 0 | Y39: 0 | Z39: 0 | AA39: 0 | AB39: 0 | AC39: 0 | AD39: 0 | AE39: 0 | AF39: 0 | AG39: 0 | AH39: 0 | AI39: 0 | AJ39: 0 | AK39: 0 | AL39: 0 | AM39: 0 | AN39: 0 | AO39: 0 | AP39: 0 | AQ39: 0 | AR39: 0.3333333333 | AS39: 0 | AT39: 1.666666667 | AU39: 0 | AV39: 0 | AW39: 0 | AX39: =IF(A39="-",0,SUM(AQ$9:AQ39)) -> 0 | AY39: =IF(A39="-",0,SUM(T$9:T39)+SUM(U$9:U39)) -> 0 | AZ39: =IF(ISTEXT(V38),0,SUM(V$9:V38)) -> 0 | BA39: 0
A40: 2024-02-01 | D40: 5 | E40: 32 | R40: 0 | S40: 0 | T40: 0 | U40: 0 | V40: 0 | W40: 0 | X40: 0 | Y40: 0 | Z40: 0 | AA40: 0 | AB40: 0 | AC40: 0 | AD40: 0 | AE40: 0 | AF40: 0 | AG40: 0 | AH40: 0 | AI40: 0 | AJ40: 0 | AK40: 0 | AL40: 0 | AM40: 0 | AN40: 0 | AO40: 0 | AP40: 0 | AQ40: 0 | AR40: 0.3333333333 | AS40: 0 | AT40: 1.666666667 | AU40: 0 | AV40: 0 | AW40: 0 | AX40: =IF(A40="-",0,SUM(AQ$9:AQ40)) -> 0 | AY40: =IF(A40="-",0,SUM(T$9:T40)+SUM(U$9:U40)) -> 0 | AZ40: =IF(ISTEXT(V39),0,SUM(V$9:V39)) -> 0 | BA40: 0
A41: 2024-02-02 | D41: 6 | E41: 33 | R41: 0 | S41: 0 | T41: 0 | U41: 0 | V41: 0 | W41: 0 | X41: 0 | Y41: 0 | Z41: 0 | AA41: 0 | AB41: 0 | AC41: 0 | AD41: 0 | AE41: 0 | AF41: 0 | AG41: 0 | AH41: 0 | AI41: 0 | AJ41: 0 | AK41: 0 | AL41: 0 | AM41: 0 | AN41: 0 | AO41: 0 | AP41: 0 | AQ41: 0 | AR41: 0.3333333333 | AS41: 0 | AT41: 1.666666667 | AU41: 0 | AV41: 0 | AW41: 0 | AX41: =IF(A41="-",0,SUM(AQ$9:AQ41)) -> 0 | AY41: =IF(A41="-",0,SUM(T$9:T41)+SUM(U$9:U41)) -> 0 | AZ41: =IF(ISTEXT(V40),0,SUM(V$9:V40)) -> 0 | BA41: 0
A42: 2024-02-03 | B42: 1 | D42: 7 | E42: 34 | R42: 0 | S42: 0 | T42: 0 | U42: 0 | V42: 0 | W42: 0 | X42: 0 | Y42: 0 | Z42: 0 | AA42: 0 | AB42: 0 | AC42: 0 | AD42: 0 | AE42: 0 | AF42: 0 | AG42: 0 | AH42: 0 | AI42: 0 | AJ42: 0 | AK42: 0 | AL42: 0 | AM42: 0 | AN42: 0 | AO42: 0 | AP42: 0 | AQ42: 0 | AR42: 0.3333333333 | AS42: 0 | AT42: 1.666666667 | AU42: 0 | AV42: 0 | AW42: 0 | AX42: =IF(A42="-",0,SUM(AQ$9:AQ42)) -> 0 | AY42: =IF(A42="-",0,SUM(T$9:T42)+SUM(U$9:U42)) -> 0 | AZ42: =IF(ISTEXT(V41),0,SUM(V$9:V41)) -> 0 | BA42: 0
A43: 2024-02-04 | D43: 1 | E43: 35 | R43: 0 | S43: 0 | T43: 0 | U43: 0 | V43: 0 | W43: 0 | X43: 0 | Y43: 0 | Z43: 0 | AA43: 0 | AB43: 0 | AC43: 0 | AD43: 0 | AE43: 0 | AF43: 0 | AG43: 0 | AH43: 0 | AI43: 0 | AJ43: 0 | AK43: 0 | AL43: 0 | AM43: 0 | AN43: 0 | AO43: 0 | AP43: 0 | AQ43: 0 | AR43: 0.3333333333 | AS43: 0 | AT43: 1.666666667 | AU43: 0 | AV43: 0 | AW43: 0 | AX43: =IF(A43="-",0,SUM(AQ$9:AQ43)) -> 0 | AY43: =IF(A43="-",0,SUM(T$9:T43)+SUM(U$9:U43)) -> 0 | AZ43: =IF(ISTEXT(V42),0,SUM(V$9:V42)) -> 0 | BA43: 0
A44: 2024-02-05 | D44: 2 | E44: 36 | R44: 0 | S44: 0 | T44: 0 | U44: 0 | V44: 0 | W44: 0 | X44: 0 | Y44: 0 | Z44: 0 | AA44: 0 | AB44: 0 | AC44: 0 | AD44: 0 | AE44: 0 | AF44: 0 | AG44: 0 | AH44: 0 | AI44: 0 | AJ44: 0 | AK44: 0 | AL44: 0 | AM44: 0 | AN44: 0 | AO44: 0 | AP44: 0 | AQ44: 0 | AR44: 0.3333333333 | AS44: 0 | AT44: 1.666666667 | AU44: 0 | AV44: 0 | AW44: 0 | AX44: =IF(A44="-",0,SUM(AQ$9:AQ44)) -> 0 | AY44: =IF(A44="-",0,SUM(T$9:T44)+SUM(U$9:U44)) -> 0 | AZ44: =IF(ISTEXT(V43),0,SUM(V$9:V43)) -> 0 | BA44: 0
A45: 2024-02-06 | D45: 3 | E45: 37 | R45: 0 | S45: 0 | T45: 0 | U45: 0 | V45: 0 | W45: 0 | X45: 0 | Y45: 0 | Z45: 0 | AA45: 0 | AB45: 0 | AC45: 0 | AD45: 0 | AE45: 0 | AF45: 0 | AG45: 0 | AH45: 0 | AI45: 0 | AJ45: 0 | AK45: 0 | AL45: 0 | AM45: 0 | AN45: 0 | AO45: 0 | AP45: 0 | AQ45: 0 | AR45: 0.3333333333 | AS45: 0 | AT45: 1.666666667 | AU45: 0 | AV45: 0 | AW45: 0 | AX45: =IF(A45="-",0,SUM(AQ$9:AQ45)) -> 0 | AY45: =IF(A45="-",0,SUM(T$9:T45)+SUM(U$9:U45)) -> 0 | AZ45: =IF(ISTEXT(V44),0,SUM(V$9:V44)) -> 0 | BA45: 0
A46: 2024-02-07 | D46: 4 | E46: 38 | R46: 0 | S46: 0 | T46: 0 | U46: 0 | V46: 0 | W46: 0 | X46: 0 | Y46: 0 | Z46: 0 | AA46: 0 | AB46: 0 | AC46: 0 | AD46: 0 | AE46: 0 | AF46: 0 | AG46: 0 | AH46: 0 | AI46: 0 | AJ46: 0 | AK46: 0 | AL46: 0 | AM46: 0 | AN46: 0 | AO46: 0 | AP46: 0 | AQ46: 0 | AR46: 0.3333333333 | AS46: 0 | AT46: 1.666666667 | AU46: 0 | AV46: 0 | AW46: 0 | AX46: =IF(A46="-",0,SUM(AQ$9:AQ46)) -> 0 | AY46: =IF(A46="-",0,SUM(T$9:T46)+SUM(U$9:U46)) -> 0 | AZ46: =IF(ISTEXT(V45),0,SUM(V$9:V45)) -> 0 | BA46: 0
A47: 2024-02-08 | D47: 5 | E47: 39 | R47: 0 | S47: 0 | T47: 0 | U47: 0 | V47: 0 | W47: 0 | X47: 0 | Y47: 0 | Z47: 0 | AA47: 0 | AB47: 0 | AC47: 0 | AD47: 0 | AE47: 0 | AF47: 0 | AG47: 0 | AH47: 0 | AI47: 0 | AJ47: 0 | AK47: 0 | AL47: 0 | AM47: 0 | AN47: 0 | AO47: 0 | AP47: 0 | AQ47: 0 | AR47: 0.3333333333 | AS47: 0 | AT47: 1.666666667 | AU47: 0 | AV47: 0 | AW47: 0 | AX47: =IF(A47="-",0,SUM(AQ$9:AQ47)) -> 0 | AY47: =IF(A47="-",0,SUM(T$9:T47)+SUM(U$9:U47)) -> 0 | AZ47: =IF(ISTEXT(V46),0,SUM(V$9:V46)) -> 0 | BA47: 0
A48: 2024-02-09 | D48: 6 | E48: 40 | R48: 0 | S48: 0 | T48: 0 | U48: 0 | V48: 0 | W48: 0 | X48: 0 | Y48: 0 | Z48: 0 | AA48: 0 | AB48: 0 | AC48: 0 | AD48: 0 | AE48: 0 | AF48: 0 | AG48: 0 | AH48: 0 | AI48: 0 | AJ48: 0 | AK48: 0 | AL48: 0 | AM48: 0 | AN48: 0 | AO48: 0 | AP48: 0 | AQ48: 0 | AR48: 0.3333333333 | AS48: 0 | AT48: 1.666666667 | AU48: 0 | AV48: 0 | AW48: 0 | AX48: =IF(A48="-",0,SUM(AQ$9:AQ48)) -> 0 | AY48: =IF(A48="-",0,SUM(T$9:T48)+SUM(U$9:U48)) -> 0 | AZ48: =IF(ISTEXT(V47),0,SUM(V$9:V47)) -> 0 | BA48: 0
A49: 2024-02-10 | B49: 1 | D49: 7 | E49: 41 | R49: 0 | S49: 0 | T49: 0 | U49: 0 | V49: 0 | W49: 0 | X49: 0 | Y49: 0 | Z49: 0 | AA49: 0 | AB49: 0 | AC49: 0 | AD49: 0 | AE49: 0 | AF49: 0 | AG49: 0 | AH49: 0 | AI49: 0 | AJ49: 0 | AK49: 0 | AL49: 0 | AM49: 0 | AN49: 0 | AO49: 0 | AP49: 0 | AQ49: 0 | AR49: 0.3333333333 | AS49: 0 | AT49: 1.666666667 | AU49: 0 | AV49: 0 | AW49: 0 | AX49: =IF(A49="-",0,SUM(AQ$9:AQ49)) -> 0 | AY49: =IF(A49="-",0,SUM(T$9:T49)+SUM(U$9:U49)) -> 0 | AZ49: =IF(ISTEXT(V48),0,SUM(V$9:V48)) -> 0 | BA49: 0
A50: 2024-02-11 | D50: 1 | E50: 42 | R50: 0 | S50: 0 | T50: 0 | U50: 0 | V50: 0 | W50: 0 | X50: 0 | Y50: 0 | Z50: 0 | AA50: 0 | AB50: 0 | AC50: 0 | AD50: 0 | AE50: 0 | AF50: 0 | AG50: 0 | AH50: 0 | AI50: 0 | AJ50: 0 | AK50: 0 | AL50: 0 | AM50: 0 | AN50: 0 | AO50: 0 | AP50: 0 | AQ50: 0 | AR50: 0.3333333333 | AS50: 0 | AT50: 1.666666667 | AU50: 0 | AV50: 0 | AW50: 0 | AX50: =IF(A50="-",0,SUM(AQ$9:AQ50)) -> 0 | AY50: =IF(A50="-",0,SUM(T$9:T50)+SUM(U$9:U50)) -> 0 | AZ50: =IF(ISTEXT(V49),0,SUM(V$9:V49)) -> 0 | BA50: 0
A51: 2024-02-12 | D51: 2 | E51: 43 | R51: 0 | S51: 0 | T51: 0 | U51: 0 | V51: 0 | W51: 0 | X51: 0 | Y51: 0 | Z51: 0 | AA51: 0 | AB51: 0 | AC51: 0 | AD51: 0 | AE51: 0 | AF51: 0 | AG51: 0 | AH51: 0 | AI51: 0 | AJ51: 0 | AK51: 0 | AL51: 0 | AM51: 0 | AN51: 0 | AO51: 0 | AP51: 0 | AQ51: 0 | AR51: 0.3333333333 | AS51: 0 | AT51: 1.666666667 | AU51: 0 | AV51: 0 | AW51: 0 | AX51: =IF(A51="-",0,SUM(AQ$9:AQ51)) -> 0 | AY51: =IF(A51="-",0,SUM(T$9:T51)+SUM(U$9:U51)) -> 0 | AZ51: =IF(ISTEXT(V50),0,SUM(V$9:V50)) -> 0 | BA51: 0
A52: 2024-02-13 | D52: 3 | E52: 44 | R52: =K52-J52-SUM(L52:P52) -> 0 | S52: 0 | T52: 0 | U52: 0 | V52: 0 | W52: 0 | X52: 0 | Y52: 0 | Z52: 0 | AA52: 0 | AB52: 0 | AC52: 0 | AD52: 0 | AE52: 0 | AF52: 0 | AG52: 0 | AH52: 0 | AI52: 0 | AJ52: 0 | AK52: 0 | AL52: 0 | AM52: 0 | AN52: 0 | AO52: 0 | AP52: 0 | AQ52: 0 | AR52: 0.3333333333 | AS52: 0 | AT52: 1.666666667 | AU52: 0 | AV52: 0 | AW52: 0 | AX52: =IF(A52="-",0,SUM(AQ$9:AQ52)) -> 0 | AY52: =IF(A52="-",0,SUM(T$9:T52)+SUM(U$9:U52)) -> 0 | AZ52: =IF(ISTEXT(V51),0,SUM(V$9:V51)) -> 0 | BA52: 0
A53: 2024-02-14 | D53: 4 | E53: 45 | R53: 0 | S53: 0 | T53: 0 | U53: 0 | V53: 0 | W53: 0 | X53: 0 | Y53: 0 | Z53: 0 | AA53: 0 | AB53: 0 | AC53: 0 | AD53: 0 | AE53: 0 | AF53: 0 | AG53: 0 | AH53: 0 | AI53: 0 | AJ53: 0 | AK53: 0 | AL53: 0 | AM53: 0 | AN53: 0 | AO53: 0 | AP53: 0 | AQ53: 0 | AR53: 0.3333333333 | AS53: 0 | AT53: 1.666666667 | AU53: 0 | AV53: 0 | AW53: 0 | AX53: =IF(A53="-",0,SUM(AQ$9:AQ53)) -> 0 | AY53: =IF(A53="-",0,SUM(T$9:T53)+SUM(U$9:U53)) -> 0 | AZ53: =IF(ISTEXT(V52),0,SUM(V$9:V52)) -> 0 | BA53: 0
A54: 2024-02-15 | D54: 5 | E54: 46 | R54: 0 | S54: 0 | T54: 0 | U54: 0 | V54: 0 | W54: 0 | X54: 0 | Y54: 0 | Z54: 0 | AA54: 0 | AB54: 0 | AC54: 0 | AD54: 0 | AE54: 0 | AF54: 0 | AG54: 0 | AH54: 0 | AI54: 0 | AJ54: 0 | AK54: 0 | AL54: 0 | AM54: 0 | AN54: 0 | AO54: 0 | AP54: 0 | AQ54: 0 | AR54: 0.3333333333 | AS54: 0 | AT54: 1.666666667 | AU54: 0 | AV54: 0 | AW54: 0 | AX54: =IF(A54="-",0,SUM(AQ$9:AQ54)) -> 0 | AY54: =IF(A54="-",0,SUM(T$9:T54)+SUM(U$9:U54)) -> 0 | AZ54: =IF(ISTEXT(V53),0,SUM(V$9:V53)) -> 0 | BA54: 0
A55: 2024-02-16 | D55: 6 | E55: 47 | R55: 0 | S55: 0 | T55: 0 | U55: 0 | V55: 0 | W55: 0 | X55: 0 | Y55: 0 | Z55: 0 | AA55: 0 | AB55: 0 | AC55: 0 | AD55: 0 | AE55: 0 | AF55: 0 | AG55: 0 | AH55: 0 | AI55: 0 | AJ55: 0 | AK55: 0 | AL55: 0 | AM55: 0 | AN55: 0 | AO55: 0 | AP55: 0 | AQ55: 0 | AR55: 0.3333333333 | AS55: 0 | AT55: 1.666666667 | AU55: 0 | AV55: 0 | AW55: 0 | AX55: =IF(A55="-",0,SUM(AQ$9:AQ55)) -> 0 | AY55: =IF(A55="-",0,SUM(T$9:T55)+SUM(U$9:U55)) -> 0 | AZ55: =IF(ISTEXT(V54),0,SUM(V$9:V54)) -> 0 | BA55: 0
A56: 2024-02-17 | B56: 1 | D56: 7 | E56: 48 | R56: 0 | S56: 0 | T56: 0 | U56: 0 | V56: 0 | W56: 0 | X56: 0 | Y56: 0 | Z56: 0 | AA56: 0 | AB56: 0 | AC56: 0 | AD56: 0 | AE56: 0 | AF56: 0 | AG56: 0 | AH56: 0 | AI56: 0 | AJ56: 0 | AK56: 0 | AL56: 0 | AM56: 0 | AN56: 0 | AO56: 0 | AP56: 0 | AQ56: 0 | AR56: 0.3333333333 | AS56: 0 | AT56: 1.666666667 | AU56: 0 | AV56: 0 | AW56: 0 | AX56: =IF(A56="-",0,SUM(AQ$9:AQ56)) -> 0 | AY56: =IF(A56="-",0,SUM(T$9:T56)+SUM(U$9:U56)) -> 0 | AZ56: =IF(ISTEXT(V55),0,SUM(V$9:V55)) -> 0 | BA56: 0
A57: 2024-02-18 | D57: 1 | E57: 49 | R57: 0 | S57: 0 | T57: 0 | U57: 0 | V57: 0 | W57: 0 | X57: 0 | Y57: 0 | Z57: 0 | AA57: 0 | AB57: 0 | AC57: 0 | AD57: 0 | AE57: 0 | AF57: 0 | AG57: 0 | AH57: 0 | AI57: 0 | AJ57: 0 | AK57: 0 | AL57: 0 | AM57: 0 | AN57: 0 | AO57: 0 | AP57: 0 | AQ57: 0 | AR57: 0.3333333333 | AS57: 0 | AT57: 1.666666667 | AU57: 0 | AV57: 0 | AW57: 0 | AX57: =IF(A57="-",0,SUM(AQ$9:AQ57)) -> 0 | AY57: =IF(A57="-",0,SUM(T$9:T57)+SUM(U$9:U57)) -> 0 | AZ57: =IF(ISTEXT(V56),0,SUM(V$9:V56)) -> 0 | BA57: 0
A58: 2024-02-19 | D58: 2 | E58: 50 | R58: 0 | S58: 0 | T58: 0 | U58: 0 | V58: 0 | W58: 0 | X58: 0 | Y58: 0 | Z58: 0 | AA58: 0 | AB58: 0 | AC58: 0 | AD58: 0 | AE58: 0 | AF58: 0 | AG58: 0 | AH58: 0 | AI58: 0 | AJ58: 0 | AK58: 0 | AL58: 0 | AM58: 0 | AN58: 0 | AO58: 0 | AP58: 0 | AQ58: 0 | AR58: 0.3333333333 | AS58: 0 | AT58: 1.666666667 | AU58: 0 | AV58: 0 | AW58: 0 | AX58: =IF(A58="-",0,SUM(AQ$9:AQ58)) -> 0 | AY58: =IF(A58="-",0,SUM(T$9:T58)+SUM(U$9:U58)) -> 0 | AZ58: =IF(ISTEXT(V57),0,SUM(V$9:V57)) -> 0 | BA58: 0
A59: 2024-02-20 | D59: 3 | E59: 51 | R59: 0 | S59: 0 | T59: 0 | U59: 0 | V59: 0 | W59: 0 | X59: 0 | Y59: 0 | Z59: 0 | AA59: 0 | AB59: 0 | AC59: 0 | AD59: 0 | AE59: 0 | AF59: 0 | AG59: 0 | AH59: 0 | AI59: 0 | AJ59: 0 | AK59: 0 | AL59: 0 | AM59: 0 | AN59: 0 | AO59: 0 | AP59: 0 | AQ59: 0 | AR59: 0.3333333333 | AS59: 0 | AT59: 1.666666667 | AU59: 0 | AV59: 0 | AW59: 0 | AX59: =IF(A59="-",0,SUM(AQ$9:AQ59)) -> 0 | AY59: =IF(A59="-",0,SUM(T$9:T59)+SUM(U$9:U59)) -> 0 | AZ59: =IF(ISTEXT(V58),0,SUM(V$9:V58)) -> 0 | BA59: 0
A60: 2024-02-21 | D60: 4 | E60: 52 | R60: 0 | S60: 0 | T60: 0 | U60: 0 | V60: 0 | W60: 0 | X60: 0 | Y60: 0 | Z60: 0 | AA60: 0 | AB60: 0 | AC60: 0 | AD60: 0 | AE60: 0 | AF60: 0 | AG60: 0 | AH60: 0 | AI60: 0 | AJ60: 0 | AK60: 0 | AL60: 0 | AM60: 0 | AN60: 0 | AO60: 0 | AP60: 0 | AQ60: 0 | AR60: 0.3333333333 | AS60: 0 | AT60: 1.666666667 | AU60: 0 | AV60: 0 | AW60: 0 | AX60: =IF(A60="-",0,SUM(AQ$9:AQ60)) -> 0 | AY60: =IF(A60="-",0,SUM(T$9:T60)+SUM(U$9:U60)) -> 0 | AZ60: =IF(ISTEXT(V59),0,SUM(V$9:V59)) -> 0 | BA60: 0
A61: 2024-02-22 | D61: 5 | E61: 53 | R61: 0 | S61: 0 | T61: 0 | U61: 0 | V61: 0 | W61: 0 | X61: 0 | Y61: 0 | Z61: 0 | AA61: 0 | AB61: 0 | AC61: 0 | AD61: 0 | AE61: 0 | AF61: 0 | AG61: 0 | AH61: 0 | AI61: 0 | AJ61: 0 | AK61: 0 | AL61: 0 | AM61: 0 | AN61: 0 | AO61: 0 | AP61: 0 | AQ61: 0 | AR61: 0.3333333333 | AS61: 0 | AT61: 1.666666667 | AU61: 0 | AV61: 0 | AW61: 0 | AX61: =IF(A61="-",0,SUM(AQ$9:AQ61)) -> 0 | AY61: =IF(A61="-",0,SUM(T$9:T61)+SUM(U$9:U61)) -> 0 | AZ61: =IF(ISTEXT(V60),0,SUM(V$9:V60)) -> 0 | BA61: 0
A62: 2024-02-23 | D62: 6 | E62: 54 | R62: 0 | S62: 0 | T62: 0 | U62: 0 | V62: 0 | W62: 0 | X62: 0 | Y62: 0 | Z62: 0 | AA62: 0 | AB62: 0 | AC62: 0 | AD62: 0 | AE62: 0 | AF62: 0 | AG62: 0 | AH62: 0 | AI62: 0 | AJ62: 0 | AK62: 0 | AL62: 0 | AM62: 0 | AN62: 0 | AO62: 0 | AP62: 0 | AQ62: 0 | AR62: 0.3333333333 | AS62: 0 | AT62: 1.666666667 | AU62: 0 | AV62: 0 | AW62: 0 | AX62: =IF(A62="-",0,SUM(AQ$9:AQ62)) -> 0 | AY62: =IF(A62="-",0,SUM(T$9:T62)+SUM(U$9:U62)) -> 0 | AZ62: =IF(ISTEXT(V61),0,SUM(V$9:V61)) -> 0 | BA62: 0
A63: 2024-02-24 | B63: 1 | D63: 7 | E63: 55 | R63: 0 | S63: 0 | T63: 0 | U63: 0 | V63: 0 | W63: 0 | X63: 0 | Y63: 0 | Z63: 0 | AA63: 0 | AB63: 0 | AC63: 0 | AD63: 0 | AE63: 0 | AF63: 0 | AG63: 0 | AH63: 0 | AI63: 0 | AJ63: 0 | AK63: 0 | AL63: 0 | AM63: 0 | AN63: 0 | AO63: 0 | AP63: 0 | AQ63: 0 | AR63: 0.3333333333 | AS63: 0 | AT63: 1.666666667 | AU63: 0 | AV63: 0 | AW63: 0 | AX63: =IF(A63="-",0,SUM(AQ$9:AQ63)) -> 0 | AY63: =IF(A63="-",0,SUM(T$9:T63)+SUM(U$9:U63)) -> 0 | AZ63: =IF(ISTEXT(V62),0,SUM(V$9:V62)) -> 0 | BA63: 0
A64: 2024-02-25 | D64: 1 | E64: 56 | R64: 0 | S64: 0 | T64: 0 | U64: 0 | V64: 0 | W64: 0 | X64: 0 | Y64: 0 | Z64: 0 | AA64: 0 | AB64: 0 | AC64: 0 | AD64: 0 | AE64: 0 | AF64: 0 | AG64: 0 | AH64: 0 | AI64: 0 | AJ64: 0 | AK64: 0 | AL64: 0 | AM64: 0 | AN64: 0 | AO64: 0 | AP64: 0 | AQ64: 0 | AR64: 0.3333333333 | AS64: 0 | AT64: 1.666666667 | AU64: 0 | AV64: 0 | AW64: 0 | AX64: =IF(A64="-",0,SUM(AQ$9:AQ64)) -> 0 | AY64: =IF(A64="-",0,SUM(T$9:T64)+SUM(U$9:U64)) -> 0 | AZ64: =IF(ISTEXT(V63),0,SUM(V$9:V63)) -> 0 | BA64: 0
A65: 2024-02-26 | D65: 2 | E65: 57 | R65: 0 | S65: 0 | T65: 0 | U65: 0 | V65: 0 | W65: 0 | X65: 0 | Y65: 0 | Z65: 0 | AA65: 0 | AB65: 0 | AC65: 0 | AD65: 0 | AE65: 0 | AF65: 0 | AG65: 0 | AH65: 0 | AI65: 0 | AJ65: 0 | AK65: 0 | AL65: 0 | AM65: 0 | AN65: 0 | AO65: 0 | AP65: 0 | AQ65: 0 | AR65: 0.3333333333 | AS65: 0 | AT65: 1.666666667 | AU65: 0 | AV65: 0 | AW65: 0 | AX65: =IF(A65="-",0,SUM(AQ$9:AQ65)) -> 0 | AY65: =IF(A65="-",0,SUM(T$9:T65)+SUM(U$9:U65)) -> 0 | AZ65: =IF(ISTEXT(V64),0,SUM(V$9:V64)) -> 0 | BA65: 0
A66: 2024-02-27 | D66: 3 | E66: 58 | R66: 0 | S66: 0 | T66: 0 | U66: 0 | V66: 0 | W66: 0 | X66: 0 | Y66: 0 | Z66: 0 | AA66: 0 | AB66: 0 | AC66: 0 | AD66: 0 | AE66: 0 | AF66: 0 | AG66: 0 | AH66: 0 | AI66: 0 | AJ66: 0 | AK66: 0 | AL66: 0 | AM66: 0 | AN66: 0 | AO66: 0 | AP66: 0 | AQ66: 0 | AR66: 0.3333333333 | AS66: 0 | AT66: 1.666666667 | AU66: 0 | AV66: 0 | AW66: 0 | AX66: =IF(A66="-",0,SUM(AQ$9:AQ66)) -> 0 | AY66: =IF(A66="-",0,SUM(T$9:T66)+SUM(U$9:U66)) -> 0 | AZ66: =IF(ISTEXT(V65),0,SUM(V$9:V65)) -> 0 | BA66: 0
A67: 2024-02-28 | D67: 4 | E67: 59 | R67: 0 | S67: 0 | T67: 0 | U67: 0 | V67: 0 | W67: 0 | X67: 0 | Y67: 0 | Z67: 0 | AA67: 0 | AB67: 0 | AC67: 0 | AD67: 0 | AE67: 0 | AF67: 0 | AG67: 0 | AH67: 0 | AI67: 0 | AJ67: 0 | AK67: 0 | AL67: 0 | AM67: 0 | AN67: 0 | AO67: 0 | AP67: 0 | AQ67: 0 | AR67: 0.3333333333 | AS67: 0 | AT67: 1.666666667 | AU67: 0 | AV67: 0 | AW67: 0 | AX67: =IF(A67="-",0,SUM(AQ$9:AQ67)) -> 0 | AY67: =IF(A67="-",0,SUM(T$9:T67)+SUM(U$9:U67)) -> 0 | AZ67: =IF(ISTEXT(V66),0,SUM(V$9:V66)) -> 0 | BA67: 0
A68: 2024-02-29 | C68: 2 | D68: 5 | E68: 60 | R68: 0 | S68: 0 | T68: 0 | U68: 0 | V68: 0 | W68: 0 | X68: 0 | Y68: 0 | Z68: 0 | AA68: 0 | AB68: 0 | AC68: 0 | AD68: 0 | AE68: 0 | AF68: 0 | AG68: 0 | AH68: 0 | AI68: 0 | AJ68: 0 | AK68: 0 | AL68: 0 | AM68: 0 | AN68: 0 | AO68: 0 | AP68: 0 | AQ68: 0 | AR68: 0.3333333333 | AS68: 0 | AT68: 1.666666667 | AU68: 0 | AV68: 0 | AW68: 0 | AX68: =IF(A68="-",0,SUM(AQ$9:AQ68)) -> 0 | AY68: =IF(A68="-",0,SUM(T$9:T68)+SUM(U$9:U68)) -> 0 | AZ68: =IF(ISTEXT(V67),0,SUM(V$9:V67)) -> 0 | BA68: 0
A69: 2024-03-01 | D69: 6 | E69: 61 | R69: 0 | S69: 0 | T69: 0 | U69: 0 | V69: 0 | W69: 0 | X69: 0 | Y69: 0 | Z69: 0 | AA69: 0 | AB69: 0 | AC69: 0 | AD69: 0 | AE69: 0 | AF69: 0 | AG69: 0 | AH69: 0 | AI69: 0 | AJ69: 0 | AK69: 0 | AL69: 0 | AM69: 0 | AN69: 0 | AO69: 0 | AP69: 0 | AQ69: 0 | AR69: 0.3333333333 | AS69: 0 | AT69: 1.666666667 | AU69: 0 | AV69: 0 | AW69: 0 | AX69: =IF(A69="-",0,SUM(AQ$9:AQ69)) -> 0 | AY69: =IF(A69="-",0,SUM(T$9:T69)+SUM(U$9:U69)) -> 0 | AZ69: =IF(ISTEXT(V68),0,SUM(V$9:V68)) -> 0 | BA69: 0
A70: 2024-03-02 | B70: 1 | D70: 7 | E70: 62 | R70: 0 | S70: 0 | T70: 0 | U70: 0 | V70: 0 | W70: 0 | X70: 0 | Y70: 0 | Z70: 0 | AA70: 0 | AB70: 0 | AC70: 0 | AD70: 0 | AE70: 0 | AF70: 0 | AG70: 0 | AH70: 0 | AI70: 0 | AJ70: 0 | AK70: 0 | AL70: 0 | AM70: 0 | AN70: 0 | AO70: 0 | AP70: 0 | AQ70: 0 | AR70: 0.3333333333 | AS70: 0 | AT70: 1.666666667 | AU70: 0 | AV70: 0 | AW70: 0 | AX70: =IF(A70="-",0,SUM(AQ$9:AQ70)) -> 0 | AY70: =IF(A70="-",0,SUM(T$9:T70)+SUM(U$9:U70)) -> 0 | AZ70: =IF(ISTEXT(V69),0,SUM(V$9:V69)) -> 0 | BA70: 0
A71: 2024-03-03 | D71: 1 | E71: 63 | R71: 0 | S71: 0 | T71: 0 | U71: 0 | V71: 0 | W71: 0 | X71: 0 | Y71: 0 | Z71: 0 | AA71: 0 | AB71: 0 | AC71: 0 | AD71: 0 | AE71: 0 | AF71: 0 | AG71: 0 | AH71: 0 | AI71: 0 | AJ71: 0 | AK71: 0 | AL71: 0 | AM71: 0 | AN71: 0 | AO71: 0 | AP71: 0 | AQ71: 0 | AR71: 0.3333333333 | AS71: 0 | AT71: 1.666666667 | AU71: 0 | AV71: 0 | AW71: 0 | AX71: =IF(A71="-",0,SUM(AQ$9:AQ71)) -> 0 | AY71: =IF(A71="-",0,SUM(T$9:T71)+SUM(U$9:U71)) -> 0 | AZ71: =IF(ISTEXT(V70),0,SUM(V$9:V70)) -> 0 | BA71: 0
A72: 2024-03-04 | D72: 2 | E72: 64 | R72: 0 | S72: 0 | T72: 0 | U72: 0 | V72: 0 | W72: 0 | X72: 0 | Y72: 0 | Z72: 0 | AA72: 0 | AB72: 0 | AC72: 0 | AD72: 0 | AE72: 0 | AF72: 0 | AG72: 0 | AH72: 0 | AI72: 0 | AJ72: 0 | AK72: 0 | AL72: 0 | AM72: 0 | AN72: 0 | AO72: 0 | AP72: 0 | AQ72: 0 | AR72: 0.3333333333 | AS72: 0 | AT72: 1.666666667 | AU72: 0 | AV72: 0 | AW72: 0 | AX72: =IF(A72="-",0,SUM(AQ$9:AQ72)) -> 0 | AY72: =IF(A72="-",0,SUM(T$9:T72)+SUM(U$9:U72)) -> 0 | AZ72: =IF(ISTEXT(V71),0,SUM(V$9:V71)) -> 0 | BA72: 0
A73: 2024-03-05 | D73: 3 | E73: 65 | R73: 0 | S73: =IF(AND(F73="法定",H73<>"振出"),SUM(AL73:AN73),0)+IF(F74="法定",AO73+AP73,0) -> 0 | T73: 0 | U73: 0 | V73: 0 | W73: 0 | X73: =_xlfn.IFS(AND(F73="所定",H73<>"振出"),0,BA73>60/24,W73-MIN(W73,BA73-60/24),TRUE,W73) -> 0 | Y73: =_xlfn.IFS(OR(F73<>"所定",H73="振出"),0,BA73>60/24,W73-MIN(W73,BA73-60/24),TRUE,W73) -> 0 | Z73: =IF(AND(F73="所定",H73<>"振出"),0,W73-X73) -> 0 | AA73: =IF(OR(F73<>"所定",H73="振出"),0,W73-Y73) -> 0 | AB73: 0 | AC73: =IF(G73="",0,MIN(AG73,G73-Q73)) -> 0 | AD73: =IF(H73="振出",MIN(AG73,I73-Q73),0) -> 0 | AE73: 0 | AF73: =_xlfn.LET(_xlpm.値,IF(AND(F73="所定",H73<>"振出"),MAX(0,AG73-AC73),0),IF(_xlpm.値<TIME(0,0,1),0,_xlpm.値)) -> 0 | AG73: 0 | AH73: =_xlfn.IFS(H73="振休",0,R73<G73,MAX(0,G73-R73-Q73),TRUE,0) -> 0 | AI73: =IF(H73="振休",MAX(0,G73-AG73-Q73),0) -> 0 | AJ73: =_xlfn.LET(_xlpm.値,IF(G73="",0,G73-Q73-AC73-AH73-AI73),IF(_xlpm.値<TIME(0,0,1),0,_xlpm.値)) -> 0 | AK73: =_xlfn.LET(_xlpm.値,MAX(0,G73-Q73-R73)+AJ73,IF(_xlpm.値<TIME(0,0,1),0,_xlpm.値)) -> 0 | AL73: =IF(J73="",0,MAX(0,MIN(5/24,K73)-MAX(0,J73)-L73)) -> 0 | AM73: =IF(J73="",0,MAX(0,MIN(22/24,K73)-MAX(5/24,J73)-M73)) -> 0 | AN73: =IF(J73="",0,MAX(0,MIN(24/24,K73)-MAX(22/24,J73)-N73)) -> 0 | AO73: =IF(J73="",0,MAX(0,MIN(29/24,K73)-MAX(24/24,J73)-O73)) -> 0 | AP73: =IF(J73="",0,MAX(0,MIN(48/24,K73)-MAX(29/24,J73)-P73)) -> 0 | AQ73: =R73-S73 -> 0 | AR73: =_xlfn.IFS(A73="-",0,H73="振出",IF($N$2="原則",8/24,MAX(I73,8/24)),F73="法定",0,TRUE,IF($N$2="原則",8/24,MAX(G73,8/24))) -> 0.3333333333 | AS73: =_xlfn.IFS(A73="-",0,B73="",AS74,TRUE,SUM(OFFSET(G73,D73*-1+1,0,D73,1))) -> 0 | AT73: =_xlfn.IFS(A73="-",0,B73="",AT74,$N$2="原則",$H$4/24,TRUE,MAX(AS73,$H$4/24*D73/7)) -> 1.666666667 | AU73: =IF(A73="-",0,SUM(OFFSET(AQ73,D73*-1+1,0,D73,1))) -> 0 | AV73: =IF(A73="-",0,SUM(OFFSET(T73,$D73*-1+1,0,D73,1))) -> 0 | AW73: =IF(OR($D73=1,A73="-"),0,SUM(OFFSET(U73,D73*-1+1,0,D73-1,1))) -> 0 | AX73: =IF(A73="-",0,SUM(AQ$9:AQ73)) -> 0 | AY73: =IF(A73="-",0,SUM(T$9:T73)+SUM(U$9:U73)) -> 0 | AZ73: =IF(ISTEXT(V72),0,SUM(V$9:V72)) -> 0 | BA73: =IF(C72<>"",W73,BA72+W73) -> 0
A74: 2024-03-06 | D74: 4 | E74: 66 | R74: 0 | S74: 0 | T74: =_xlfn.LET(_xlpm.値,MAX(0,AQ74-IF(AR74=0,8/24,AR74)),IF(_xlpm.値<TIME(0,0,1),0,_xlpm.値)) -> 0 | U74: =_xlfn.LET(_xlpm.値,IF($A74="-",0,MAX(0,AU74-AV74-AW74-AT74)),IF(_xlpm.値<TIME(0,0,1),0,_xlpm.値)) -> 0 | V74: =MAX(0,AX74-AY74-AZ74-$N$4) -> 0 | W74: =SUM(T74,U74,V74) -> 0 | X74: 0 | Y74: 0 | Z74: 0 | AA74: 0 | AB74: =SUM(AL74,AN74:AO74) -> 0 | AC74: 0 | AD74: 0 | AE74: =_xlfn.LET(_xlpm.値,AG74-AF74-AC74-AD74,IF(_xlpm.値<TIME(0,0,1),0,_xlpm.値)) -> 0 | AF74: 0 | AG74: =_xlfn.LET(_xlpm.値,MAX(0,AQ74-W74),IF(_xlpm.値<TIME(0,0,1),0,_xlpm.値)) -> 0 | AH74: 0 | AI74: 0 | AJ74: 0 | AK74: 0 | AL74: 0 | AM74: 0 | AN74: 0 | AO74: 0 | AP74: 0 | AQ74: 0 | AR74: 0.3333333333 | AS74: 0 | AT74: 1.666666667 | AU74: 0 | AV74: 0 | AW74: 0 | AX74: =IF(A74="-",0,SUM(AQ$9:AQ74)) -> 0 | AY74: =IF(A74="-",0,SUM(T$9:T74)+SUM(U$9:U74)) -> 0 | AZ74: =IF(ISTEXT(V73),0,SUM(V$9:V73)) -> 0 | BA74: 0
A75: 2024-03-07 | D75: 5 | E75: 67 | R75: 0 | S75: 0 | T75: 0 | U75: 0 | V75: 0 | W75: 0 | X75: 0 | Y75: 0 | Z75: 0 | AA75: 0 | AB75: 0 | AC75: 0 | AD75: 0 | AE75: 0 | AF75: 0 | AG75: 0 | AH75: 0 | AI75: 0 | AJ75: 0 | AK75: 0 | AL75: 0 | AM75: 0 | AN75: 0 | AO75: 0 | AP75: 0 | AQ75: 0 | AR75: 0.3333333333 | AS75: 0 | AT75: 1.666666667 | AU75: 0 | AV75: 0 | AW75: 0 | AX75: =IF(A75="-",0,SUM(AQ$9:AQ75)) -> 0 | AY75: =IF(A75="-",0,SUM(T$9:T75)+SUM(U$9:U75)) -> 0 | AZ75: =IF(ISTEXT(V74),0,SUM(V$9:V74)) -> 0 | BA75: 0
A76: 2024-03-08 | D76: 6 | E76: 68 | R76: 0 | S76: 0 | T76: 0 | U76: 0 | V76: 0 | W76: 0 | X76: 0 | Y76: 0 | Z76: 0 | AA76: 0 | AB76: 0 | AC76: 0 | AD76: 0 | AE76: 0 | AF76: 0 | AG76: 0 | AH76: 0 | AI76: 0 | AJ76: 0 | AK76: 0 | AL76: 0 | AM76: 0 | AN76: 0 | AO76: 0 | AP76: 0 | AQ76: 0 | AR76: 0.3333333333 | AS76: 0 | AT76: 1.666666667 | AU76: 0 | AV76: 0 | AW76: 0 | AX76: =IF(A76="-",0,SUM(AQ$9:AQ76)) -> 0 | AY76: =IF(A76="-",0,SUM(T$9:T76)+SUM(U$9:U76)) -> 0 | AZ76: =IF(ISTEXT(V75),0,SUM(V$9:V75)) -> 0 | BA76: 0
A77: 2024-03-09 | B77: 1 | D77: 7 | E77: 69 | R77: 0 | S77: 0 | T77: 0 | U77: 0 | V77: 0 | W77: 0 | X77: 0 | Y77: 0 | Z77: 0 | AA77: 0 | AB77: 0 | AC77: 0 | AD77: 0 | AE77: 0 | AF77: 0 | AG77: 0 | AH77: 0 | AI77: 0 | AJ77: 0 | AK77: 0 | AL77: 0 | AM77: 0 | AN77: 0 | AO77: 0 | AP77: 0 | AQ77: 0 | AR77: 0.3333333333 | AS77: 0 | AT77: 1.666666667 | AU77: 0 | AV77: 0 | AW77: 0 | AX77: =IF(A77="-",0,SUM(AQ$9:AQ77)) -> 0 | AY77: =IF(A77="-",0,SUM(T$9:T77)+SUM(U$9:U77)) -> 0 | AZ77: =IF(ISTEXT(V76),0,SUM(V$9:V76)) -> 0 | BA77: 0
A78: 2024-03-10 | D78: 1 | E78: 70 | R78: =K78-J78-SUM(L78:P78) -> 0 | S78: 0 | T78: 0 | U78: 0 | V78: 0 | W78: 0 | X78: 0 | Y78: 0 | Z78: 0 | AA78: 0 | AB78: 0 | AC78: 0 | AD78: 0 | AE78: 0 | AF78: 0 | AG78: 0 | AH78: 0 | AI78: 0 | AJ78: 0 | AK78: 0 | AL78: 0 | AM78: 0 | AN78: 0 | AO78: 0 | AP78: 0 | AQ78: 0 | AR78: 0.3333333333 | AS78: 0 | AT78: 1.666666667 | AU78: 0 | AV78: 0 | AW78: 0 | AX78: =IF(A78="-",0,SUM(AQ$9:AQ78)) -> 0 | AY78: =IF(A78="-",0,SUM(T$9:T78)+SUM(U$9:U78)) -> 0 | AZ78: =IF(ISTEXT(V77),0,SUM(V$9:V77)) -> 0 | BA78: 0
A79: 2024-03-11 | D79: 2 | E79: 71 | R79: 0 | S79: 0 | T79: 0 | U79: 0 | V79: 0 | W79: 0 | X79: 0 | Y79: 0 | Z79: 0 | AA79: 0 | AB79: 0 | AC79: 0 | AD79: 0 | AE79: 0 | AF79: 0 | AG79: 0 | AH79: 0 | AI79: 0 | AJ79: 0 | AK79: 0 | AL79: 0 | AM79: 0 | AN79: 0 | AO79: 0 | AP79: 0 | AQ79: 0 | AR79: 0.3333333333 | AS79: 0 | AT79: 1.666666667 | AU79: 0 | AV79: 0 | AW79: 0 | AX79: =IF(A79="-",0,SUM(AQ$9:AQ79)) -> 0 | AY79: =IF(A79="-",0,SUM(T$9:T79)+SUM(U$9:U79)) -> 0 | AZ79: =IF(ISTEXT(V78),0,SUM(V$9:V78)) -> 0 | BA79: 0
A80: 2024-03-12 | D80: 3 | E80: 72 | R80: 0 | S80: 0 | T80: 0 | U80: 0 | V80: 0 | W80: 0 | X80: 0 | Y80: 0 | Z80: 0 | AA80: 0 | AB80: 0 | AC80: 0 | AD80: 0 | AE80: 0 | AF80: 0 | AG80: 0 | AH80: 0 | AI80: 0 | AJ80: 0 | AK80: 0 | AL80: 0 | AM80: 0 | AN80: 0 | AO80: 0 | AP80: 0 | AQ80: 0 | AR80: 0.3333333333 | AS80: 0 | AT80: 1.666666667 | AU80: 0 | AV80: 0 | AW80: 0 | AX80: =IF(A80="-",0,SUM(AQ$9:AQ80)) -> 0 | AY80: =IF(A80="-",0,SUM(T$9:T80)+SUM(U$9:U80)) -> 0 | AZ80: =IF(ISTEXT(V79),0,SUM(V$9:V79)) -> 0 | BA80: 0
A81: 2024-03-13 | D81: 4 | E81: 73 | R81: 0 | S81: 0 | T81: 0 | U81: 0 | V81: 0 | W81: 0 | X81: 0 | Y81: 0 | Z81: 0 | AA81: 0 | AB81: 0 | AC81: 0 | AD81: 0 | AE81: 0 | AF81: 0 | AG81: 0 | AH81: 0 | AI81: 0 | AJ81: 0 | AK81: 0 | AL81: 0 | AM81: 0 | AN81: 0 | AO81: 0 | AP81: 0 | AQ81: 0 | AR81: 0.3333333333 | AS81: 0 | AT81: 1.666666667 | AU81: 0 | AV81: 0 | AW81: 0 | AX81: =IF(A81="-",0,SUM(AQ$9:AQ81)) -> 0 | AY81: =IF(A81="-",0,SUM(T$9:T81)+SUM(U$9:U81)) -> 0 | AZ81: =IF(ISTEXT(V80),0,SUM(V$9:V80)) -> 0 | BA81: 0
A82: 2024-03-14 | D82: 5 | E82: 74 | R82: 0 | S82: 0 | T82: 0 | U82: 0 | V82: 0 | W82: 0 | X82: 0 | Y82: 0 | Z82: 0 | AA82: 0 | AB82: 0 | AC82: 0 | AD82: 0 | AE82: 0 | AF82: 0 | AG82: 0 | AH82: 0 | AI82: 0 | AJ82: 0 | AK82: 0 | AL82: 0 | AM82: 0 | AN82: 0 | AO82: 0 | AP82: 0 | AQ82: 0 | AR82: 0.3333333333 | AS82: 0 | AT82: 1.666666667 | AU82: 0 | AV82: 0 | AW82: 0 | AX82: =IF(A82="-",0,SUM(AQ$9:AQ82)) -> 0 | AY82: =IF(A82="-",0,SUM(T$9:T82)+SUM(U$9:U82)) -> 0 | AZ82: =IF(ISTEXT(V81),0,SUM(V$9:V81)) -> 0 | BA82: 0
A83: 2024-03-15 | D83: 6 | E83: 75 | R83: 0 | S83: 0 | T83: 0 | U83: 0 | V83: 0 | W83: 0 | X83: 0 | Y83: 0 | Z83: 0 | AA83: 0 | AB83: 0 | AC83: 0 | AD83: 0 | AE83: 0 | AF83: 0 | AG83: 0 | AH83: 0 | AI83: 0 | AJ83: 0 | AK83: 0 | AL83: 0 | AM83: 0 | AN83: 0 | AO83: 0 | AP83: 0 | AQ83: 0 | AR83: 0.3333333333 | AS83: 0 | AT83: 1.666666667 | AU83: 0 | AV83: 0 | AW83: 0 | AX83: =IF(A83="-",0,SUM(AQ$9:AQ83)) -> 0 | AY83: =IF(A83="-",0,SUM(T$9:T83)+SUM(U$9:U83)) -> 0 | AZ83: =IF(ISTEXT(V82),0,SUM(V$9:V82)) -> 0 | BA83: 0
A84: 2024-03-16 | B84: 1 | D84: 7 | E84: 76 | R84: 0 | S84: 0 | T84: 0 | U84: 0 | V84: 0 | W84: 0 | X84: 0 | Y84: 0 | Z84: 0 | AA84: 0 | AB84: 0 | AC84: 0 | AD84: 0 | AE84: 0 | AF84: 0 | AG84: 0 | AH84: 0 | AI84: 0 | AJ84: 0 | AK84: 0 | AL84: 0 | AM84: 0 | AN84: 0 | AO84: 0 | AP84: 0 | AQ84: 0 | AR84: 0.3333333333 | AS84: 0 | AT84: 1.666666667 | AU84: 0 | AV84: 0 | AW84: 0 | AX84: =IF(A84="-",0,SUM(AQ$9:AQ84)) -> 0 | AY84: =IF(A84="-",0,SUM(T$9:T84)+SUM(U$9:U84)) -> 0 | AZ84: =IF(ISTEXT(V83),0,SUM(V$9:V83)) -> 0 | BA84: 0
A85: 2024-03-17 | D85: 1 | E85: 77 | R85: 0 | S85: 0 | T85: 0 | U85: 0 | V85: 0 | W85: 0 | X85: 0 | Y85: 0 | Z85: 0 | AA85: 0 | AB85: 0 | AC85: 0 | AD85: 0 | AE85: 0 | AF85: 0 | AG85: 0 | AH85: 0 | AI85: 0 | AJ85: 0 | AK85: 0 | AL85: 0 | AM85: 0 | AN85: 0 | AO85: 0 | AP85: 0 | AQ85: 0 | AR85: 0.3333333333 | AS85: 0 | AT85: 1.666666667 | AU85: 0 | AV85: 0 | AW85: 0 | AX85: =IF(A85="-",0,SUM(AQ$9:AQ85)) -> 0 | AY85: =IF(A85="-",0,SUM(T$9:T85)+SUM(U$9:U85)) -> 0 | AZ85: =IF(ISTEXT(V84),0,SUM(V$9:V84)) -> 0 | BA85: 0
A86: 2024-03-18 | D86: 2 | E86: 78 | R86: 0 | S86: 0 | T86: 0 | U86: 0 | V86: 0 | W86: 0 | X86: 0 | Y86: 0 | Z86: 0 | AA86: 0 | AB86: 0 | AC86: 0 | AD86: 0 | AE86: 0 | AF86: 0 | AG86: 0 | AH86: 0 | AI86: 0 | AJ86: 0 | AK86: 0 | AL86: 0 | AM86: 0 | AN86: 0 | AO86: 0 | AP86: 0 | AQ86: 0 | AR86: 0.3333333333 | AS86: 0 | AT86: 1.666666667 | AU86: 0 | AV86: 0 | AW86: 0 | AX86: =IF(A86="-",0,SUM(AQ$9:AQ86)) -> 0 | AY86: =IF(A86="-",0,SUM(T$9:T86)+SUM(U$9:U86)) -> 0 | AZ86: =IF(ISTEXT(V85),0,SUM(V$9:V85)) -> 0 | BA86: 0
A87: 2024-03-19 | D87: 3 | E87: 79 | R87: 0 | S87: 0 | T87: 0 | U87: 0 | V87: 0 | W87: 0 | X87: 0 | Y87: 0 | Z87: 0 | AA87: 0 | AB87: 0 | AC87: 0 | AD87: 0 | AE87: 0 | AF87: 0 | AG87: 0 | AH87: 0 | AI87: 0 | AJ87: 0 | AK87: 0 | AL87: 0 | AM87: 0 | AN87: 0 | AO87: 0 | AP87: 0 | AQ87: 0 | AR87: 0.3333333333 | AS87: 0 | AT87: 1.666666667 | AU87: 0 | AV87: 0 | AW87: 0 | AX87: =IF(A87="-",0,SUM(AQ$9:AQ87)) -> 0 | AY87: =IF(A87="-",0,SUM(T$9:T87)+SUM(U$9:U87)) -> 0 | AZ87: =IF(ISTEXT(V86),0,SUM(V$9:V86)) -> 0 | BA87: 0
A88: 2024-03-20 | D88: 4 | E88: 80 | R88: 0 | S88: 0 | T88: 0 | U88: 0 | V88: 0 | W88: 0 | X88: 0 | Y88: 0 | Z88: 0 | AA88: 0 | AB88: 0 | AC88: 0 | AD88: 0 | AE88: 0 | AF88: 0 | AG88: 0 | AH88: 0 | AI88: 0 | AJ88: 0 | AK88: 0 | AL88: 0 | AM88: 0 | AN88: 0 | AO88: 0 | AP88: 0 | AQ88: 0 | AR88: 0.3333333333 | AS88: 0 | AT88: 1.666666667 | AU88: 0 | AV88: 0 | AW88: 0 | AX88: =IF(A88="-",0,SUM(AQ$9:AQ88)) -> 0 | AY88: =IF(A88="-",0,SUM(T$9:T88)+SUM(U$9:U88)) -> 0 | AZ88: =IF(ISTEXT(V87),0,SUM(V$9:V87)) -> 0 | BA88: 0
A89: 2024-03-21 | D89: 5 | E89: 81 | R89: 0 | S89: 0 | T89: 0 | U89: 0 | V89: 0 | W89: 0 | X89: 0 | Y89: 0 | Z89: 0 | AA89: 0 | AB89: 0 | AC89: 0 | AD89: 0 | AE89: 0 | AF89: 0 | AG89: 0 | AH89: 0 | AI89: 0 | AJ89: 0 | AK89: 0 | AL89: 0 | AM89: 0 | AN89: 0 | AO89: 0 | AP89: 0 | AQ89: 0 | AR89: 0.3333333333 | AS89: 0 | AT89: 1.666666667 | AU89: 0 | AV89: 0 | AW89: 0 | AX89: =IF(A89="-",0,SUM(AQ$9:AQ89)) -> 0 | AY89: =IF(A89="-",0,SUM(T$9:T89)+SUM(U$9:U89)) -> 0 | AZ89: =IF(ISTEXT(V88),0,SUM(V$9:V88)) -> 0 | BA89: 0
A90: 2024-03-22 | D90: 6 | E90: 82 | R90: 0 | S90: 0 | T90: 0 | U90: 0 | V90: 0 | W90: 0 | X90: 0 | Y90: 0 | Z90: 0 | AA90: 0 | AB90: 0 | AC90: 0 | AD90: 0 | AE90: 0 | AF90: 0 | AG90: 0 | AH90: 0 | AI90: 0 | AJ90: 0 | AK90: 0 | AL90: 0 | AM90: 0 | AN90: 0 | AO90: 0 | AP90: 0 | AQ90: 0 | AR90: 0.3333333333 | AS90: 0 | AT90: 1.666666667 | AU90: 0 | AV90: 0 | AW90: 0 | AX90: =IF(A90="-",0,SUM(AQ$9:AQ90)) -> 0 | AY90: =IF(A90="-",0,SUM(T$9:T90)+SUM(U$9:U90)) -> 0 | AZ90: =IF(ISTEXT(V89),0,SUM(V$9:V89)) -> 0 | BA90: 0
A91: 2024-03-23 | B91: 1 | D91: 7 | E91: 83 | R91: 0 | S91: 0 | T91: 0 | U91: 0 | V91: 0 | W91: 0 | X91: 0 | Y91: 0 | Z91: 0 | AA91: 0 | AB91: 0 | AC91: 0 | AD91: 0 | AE91: 0 | AF91: 0 | AG91: 0 | AH91: 0 | AI91: 0 | AJ91: 0 | AK91: 0 | AL91: 0 | AM91: 0 | AN91: 0 | AO91: 0 | AP91: 0 | AQ91: 0 | AR91: 0.3333333333 | AS91: 0 | AT91: 1.666666667 | AU91: 0 | AV91: 0 | AW91: 0 | AX91: =IF(A91="-",0,SUM(AQ$9:AQ91)) -> 0 | AY91: =IF(A91="-",0,SUM(T$9:T91)+SUM(U$9:U91)) -> 0 | AZ91: =IF(ISTEXT(V90),0,SUM(V$9:V90)) -> 0 | BA91: 0
A92: 2024-03-24 | D92: 1 | E92: 84 | R92: 0 | S92: 0 | T92: 0 | U92: 0 | V92: 0 | W92: 0 | X92: 0 | Y92: 0 | Z92: 0 | AA92: 0 | AB92: 0 | AC92: 0 | AD92: 0 | AE92: 0 | AF92: 0 | AG92: 0 | AH92: 0 | AI92: 0 | AJ92: 0 | AK92: 0 | AL92: 0 | AM92: 0 | AN92: 0 | AO92: 0 | AP92: 0 | AQ92: 0 | AR92: 0.3333333333 | AS92: 0 | AT92: 1.666666667 | AU92: 0 | AV92: 0 | AW92: 0 | AX92: =IF(A92="-",0,SUM(AQ$9:AQ92)) -> 0 | AY92: =IF(A92="-",0,SUM(T$9:T92)+SUM(U$9:U92)) -> 0 | AZ92: =IF(ISTEXT(V91),0,SUM(V$9:V91)) -> 0 | BA92: 0
A93: 2024-03-25 | D93: 2 | E93: 85 | R93: 0 | S93: 0 | T93: 0 | U93: 0 | V93: 0 | W93: 0 | X93: 0 | Y93: 0 | Z93: 0 | AA93: 0 | AB93: 0 | AC93: 0 | AD93: 0 | AE93: 0 | AF93: 0 | AG93: 0 | AH93: 0 | AI93: 0 | AJ93: 0 | AK93: 0 | AL93: 0 | AM93: 0 | AN93: 0 | AO93: 0 | AP93: 0 | AQ93: 0 | AR93: 0.3333333333 | AS93: 0 | AT93: 1.666666667 | AU93: 0 | AV93: 0 | AW93: 0 | AX93: =IF(A93="-",0,SUM(AQ$9:AQ93)) -> 0 | AY93: =IF(A93="-",0,SUM(T$9:T93)+SUM(U$9:U93)) -> 0 | AZ93: =IF(ISTEXT(V92),0,SUM(V$9:V92)) -> 0 | BA93: 0
A94: 2024-03-26 | D94: 3 | E94: 86 | R94: 0 | S94: 0 | T94: 0 | U94: 0 | V94: 0 | W94: 0 | X94: 0 | Y94: 0 | Z94: 0 | AA94: 0 | AB94: 0 | AC94: 0 | AD94: 0 | AE94: 0 | AF94: 0 | AG94: 0 | AH94: 0 | AI94: 0 | AJ94: 0 | AK94: 0 | AL94: 0 | AM94: 0 | AN94: 0 | AO94: 0 | AP94: 0 | AQ94: 0 | AR94: 0.3333333333 | AS94: 0 | AT94: 1.666666667 | AU94: 0 | AV94: 0 | AW94: 0 | AX94: =IF(A94="-",0,SUM(AQ$9:AQ94)) -> 0 | AY94: =IF(A94="-",0,SUM(T$9:T94)+SUM(U$9:U94)) -> 0 | AZ94: =IF(ISTEXT(V93),0,SUM(V$9:V93)) -> 0 | BA94: 0
A95: 2024-03-27 | D95: 4 | E95: 87 | R95: 0 | S95: 0 | T95: 0 | U95: 0 | V95: 0 | W95: 0 | X95: 0 | Y95: 0 | Z95: 0 | AA95: 0 | AB95: 0 | AC95: 0 | AD95: 0 | AE95: 0 | AF95: 0 | AG95: 0 | AH95: 0 | AI95: 0 | AJ95: 0 | AK95: 0 | AL95: 0 | AM95: 0 | AN95: 0 | AO95: 0 | AP95: 0 | AQ95: 0 | AR95: 0.3333333333 | AS95: 0 | AT95: 1.666666667 | AU95: 0 | AV95: 0 | AW95: 0 | AX95: =IF(A95="-",0,SUM(AQ$9:AQ95)) -> 0 | AY95: =IF(A95="-",0,SUM(T$9:T95)+SUM(U$9:U95)) -> 0 | AZ95: =IF(ISTEXT(V94),0,SUM(V$9:V94)) -> 0 | BA95: 0
A96: 2024-03-28 | D96: 5 | E96: 88 | R96: 0 | S96: 0 | T96: 0 | U96: 0 | V96: 0 | W96: 0 | X96: 0 | Y96: 0 | Z96: 0 | AA96: 0 | AB96: 0 | AC96: 0 | AD96: 0 | AE96: 0 | AF96: 0 | AG96: 0 | AH96: 0 | AI96: 0 | AJ96: 0 | AK96: 0 | AL96: 0 | AM96: 0 | AN96: 0 | AO96: 0 | AP96: 0 | AQ96: 0 | AR96: 0.3333333333 | AS96: 0 | AT96: 1.666666667 | AU96: 0 | AV96: 0 | AW96: 0 | AX96: =IF(A96="-",0,SUM(AQ$9:AQ96)) -> 0 | AY96: =IF(A96="-",0,SUM(T$9:T96)+SUM(U$9:U96)) -> 0 | AZ96: =IF(ISTEXT(V95),0,SUM(V$9:V95)) -> 0 | BA96: 0
A97: 2024-03-29 | D97: 6 | E97: 89 | R97: 0 | S97: 0 | T97: 0 | U97: 0 | V97: 0 | W97: 0 | X97: 0 | Y97: 0 | Z97: 0 | AA97: 0 | AB97: 0 | AC97: 0 | AD97: 0 | AE97: 0 | AF97: 0 | AG97: 0 | AH97: 0 | AI97: 0 | AJ97: 0 | AK97: 0 | AL97: 0 | AM97: 0 | AN97: 0 | AO97: 0 | AP97: 0 | AQ97: 0 | AR97: 0.3333333333 | AS97: 0 | AT97: 1.666666667 | AU97: 0 | AV97: 0 | AW97: 0 | AX97: =IF(A97="-",0,SUM(AQ$9:AQ97)) -> 0 | AY97: =IF(A97="-",0,SUM(T$9:T97)+SUM(U$9:U97)) -> 0 | AZ97: =IF(ISTEXT(V96),0,SUM(V$9:V96)) -> 0 | BA97: 0
A98: 2024-03-30 | B98: 1 | D98: 7 | E98: 90 | R98: 0 | S98: 0 | T98: 0 | U98: 0 | V98: 0 | W98: 0 | X98: 0 | Y98: 0 | Z98: 0 | AA98: 0 | AB98: 0 | AC98: 0 | AD98: 0 | AE98: 0 | AF98: 0 | AG98: 0 | AH98: 0 | AI98: 0 | AJ98: 0 | AK98: 0 | AL98: 0 | AM98: 0 | AN98: 0 | AO98: 0 | AP98: 0 | AQ98: 0 | AR98: 0.3333333333 | AS98: 0 | AT98: 1.666666667 | AU98: 0 | AV98: 0 | AW98: 0 | AX98: =IF(A98="-",0,SUM(AQ$9:AQ98)) -> 0 | AY98: =IF(A98="-",0,SUM(T$9:T98)+SUM(U$9:U98)) -> 0 | AZ98: =IF(ISTEXT(V97),0,SUM(V$9:V97)) -> 0 | BA98: 0
A99: 2024-03-31 | C99: 3 | D99: 1 | E99: 91 | R99: 0 | S99: 0 | T99: 0 | U99: 0 | V99: 0 | W99: 0 | X99: 0 | Y99: 0 | Z99: 0 | AA99: 0 | AB99: 0 | AC99: 0 | AD99: 0 | AE99: 0 | AF99: 0 | AG99: 0 | AH99: 0 | AI99: 0 | AJ99: 0 | AK99: 0 | AL99: 0 | AM99: 0 | AN99: 0 | AO99: 0 | AP99: 0 | AQ99: 0 | AR99: 0.3333333333 | AS99: 0 | AT99: 1.666666667 | AU99: 0 | AV99: 0 | AW99: 0 | AX99: =IF(A99="-",0,SUM(AQ$9:AQ99)) -> 0 | AY99: =IF(A99="-",0,SUM(T$9:T99)+SUM(U$9:U99)) -> 0 | AZ99: =IF(ISTEXT(V98),0,SUM(V$9:V98)) -> 0 | BA99: 0
A100: 2024-04-01 | D100: 2 | E100: 92 | R100: 0 | S100: 0 | T100: 0 | U100: 0 | V100: 0 | W100: 0 | X100: 0 | Y100: 0 | Z100: 0 | AA100: 0 | AB100: 0 | AC100: 0 | AD100: 0 | AE100: 0 | AF100: 0 | AG100: 0 | AH100: 0 | AI100: 0 | AJ100: 0 | AK100: 0 | AL100: 0 | AM100: 0 | AN100: 0 | AO100: 0 | AP100: 0 | AQ100: 0 | AR100: 0.3333333333 | AS100: 0 | AT100: 1.666666667 | AU100: 0 | AV100: 0 | AW100: 0 | AX100: =IF(A100="-",0,SUM(AQ$9:AQ100)) -> 0 | AY100: =IF(A100="-",0,SUM(T$9:T100)+SUM(U$9:U100)) -> 0 | AZ100: =IF(ISTEXT(V99),0,SUM(V$9:V99)) -> 0 | BA100: 0
A101: 2024-04-02 | D101: 3 | E101: 93 | R101: 0 | S101: 0 | T101: 0 | U101: 0 | V101: 0 | W101: 0 | X101: 0 | Y101: 0 | Z101: 0 | AA101: 0 | AB101: 0 | AC101: 0 | AD101: 0 | AE101: 0 | AF101: 0 | AG101: 0 | AH101: 0 | AI101: 0 | AJ101: 0 | AK101: 0 | AL101: 0 | AM101: 0 | AN101: 0 | AO101: 0 | AP101: 0 | AQ101: 0 | AR101: 0.3333333333 | AS101: 0 | AT101: 1.666666667 | AU101: 0 | AV101: 0 | AW101: 0 | AX101: =IF(A101="-",0,SUM(AQ$9:AQ101)) -> 0 | AY101: =IF(A101="-",0,SUM(T$9:T101)+SUM(U$9:U101)) -> 0 | AZ101: =IF(ISTEXT(V100),0,SUM(V$9:V100)) -> 0 | BA101: 0
A102: 2024-04-03 | D102: 4 | E102: 94 | R102: 0 | S102: 0 | T102: 0 | U102: 0 | V102: 0 | W102: 0 | X102: 0 | Y102: 0 | Z102: 0 | AA102: 0 | AB102: 0 | AC102: 0 | AD102: 0 | AE102: 0 | AF102: 0 | AG102: 0 | AH102: 0 | AI102: 0 | AJ102: 0 | AK102: 0 | AL102: 0 | AM102: 0 | AN102: 0 | AO102: 0 | AP102: 0 | AQ102: 0 | AR102: 0.3333333333 | AS102: 0 | AT102: 1.666666667 | AU102: 0 | AV102: 0 | AW102: 0 | AX102: =IF(A102="-",0,SUM(AQ$9:AQ102)) -> 0 | AY102: =IF(A102="-",0,SUM(T$9:T102)+SUM(U$9:U102)) -> 0 | AZ102: =IF(ISTEXT(V101),0,SUM(V$9:V101)) -> 0 | BA102: 0
A103: 2024-04-04 | D103: 5 | E103: 95 | R103: 0 | S103: 0 | T103: 0 | U103: 0 | V103: 0 | W103: 0 | X103: 0 | Y103: 0 | Z103: 0 | AA103: 0 | AB103: 0 | AC103: 0 | AD103: 0 | AE103: 0 | AF103: 0 | AG103: 0 | AH103: 0 | AI103: 0 | AJ103: 0 | AK103: 0 | AL103: 0 | AM103: 0 | AN103: 0 | AO103: 0 | AP103: 0 | AQ103: 0 | AR103: 0.3333333333 | AS103: 0 | AT103: 1.666666667 | AU103: 0 | AV103: 0 | AW103: 0 | AX103: =IF(A103="-",0,SUM(AQ$9:AQ103)) -> 0 | AY103: =IF(A103="-",0,SUM(T$9:T103)+SUM(U$9:U103)) -> 0 | AZ103: =IF(ISTEXT(V102),0,SUM(V$9:V102)) -> 0 | BA103: 0
A104: 2024-04-05 | D104: 6 | E104: 96 | R104: 0 | S104: 0 | T104: 0 | U104: 0 | V104: 0 | W104: 0 | X104: 0 | Y104: 0 | Z104: 0 | AA104: 0 | AB104: 0 | AC104: 0 | AD104: 0 | AE104: 0 | AF104: 0 | AG104: 0 | AH104: 0 | AI104: 0 | AJ104: 0 | AK104: 0 | AL104: 0 | AM104: 0 | AN104: 0 | AO104: 0 | AP104: 0 | AQ104: 0 | AR104: 0.3333333333 | AS104: 0 | AT104: 1.666666667 | AU104: 0 | AV104: 0 | AW104: 0 | AX104: =IF(A104="-",0,SUM(AQ$9:AQ104)) -> 0 | AY104: =IF(A104="-",0,SUM(T$9:T104)+SUM(U$9:U104)) -> 0 | AZ104: =IF(ISTEXT(V103),0,SUM(V$9:V103)) -> 0 | BA104: 0
A105: 2024-04-06 | B105: 1 | D105: 7 | E105: 97 | R105: 0 | S105: 0 | T105: 0 | U105: 0 | V105: 0 | W105: 0 | X105: 0 | Y105: 0 | Z105: 0 | AA105: 0 | AB105: 0 | AC105: 0 | AD105: 0 | AE105: 0 | AF105: 0 | AG105: 0 | AH105: 0 | AI105: 0 | AJ105: 0 | AK105: 0 | AL105: 0 | AM105: 0 | AN105: 0 | AO105: 0 | AP105: 0 | AQ105: 0 | AR105: 0.3333333333 | AS105: 0 | AT105: 1.666666667 | AU105: 0 | AV105: 0 | AW105: 0 | AX105: =IF(A105="-",0,SUM(AQ$9:AQ105)) -> 0 | AY105: =IF(A105="-",0,SUM(T$9:T105)+SUM(U$9:U105)) -> 0 | AZ105: =IF(ISTEXT(V104),0,SUM(V$9:V104)) -> 0 | BA105: 0
A106: 2024-04-07 | D106: 1 | E106: 98 | R106: 0 | S106: 0 | T106: 0 | U106: 0 | V106: 0 | W106: 0 | X106: 0 | Y106: 0 | Z106: 0 | AA106: 0 | AB106: 0 | AC106: 0 | AD106: 0 | AE106: 0 | AF106: 0 | AG106: 0 | AH106: 0 | AI106: 0 | AJ106: 0 | AK106: 0 | AL106: 0 | AM106: 0 | AN106: 0 | AO106: 0 | AP106: 0 | AQ106: 0 | AR106: 0.3333333333 | AS106: 0 | AT106: 1.666666667 | AU106: 0 | AV106: 0 | AW106: 0 | AX106: =IF(A106="-",0,SUM(AQ$9:AQ106)) -> 0 | AY106: =IF(A106="-",0,SUM(T$9:T106)+SUM(U$9:U106)) -> 0 | AZ106: =IF(ISTEXT(V105),0,SUM(V$9:V105)) -> 0 | BA106: 0
A107: 2024-04-08 | D107: 2 | E107: 99 | R107: 0 | S107: 0 | T107: 0 | U107: 0 | V107: 0 | W107: 0 | X107: 0 | Y107: 0 | Z107: 0 | AA107: 0 | AB107: 0 | AC107: 0 | AD107: 0 | AE107: 0 | AF107: 0 | AG107: 0 | AH107: 0 | AI107: 0 | AJ107: 0 | AK107: 0 | AL107: 0 | AM107: 0 | AN107: 0 | AO107: 0 | AP107: 0 | AQ107: 0 | AR107: 0.3333333333 | AS107: 0 | AT107: 1.666666667 | AU107: 0 | AV107: 0 | AW107: 0 | AX107: =IF(A107="-",0,SUM(AQ$9:AQ107)) -> 0 | AY107: =IF(A107="-",0,SUM(T$9:T107)+SUM(U$9:U107)) -> 0 | AZ107: =IF(ISTEXT(V106),0,SUM(V$9:V106)) -> 0 | BA107: 0
A108: 2024-04-09 | D108: 3 | E108: 100 | R108: 0 | S108: 0 | T108: 0 | U108: 0 | V108: 0 | W108: 0 | X108: 0 | Y108: 0 | Z108: 0 | AA108: 0 | AB108: 0 | AC108: 0 | AD108: 0 | AE108: 0 | AF108: 0 | AG108: 0 | AH108: 0 | AI108: 0 | AJ108: 0 | AK108: 0 | AL108: 0 | AM108: 0 | AN108: 0 | AO108: 0 | AP108: 0 | AQ108: 0 | AR108: 0.3333333333 | AS108: 0 | AT108: 1.666666667 | AU108: 0 | AV108: 0 | AW108: 0 | AX108: =IF(A108="-",0,SUM(AQ$9:AQ108)) -> 0 | AY108: =IF(A108="-",0,SUM(T$9:T108)+SUM(U$9:U108)) -> 0 | AZ108: =IF(ISTEXT(V107),0,SUM(V$9:V107)) -> 0 | BA108: 0
A109: 2024-04-10 | D109: 4 | E109: 101 | R109: 0 | S109: 0 | T109: 0 | U109: 0 | V109: 0 | W109: 0 | X109: 0 | Y109: 0 | Z109: 0 | AA109: 0 | AB109: 0 | AC109: 0 | AD109: 0 | AE109: 0 | AF109: 0 | AG109: 0 | AH109: 0 | AI109: 0 | AJ109: 0 | AK109: 0 | AL109: 0 | AM109: 0 | AN109: 0 | AO109: 0 | AP109: 0 | AQ109: 0 | AR109: 0.3333333333 | AS109: 0 | AT109: 1.666666667 | AU109: 0 | AV109: 0 | AW109: 0 | AX109: =IF(A109="-",0,SUM(AQ$9:AQ109)) -> 0 | AY109: =IF(A109="-",0,SUM(T$9:T109)+SUM(U$9:U109)) -> 0 | AZ109: =IF(ISTEXT(V108),0,SUM(V$9:V108)) -> 0 | BA109: 0
A110: 2024-04-11 | D110: 5 | E110: 102 | R110: 0 | S110: 0 | T110: 0 | U110: 0 | V110: 0 | W110: 0 | X110: 0 | Y110: 0 | Z110: 0 | AA110: 0 | AB110: 0 | AC110: 0 | AD110: 0 | AE110: 0 | AF110: 0 | AG110: 0 | AH110: 0 | AI110: 0 | AJ110: 0 | AK110: 0 | AL110: 0 | AM110: 0 | AN110: 0 | AO110: 0 | AP110: 0 | AQ110: 0 | AR110: 0.3333333333 | AS110: 0 | AT110: 1.666666667 | AU110: 0 | AV110: 0 | AW110: 0 | AX110: =IF(A110="-",0,SUM(AQ$9:AQ110)) -> 0 | AY110: =IF(A110="-",0,SUM(T$9:T110)+SUM(U$9:U110)) -> 0 | AZ110: =IF(ISTEXT(V109),0,SUM(V$9:V109)) -> 0 | BA110: 0
A111: 2024-04-12 | D111: 6 | E111: 103 | R111: 0 | S111: 0 | T111: 0 | U111: 0 | V111: 0 | W111: 0 | X111: 0 | Y111: 0 | Z111: 0 | AA111: 0 | AB111: 0 | AC111: 0 | AD111: 0 | AE111: 0 | AF111: 0 | AG111: 0 | AH111: 0 | AI111: 0 | AJ111: 0 | AK111: 0 | AL111: 0 | AM111: 0 | AN111: 0 | AO111: 0 | AP111: 0 | AQ111: 0 | AR111: 0.3333333333 | AS111: 0 | AT111: 1.666666667 | AU111: 0 | AV111: 0 | AW111: 0 | AX111: =IF(A111="-",0,SUM(AQ$9:AQ111)) -> 0 | AY111: =IF(A111="-",0,SUM(T$9:T111)+SUM(U$9:U111)) -> 0 | AZ111: =IF(ISTEXT(V110),0,SUM(V$9:V110)) -> 0 | BA111: 0
A112: 2024-04-13 | B112: 1 | D112: 7 | E112: 104 | R112: 0 | S112: 0 | T112: 0 | U112: 0 | V112: 0 | W112: 0 | X112: 0 | Y112: 0 | Z112: 0 | AA112: 0 | AB112: 0 | AC112: 0 | AD112: 0 | AE112: 0 | AF112: 0 | AG112: 0 | AH112: 0 | AI112: 0 | AJ112: 0 | AK112: 0 | AL112: 0 | AM112: 0 | AN112: 0 | AO112: 0 | AP112: 0 | AQ112: 0 | AR112: 0.3333333333 | AS112: 0 | AT112: 1.666666667 | AU112: 0 | AV112: 0 | AW112: 0 | AX112: =IF(A112="-",0,SUM(AQ$9:AQ112)) -> 0 | AY112: =IF(A112="-",0,SUM(T$9:T112)+SUM(U$9:U112)) -> 0 | AZ112: =IF(ISTEXT(V111),0,SUM(V$9:V111)) -> 0 | BA112: 0
A113: 2024-04-14 | D113: 1 | E113: 105 | R113: 0 | S113: 0 | T113: 0 | U113: 0 | V113: 0 | W113: 0 | X113: 0 | Y113: 0 | Z113: 0 | AA113: 0 | AB113: 0 | AC113: 0 | AD113: 0 | AE113: 0 | AF113: 0 | AG113: 0 | AH113: 0 | AI113: 0 | AJ113: 0 | AK113: 0 | AL113: 0 | AM113: 0 | AN113: 0 | AO113: 0 | AP113: 0 | AQ113: 0 | AR113: 0.3333333333 | AS113: 0 | AT113: 1.666666667 | AU113: 0 | AV113: 0 | AW113: 0 | AX113: =IF(A113="-",0,SUM(AQ$9:AQ113)) -> 0 | AY113: =IF(A113="-",0,SUM(T$9:T113)+SUM(U$9:U113)) -> 0 | AZ113: =IF(ISTEXT(V112),0,SUM(V$9:V112)) -> 0 | BA113: 0
A114: 2024-04-15 | D114: 2 | E114: 106 | R114: 0 | S114: 0 | T114: 0 | U114: 0 | V114: 0 | W114: 0 | X114: 0 | Y114: 0 | Z114: 0 | AA114: 0 | AB114: 0 | AC114: 0 | AD114: 0 | AE114: 0 | AF114: 0 | AG114: 0 | AH114: 0 | AI114: 0 | AJ114: 0 | AK114: 0 | AL114: 0 | AM114: 0 | AN114: 0 | AO114: 0 | AP114: 0 | AQ114: 0 | AR114: 0.3333333333 | AS114: 0 | AT114: 1.666666667 | AU114: 0 | AV114: 0 | AW114: 0 | AX114: =IF(A114="-",0,SUM(AQ$9:AQ114)) -> 0 | AY114: =IF(A114="-",0,SUM(T$9:T114)+SUM(U$9:U114)) -> 0 | AZ114: =IF(ISTEXT(V113),0,SUM(V$9:V113)) -> 0 | BA114: 0
A115: 2024-04-16 | D115: 3 | E115: 107 | R115: 0 | S115: 0 | T115: 0 | U115: 0 | V115: 0 | W115: 0 | X115: 0 | Y115: 0 | Z115: 0 | AA115: 0 | AB115: 0 | AC115: 0 | AD115: 0 | AE115: 0 | AF115: 0 | AG115: 0 | AH115: 0 | AI115: 0 | AJ115: 0 | AK115: 0 | AL115: 0 | AM115: 0 | AN115: 0 | AO115: 0 | AP115: 0 | AQ115: 0 | AR115: 0.3333333333 | AS115: 0 | AT115: 1.666666667 | AU115: 0 | AV115: 0 | AW115: 0 | AX115: =IF(A115="-",0,SUM(AQ$9:AQ115)) -> 0 | AY115: =IF(A115="-",0,SUM(T$9:T115)+SUM(U$9:U115)) -> 0 | AZ115: =IF(ISTEXT(V114),0,SUM(V$9:V114)) -> 0 | BA115: 0
A116: 2024-04-17 | D116: 4 | E116: 108 | R116: 0 | S116: 0 | T116: 0 | U116: 0 | V116: 0 | W116: 0 | X116: 0 | Y116: 0 | Z116: 0 | AA116: 0 | AB116: 0 | AC116: 0 | AD116: 0 | AE116: 0 | AF116: 0 | AG116: 0 | AH116: 0 | AI116: 0 | AJ116: 0 | AK116: 0 | AL116: 0 | AM116: 0 | AN116: 0 | AO116: 0 | AP116: 0 | AQ116: 0 | AR116: 0.3333333333 | AS116: 0 | AT116: 1.666666667 | AU116: 0 | AV116: 0 | AW116: 0 | AX116: =IF(A116="-",0,SUM(AQ$9:AQ116)) -> 0 | AY116: =IF(A116="-",0,SUM(T$9:T116)+SUM(U$9:U116)) -> 0 | AZ116: =IF(ISTEXT(V115),0,SUM(V$9:V115)) -> 0 | BA116: 0
A117: 2024-04-18 | D117: 5 | E117: 109 | R117: 0 | S117: 0 | T117: 0 | U117: 0 | V117: 0 | W117: 0 | X117: 0 | Y117: 0 | Z117: 0 | AA117: 0 | AB117: 0 | AC117: 0 | AD117: 0 | AE117: 0 | AF117: 0 | AG117: 0 | AH117: 0 | AI117: 0 | AJ117: 0 | AK117: 0 | AL117: 0 | AM117: 0 | AN117: 0 | AO117: 0 | AP117: 0 | AQ117: 0 | AR117: 0.3333333333 | AS117: 0 | AT117: 1.666666667 | AU117: 0 | AV117: 0 | AW117: 0 | AX117: =IF(A117="-",0,SUM(AQ$9:AQ117)) -> 0 | AY117: =IF(A117="-",0,SUM(T$9:T117)+SUM(U$9:U117)) -> 0 | AZ117: =IF(ISTEXT(V116),0,SUM(V$9:V116)) -> 0 | BA117: 0
A118: 2024-04-19 | D118: 6 | E118: 110 | R118: 0 | S118: 0 | T118: 0 | U118: 0 | V118: 0 | W118: 0 | X118: 0 | Y118: 0 | Z118: 0 | AA118: 0 | AB118: 0 | AC118: 0 | AD118: 0 | AE118: 0 | AF118: 0 | AG118: 0 | AH118: 0 | AI118: 0 | AJ118: 0 | AK118: 0 | AL118: 0 | AM118: 0 | AN118: 0 | AO118: 0 | AP118: 0 | AQ118: 0 | AR118: 0.3333333333 | AS118: 0 | AT118: 1.666666667 | AU118: 0 | AV118: 0 | AW118: 0 | AX118: =IF(A118="-",0,SUM(AQ$9:AQ118)) -> 0 | AY118: =IF(A118="-",0,SUM(T$9:T118)+SUM(U$9:U118)) -> 0 | AZ118: =IF(ISTEXT(V117),0,SUM(V$9:V117)) -> 0 | BA118: 0
A119: 2024-04-20 | B119: 1 | D119: 7 | E119: 111 | R119: 0 | S119: 0 | T119: 0 | U119: 0 | V119: 0 | W119: 0 | X119: 0 | Y119: 0 | Z119: 0 | AA119: 0 | AB119: 0 | AC119: 0 | AD119: 0 | AE119: 0 | AF119: 0 | AG119: 0 | AH119: 0 | AI119: 0 | AJ119: 0 | AK119: 0 | AL119: 0 | AM119: 0 | AN119: 0 | AO119: 0 | AP119: 0 | AQ119: 0 | AR119: 0.3333333333 | AS119: 0 | AT119: 1.666666667 | AU119: 0 | AV119: 0 | AW119: 0 | AX119: =IF(A119="-",0,SUM(AQ$9:AQ119)) -> 0 | AY119: =IF(A119="-",0,SUM(T$9:T119)+SUM(U$9:U119)) -> 0 | AZ119: =IF(ISTEXT(V118),0,SUM(V$9:V118)) -> 0 | BA119: 0
A120: 2024-04-21 | D120: 1 | E120: 112 | R120: 0 | S120: 0 | T120: 0 | U120: 0 | V120: 0 | W120: 0 | X120: 0 | Y120: 0 | Z120: 0 | AA120: 0 | AB120: 0 | AC120: 0 | AD120: 0 | AE120: 0 | AF120: 0 | AG120: 0 | AH120: 0 | AI120: 0 | AJ120: 0 | AK120: 0 | AL120: 0 | AM120: 0 | AN120: 0 | AO120: 0 | AP120: 0 | AQ120: 0 | AR120: 0.3333333333 | AS120: 0 | AT120: 1.666666667 | AU120: 0 | AV120: 0 | AW120: 0 | AX120: =IF(A120="-",0,SUM(AQ$9:AQ120)) -> 0 | AY120: =IF(A120="-",0,SUM(T$9:T120)+SUM(U$9:U120)) -> 0 | AZ120: =IF(ISTEXT(V119),0,SUM(V$9:V119)) -> 0 | BA120: 0
A121: 2024-04-22 | D121: 2 | E121: 113 | R121: 0 | S121: 0 | T121: 0 | U121: 0 | V121: 0 | W121: 0 | X121: 0 | Y121: 0 | Z121: 0 | AA121: 0 | AB121: 0 | AC121: 0 | AD121: 0 | AE121: 0 | AF121: 0 | AG121: 0 | AH121: 0 | AI121: 0 | AJ121: 0 | AK121: 0 | AL121: 0 | AM121: 0 | AN121: 0 | AO121: 0 | AP121: 0 | AQ121: 0 | AR121: 0.3333333333 | AS121: 0 | AT121: 1.666666667 | AU121: 0 | AV121: 0 | AW121: 0 | AX121: =IF(A121="-",0,SUM(AQ$9:AQ121)) -> 0 | AY121: =IF(A121="-",0,SUM(T$9:T121)+SUM(U$9:U121)) -> 0 | AZ121: =IF(ISTEXT(V120),0,SUM(V$9:V120)) -> 0 | BA121: 0
A122: 2024-04-23 | D122: 3 | E122: 114 | R122: 0 | S122: 0 | T122: 0 | U122: 0 | V122: 0 | W122: 0 | X122: 0 | Y122: 0 | Z122: 0 | AA122: 0 | AB122: 0 | AC122: 0 | AD122: 0 | AE122: 0 | AF122: 0 | AG122: 0 | AH122: 0 | AI122: 0 | AJ122: 0 | AK122: 0 | AL122: 0 | AM122: 0 | AN122: 0 | AO122: 0 | AP122: 0 | AQ122: 0 | AR122: 0.3333333333 | AS122: 0 | AT122: 1.666666667 | AU122: 0 | AV122: 0 | AW122: 0 | AX122: =IF(A122="-",0,SUM(AQ$9:AQ122)) -> 0 | AY122: =IF(A122="-",0,SUM(T$9:T122)+SUM(U$9:U122)) -> 0 | AZ122: =IF(ISTEXT(V121),0,SUM(V$9:V121)) -> 0 | BA122: 0
A123: 2024-04-24 | D123: 4 | E123: 115 | R123: 0 | S123: 0 | T123: 0 | U123: 0 | V123: 0 | W123: 0 | X123: 0 | Y123: 0 | Z123: 0 | AA123: 0 | AB123: 0 | AC123: 0 | AD123: 0 | AE123: 0 | AF123: 0 | AG123: 0 | AH123: 0 | AI123: 0 | AJ123: 0 | AK123: 0 | AL123: 0 | AM123: 0 | AN123: 0 | AO123: 0 | AP123: 0 | AQ123: 0 | AR123: 0.3333333333 | AS123: 0 | AT123: 1.666666667 | AU123: 0 | AV123: 0 | AW123: 0 | AX123: =IF(A123="-",0,SUM(AQ$9:AQ123)) -> 0 | AY123: =IF(A123="-",0,SUM(T$9:T123)+SUM(U$9:U123)) -> 0 | AZ123: =IF(ISTEXT(V122),0,SUM(V$9:V122)) -> 0 | BA123: 0
A124: 2024-04-25 | D124: 5 | E124: 116 | R124: 0 | S124: 0 | T124: 0 | U124: 0 | V124: 0 | W124: 0 | X124: 0 | Y124: 0 | Z124: 0 | AA124: 0 | AB124: 0 | AC124: 0 | AD124: 0 | AE124: 0 | AF124: 0 | AG124: 0 | AH124: 0 | AI124: 0 | AJ124: 0 | AK124: 0 | AL124: 0 | AM124: 0 | AN124: 0 | AO124: 0 | AP124: 0 | AQ124: 0 | AR124: 0.3333333333 | AS124: 0 | AT124: 1.666666667 | AU124: 0 | AV124: 0 | AW124: 0 | AX124: =IF(A124="-",0,SUM(AQ$9:AQ124)) -> 0 | AY124: =IF(A124="-",0,SUM(T$9:T124)+SUM(U$9:U124)) -> 0 | AZ124: =IF(ISTEXT(V123),0,SUM(V$9:V123)) -> 0 | BA124: 0
A125: 2024-04-26 | D125: 6 | E125: 117 | R125: 0 | S125: 0 | T125: 0 | U125: 0 | V125: 0 | W125: 0 | X125: 0 | Y125: 0 | Z125: 0 | AA125: 0 | AB125: 0 | AC125: 0 | AD125: 0 | AE125: 0 | AF125: 0 | AG125: 0 | AH125: 0 | AI125: 0 | AJ125: 0 | AK125: 0 | AL125: 0 | AM125: 0 | AN125: 0 | AO125: 0 | AP125: 0 | AQ125: 0 | AR125: 0.3333333333 | AS125: 0 | AT125: 1.666666667 | AU125: 0 | AV125: 0 | AW125: 0 | AX125: =IF(A125="-",0,SUM(AQ$9:AQ125)) -> 0 | AY125: =IF(A125="-",0,SUM(T$9:T125)+SUM(U$9:U125)) -> 0 | AZ125: =IF(ISTEXT(V124),0,SUM(V$9:V124)) -> 0 | BA125: 0
A126: 2024-04-27 | B126: 1 | D126: 7 | E126: 118 | R126: 0 | S126: 0 | T126: 0 | U126: 0 | V126: 0 | W126: 0 | X126: 0 | Y126: 0 | Z126: 0 | AA126: 0 | AB126: 0 | AC126: 0 | AD126: 0 | AE126: 0 | AF126: 0 | AG126: 0 | AH126: 0 | AI126: 0 | AJ126: 0 | AK126: 0 | AL126: 0 | AM126: 0 | AN126: 0 | AO126: 0 | AP126: 0 | AQ126: 0 | AR126: 0.3333333333 | AS126: 0 | AT126: 1.666666667 | AU126: 0 | AV126: 0 | AW126: 0 | AX126: =IF(A126="-",0,SUM(AQ$9:AQ126)) -> 0 | AY126: =IF(A126="-",0,SUM(T$9:T126)+SUM(U$9:U126)) -> 0 | AZ126: =IF(ISTEXT(V125),0,SUM(V$9:V125)) -> 0 | BA126: 0
A127: 2024-04-28 | D127: 1 | E127: 119 | R127: 0 | S127: 0 | T127: 0 | U127: 0 | V127: 0 | W127: 0 | X127: 0 | Y127: 0 | Z127: 0 | AA127: 0 | AB127: 0 | AC127: 0 | AD127: 0 | AE127: 0 | AF127: 0 | AG127: 0 | AH127: 0 | AI127: 0 | AJ127: 0 | AK127: 0 | AL127: 0 | AM127: 0 | AN127: 0 | AO127: 0 | AP127: 0 | AQ127: 0 | AR127: 0.3333333333 | AS127: 0 | AT127: 1.666666667 | AU127: 0 | AV127: 0 | AW127: 0 | AX127: =IF(A127="-",0,SUM(AQ$9:AQ127)) -> 0 | AY127: =IF(A127="-",0,SUM(T$9:T127)+SUM(U$9:U127)) -> 0 | AZ127: =IF(ISTEXT(V126),0,SUM(V$9:V126)) -> 0 | BA127: 0
A128: 2024-04-29 | D128: 2 | E128: 120 | R128: 0 | S128: 0 | T128: 0 | U128: 0 | V128: 0 | W128: 0 | X128: 0 | Y128: 0 | Z128: 0 | AA128: 0 | AB128: 0 | AC128: 0 | AD128: 0 | AE128: 0 | AF128: 0 | AG128: 0 | AH128: 0 | AI128: 0 | AJ128: 0 | AK128: 0 | AL128: 0 | AM128: 0 | AN128: 0 | AO128: 0 | AP128: 0 | AQ128: 0 | AR128: 0.3333333333 | AS128: 0 | AT128: 1.666666667 | AU128: 0 | AV128: 0 | AW128: 0 | AX128: =IF(A128="-",0,SUM(AQ$9:AQ128)) -> 0 | AY128: =IF(A128="-",0,SUM(T$9:T128)+SUM(U$9:U128)) -> 0 | AZ128: =IF(ISTEXT(V127),0,SUM(V$9:V127)) -> 0 | BA128: 0
A129: 2024-04-30 | C129: 4 | D129: 3 | E129: 121 | R129: 0 | S129: 0 | T129: 0 | U129: 0 | V129: 0 | W129: 0 | X129: 0 | Y129: 0 | Z129: 0 | AA129: 0 | AB129: 0 | AC129: 0 | AD129: 0 | AE129: 0 | AF129: 0 | AG129: 0 | AH129: 0 | AI129: 0 | AJ129: 0 | AK129: 0 | AL129: 0 | AM129: 0 | AN129: 0 | AO129: 0 | AP129: 0 | AQ129: 0 | AR129: 0.3333333333 | AS129: 0 | AT129: 1.666666667 | AU129: 0 | AV129: 0 | AW129: 0 | AX129: =IF(A129="-",0,SUM(AQ$9:AQ129)) -> 0 | AY129: =IF(A129="-",0,SUM(T$9:T129)+SUM(U$9:U129)) -> 0 | AZ129: =IF(ISTEXT(V128),0,SUM(V$9:V128)) -> 0 | BA129: 0
A130: 2024-05-01 | D130: 4 | E130: 122 | R130: 0 | S130: 0 | T130: 0 | U130: 0 | V130: 0 | W130: 0 | X130: 0 | Y130: 0 | Z130: 0 | AA130: 0 | AB130: 0 | AC130: 0 | AD130: 0 | AE130: 0 | AF130: 0 | AG130: 0 | AH130: 0 | AI130: 0 | AJ130: 0 | AK130: 0 | AL130: 0 | AM130: 0 | AN130: 0 | AO130: 0 | AP130: 0 | AQ130: 0 | AR130: 0.3333333333 | AS130: 0 | AT130: 1.666666667 | AU130: 0 | AV130: 0 | AW130: 0 | AX130: =IF(A130="-",0,SUM(AQ$9:AQ130)) -> 0 | AY130: =IF(A130="-",0,SUM(T$9:T130)+SUM(U$9:U130)) -> 0 | AZ130: =IF(ISTEXT(V129),0,SUM(V$9:V129)) -> 0 | BA130: 0
A131: 2024-05-02 | D131: 5 | E131: 123 | R131: 0 | S131: 0 | T131: 0 | U131: 0 | V131: 0 | W131: 0 | X131: 0 | Y131: 0 | Z131: 0 | AA131: 0 | AB131: 0 | AC131: 0 | AD131: 0 | AE131: 0 | AF131: 0 | AG131: 0 | AH131: 0 | AI131: 0 | AJ131: 0 | AK131: 0 | AL131: 0 | AM131: 0 | AN131: 0 | AO131: 0 | AP131: 0 | AQ131: 0 | AR131: 0.3333333333 | AS131: 0 | AT131: 1.666666667 | AU131: 0 | AV131: 0 | AW131: 0 | AX131: =IF(A131="-",0,SUM(AQ$9:AQ131)) -> 0 | AY131: =IF(A131="-",0,SUM(T$9:T131)+SUM(U$9:U131)) -> 0 | AZ131: =IF(ISTEXT(V130),0,SUM(V$9:V130)) -> 0 | BA131: 0
A132: 2024-05-03 | D132: 6 | E132: 124 | R132: 0 | S132: 0 | T132: 0 | U132: 0 | V132: 0 | W132: 0 | X132: 0 | Y132: 0 | Z132: 0 | AA132: 0 | AB132: 0 | AC132: 0 | AD132: 0 | AE132: 0 | AF132: 0 | AG132: 0 | AH132: 0 | AI132: 0 | AJ132: 0 | AK132: 0 | AL132: 0 | AM132: 0 | AN132: 0 | AO132: 0 | AP132: 0 | AQ132: 0 | AR132: 0.3333333333 | AS132: 0 | AT132: 1.666666667 | AU132: 0 | AV132: 0 | AW132: 0 | AX132: =IF(A132="-",0,SUM(AQ$9:AQ132)) -> 0 | AY132: =IF(A132="-",0,SUM(T$9:T132)+SUM(U$9:U132)) -> 0 | AZ132: =IF(ISTEXT(V131),0,SUM(V$9:V131)) -> 0 | BA132: 0
A133: 2024-05-04 | B133: 1 | D133: 7 | E133: 125 | R133: 0 | S133: 0 | T133: 0 | U133: 0 | V133: 0 | W133: 0 | X133: 0 | Y133: 0 | Z133: 0 | AA133: 0 | AB133: 0 | AC133: 0 | AD133: 0 | AE133: 0 | AF133: 0 | AG133: 0 | AH133: 0 | AI133: 0 | AJ133: 0 | AK133: 0 | AL133: 0 | AM133: 0 | AN133: 0 | AO133: 0 | AP133: 0 | AQ133: 0 | AR133: 0.3333333333 | AS133: 0 | AT133: 1.666666667 | AU133: 0 | AV133: 0 | AW133: 0 | AX133: =IF(A133="-",0,SUM(AQ$9:AQ133)) -> 0 | AY133: =IF(A133="-",0,SUM(T$9:T133)+SUM(U$9:U133)) -> 0 | AZ133: =IF(ISTEXT(V132),0,SUM(V$9:V132)) -> 0 | BA133: 0
A134: 2024-05-05 | D134: 1 | E134: 126 | R134: 0 | S134: 0 | T134: 0 | U134: 0 | V134: 0 | W134: 0 | X134: 0 | Y134: 0 | Z134: 0 | AA134: 0 | AB134: 0 | AC134: 0 | AD134: 0 | AE134: 0 | AF134: 0 | AG134: 0 | AH134: 0 | AI134: 0 | AJ134: 0 | AK134: 0 | AL134: 0 | AM134: 0 | AN134: 0 | AO134: 0 | AP134: 0 | AQ134: 0 | AR134: 0.3333333333 | AS134: 0 | AT134: 1.666666667 | AU134: 0 | AV134: 0 | AW134: 0 | AX134: =IF(A134="-",0,SUM(AQ$9:AQ134)) -> 0 | AY134: =IF(A134="-",0,SUM(T$9:T134)+SUM(U$9:U134)) -> 0 | AZ134: =IF(ISTEXT(V133),0,SUM(V$9:V133)) -> 0 | BA134: 0
A135: 2024-05-06 | D135: 2 | E135: 127 | R135: 0 | S135: 0 | T135: 0 | U135: 0 | V135: 0 | W135: 0 | X135: 0 | Y135: 0 | Z135: 0 | AA135: 0 | AB135: 0 | AC135: 0 | AD135: 0 | AE135: 0 | AF135: 0 | AG135: 0 | AH135: 0 | AI135: 0 | AJ135: 0 | AK135: 0 | AL135: 0 | AM135: 0 | AN135: 0 | AO135: 0 | AP135: 0 | AQ135: 0 | AR135: 0.3333333333 | AS135: 0 | AT135: 1.666666667 | AU135: 0 | AV135: 0 | AW135: 0 | AX135: =IF(A135="-",0,SUM(AQ$9:AQ135)) -> 0 | AY135: =IF(A135="-",0,SUM(T$9:T135)+SUM(U$9:U135)) -> 0 | AZ135: =IF(ISTEXT(V134),0,SUM(V$9:V134)) -> 0 | BA135: 0
A136: 2024-05-07 | D136: 3 | E136: 128 | R136: 0 | S136: 0 | T136: 0 | U136: 0 | V136: 0 | W136: 0 | X136: 0 | Y136: 0 | Z136: 0 | AA136: 0 | AB136: 0 | AC136: 0 | AD136: 0 | AE136: 0 | AF136: 0 | AG136: 0 | AH136: 0 | AI136: 0 | AJ136: 0 | AK136: 0 | AL136: 0 | AM136: 0 | AN136: 0 | AO136: 0 | AP136: 0 | AQ136: 0 | AR136: 0.3333333333 | AS136: 0 | AT136: 1.666666667 | AU136: 0 | AV136: 0 | AW136: 0 | AX136: =IF(A136="-",0,SUM(AQ$9:AQ136)) -> 0 | AY136: =IF(A136="-",0,SUM(T$9:T136)+SUM(U$9:U136)) -> 0 | AZ136: =IF(ISTEXT(V135),0,SUM(V$9:V135)) -> 0 | BA136: 0
A137: 2024-05-08 | D137: 4 | E137: 129 | R137: 0 | S137: =IF(AND(F137="法定",H137<>"振出"),SUM(AL137:AN137),0)+IF(F138="法定",AO137+AP137,0) -> 0 | T137: 0 | U137: 0 | V137: 0 | W137: 0 | X137: =_xlfn.IFS(AND(F137="所定",H137<>"振出"),0,BA137>60/24,W137-MIN(W137,BA137-60/24),TRUE,W137) -> 0 | Y137: =_xlfn.IFS(OR(F137<>"所定",H137="振出"),0,BA137>60/24,W137-MIN(W137,BA137-60/24),TRUE,W137) -> 0 | Z137: =IF(AND(F137="所定",H137<>"振出"),0,W137-X137) -> 0 | AA137: =IF(OR(F137<>"所定",H137="振出"),0,W137-Y137) -> 0 | AB137: 0 | AC137: =IF(G137="",0,MIN(AG137,G137-Q137)) -> 0 | AD137: =IF(H137="振出",MIN(AG137,I137-Q137),0) -> 0 | AE137: 0 | AF137: =_xlfn.LET(_xlpm.値,IF(AND(F137="所定",H137<>"振出"),MAX(0,AG137-AC137),0),IF(_xlpm.値<TIME(0,0,1),0,_xlpm.値)) -> 0 | AG137: 0 | AH137: =_xlfn.IFS(H137="振休",0,R137<G137,MAX(0,G137-R137-Q137),TRUE,0) -> 0 | AI137: =IF(H137="振休",MAX(0,G137-AG137-Q137),0) -> 0 | AJ137: =_xlfn.LET(_xlpm.値,IF(G137="",0,G137-Q137-AC137-AH137-AI137),IF(_xlpm.値<TIME(0,0,1),0,_xlpm.値)) -> 0 | AK137: =_xlfn.LET(_xlpm.値,MAX(0,G137-Q137-R137)+AJ137,IF(_xlpm.値<TIME(0,0,1),0,_xlpm.値)) -> 0 | AL137: =IF(J137="",0,MAX(0,MIN(5/24,K137)-MAX(0,J137)-L137)) -> 0 | AM137: =IF(J137="",0,MAX(0,MIN(22/24,K137)-MAX(5/24,J137)-M137)) -> 0 | AN137: =IF(J137="",0,MAX(0,MIN(24/24,K137)-MAX(22/24,J137)-N137)) -> 0 | AO137: =IF(J137="",0,MAX(0,MIN(29/24,K137)-MAX(24/24,J137)-O137)) -> 0 | AP137: =IF(J137="",0,MAX(0,MIN(48/24,K137)-MAX(29/24,J137)-P137)) -> 0 | AQ137: =R137-S137 -> 0 | AR137: =_xlfn.IFS(A137="-",0,H137="振出",IF($N$2="原則",8/24,MAX(I137,8/24)),F137="法定",0,TRUE,IF($N$2="原則",8/24,MAX(G137,8/24))) -> 0.3333333333 | AS137: =_xlfn.IFS(A137="-",0,B137="",AS138,TRUE,SUM(OFFSET(G137,D137*-1+1,0,D137,1))) -> 0 | AT137: =_xlfn.IFS(A137="-",0,B137="",AT138,$N$2="原則",$H$4/24,TRUE,MAX(AS137,$H$4/24*D137/7)) -> 1.666666667 | AU137: =IF(A137="-",0,SUM(OFFSET(AQ137,D137*-1+1,0,D137,1))) -> 0 | AV137: =IF(A137="-",0,SUM(OFFSET(T137,$D137*-1+1,0,D137,1))) -> 0 | AW137: =IF(OR($D137=1,A137="-"),0,SUM(OFFSET(U137,D137*-1+1,0,D137-1,1))) -> 0 | AX137: =IF(A137="-",0,SUM(AQ$9:AQ137)) -> 0 | AY137: =IF(A137="-",0,SUM(T$9:T137)+SUM(U$9:U137)) -> 0 | AZ137: =IF(ISTEXT(V136),0,SUM(V$9:V136)) -> 0 | BA137: =IF(C136<>"",W137,BA136+W137) -> 0
A138: 2024-05-09 | D138: 5 | E138: 130 | R138: 0 | S138: 0 | T138: =_xlfn.LET(_xlpm.値,MAX(0,AQ138-IF(AR138=0,8/24,AR138)),IF(_xlpm.値<TIME(0,0,1),0,_xlpm.値)) -> 0 | U138: =_xlfn.LET(_xlpm.値,IF($A138="-",0,MAX(0,AU138-AV138-AW138-AT138)),IF(_xlpm.値<TIME(0,0,1),0,_xlpm.値)) -> 0 | V138: =MAX(0,AX138-AY138-AZ138-$N$4) -> 0 | W138: =SUM(T138,U138,V138) -> 0 | X138: 0 | Y138: 0 | Z138: 0 | AA138: 0 | AB138: =SUM(AL138,AN138:AO138) -> 0 | AC138: 0 | AD138: 0 | AE138: =_xlfn.LET(_xlpm.値,AG138-AF138-AC138-AD138,IF(_xlpm.値<TIME(0,0,1),0,_xlpm.値)) -> 0 | AF138: 0 | AG138: =_xlfn.LET(_xlpm.値,MAX(0,AQ138-W138),IF(_xlpm.値<TIME(0,0,1),0,_xlpm.値)) -> 0 | AH138: 0 | AI138: 0 | AJ138: 0 | AK138: 0 | AL138: 0 | AM138: 0 | AN138: 0 | AO138: 0 | AP138: 0 | AQ138: 0 | AR138: 0.3333333333 | AS138: 0 | AT138: 1.666666667 | AU138: 0 | AV138: 0 | AW138: 0 | AX138: =IF(A138="-",0,SUM(AQ$9:AQ138)) -> 0 | AY138: =IF(A138="-",0,SUM(T$9:T138)+SUM(U$9:U138)) -> 0 | AZ138: =IF(ISTEXT(V137),0,SUM(V$9:V137)) -> 0 | BA138: 0
A139: 2024-05-10 | D139: 6 | E139: 131 | R139: 0 | S139: 0 | T139: 0 | U139: 0 | V139: 0 | W139: 0 | X139: 0 | Y139: 0 | Z139: 0 | AA139: 0 | AB139: 0 | AC139: 0 | AD139: 0 | AE139: 0 | AF139: 0 | AG139: 0 | AH139: 0 | AI139: 0 | AJ139: 0 | AK139: 0 | AL139: 0 | AM139: 0 | AN139: 0 | AO139: 0 | AP139: 0 | AQ139: 0 | AR139: 0.3333333333 | AS139: 0 | AT139: 1.666666667 | AU139: 0 | AV139: 0 | AW139: 0 | AX139: =IF(A139="-",0,SUM(AQ$9:AQ139)) -> 0 | AY139: =IF(A139="-",0,SUM(T$9:T139)+SUM(U$9:U139)) -> 0 | AZ139: =IF(ISTEXT(V138),0,SUM(V$9:V138)) -> 0 | BA139: 0
A140: 2024-05-11 | B140: 1 | D140: 7 | E140: 132 | R140: 0 | S140: 0 | T140: 0 | U140: 0 | V140: 0 | W140: 0 | X140: 0 | Y140: 0 | Z140: 0 | AA140: 0 | AB140: 0 | AC140: 0 | AD140: 0 | AE140: 0 | AF140: 0 | AG140: 0 | AH140: 0 | AI140: 0 | AJ140: 0 | AK140: 0 | AL140: 0 | AM140: 0 | AN140: 0 | AO140: 0 | AP140: 0 | AQ140: 0 | AR140: 0.3333333333 | AS140: 0 | AT140: 1.666666667 | AU140: 0 | AV140: 0 | AW140: 0 | AX140: =IF(A140="-",0,SUM(AQ$9:AQ140)) -> 0 | AY140: =IF(A140="-",0,SUM(T$9:T140)+SUM(U$9:U140)) -> 0 | AZ140: =IF(ISTEXT(V139),0,SUM(V$9:V139)) -> 0 | BA140: 0
A141: 2024-05-12 | D141: 1 | E141: 133 | R141: 0 | S141: 0 | T141: 0 | U141: 0 | V141: 0 | W141: 0 | X141: 0 | Y141: 0 | Z141: 0 | AA141: 0 | AB141: 0 | AC141: 0 | AD141: 0 | AE141: 0 | AF141: 0 | AG141: 0 | AH141: 0 | AI141: 0 | AJ141: 0 | AK141: 0 | AL141: 0 | AM141: 0 | AN141: 0 | AO141: 0 | AP141: 0 | AQ141: 0 | AR141: 0.3333333333 | AS141: 0 | AT141: 1.666666667 | AU141: 0 | AV141: 0 | AW141: 0 | AX141: =IF(A141="-",0,SUM(AQ$9:AQ141)) -> 0 | AY141: =IF(A141="-",0,SUM(T$9:T141)+SUM(U$9:U141)) -> 0 | AZ141: =IF(ISTEXT(V140),0,SUM(V$9:V140)) -> 0 | BA141: 0
A142: 2024-05-13 | D142: 2 | E142: 134 | R142: =K142-J142-SUM(L142:P142) -> 0 | S142: 0 | T142: 0 | U142: 0 | V142: 0 | W142: 0 | X142: 0 | Y142: 0 | Z142: 0 | AA142: 0 | AB142: 0 | AC142: 0 | AD142: 0 | AE142: 0 | AF142: 0 | AG142: 0 | AH142: 0 | AI142: 0 | AJ142: 0 | AK142: 0 | AL142: 0 | AM142: 0 | AN142: 0 | AO142: 0 | AP142: 0 | AQ142: 0 | AR142: 0.3333333333 | AS142: 0 | AT142: 1.666666667 | AU142: 0 | AV142: 0 | AW142: 0 | AX142: =IF(A142="-",0,SUM(AQ$9:AQ142)) -> 0 | AY142: =IF(A142="-",0,SUM(T$9:T142)+SUM(U$9:U142)) -> 0 | AZ142: =IF(ISTEXT(V141),0,SUM(V$9:V141)) -> 0 | BA142: 0
A143: 2024-05-14 | D143: 3 | E143: 135 | R143: 0 | S143: 0 | T143: 0 | U143: 0 | V143: 0 | W143: 0 | X143: 0 | Y143: 0 | Z143: 0 | AA143: 0 | AB143: 0 | AC143: 0 | AD143: 0 | AE143: 0 | AF143: 0 | AG143: 0 | AH143: 0 | AI143: 0 | AJ143: 0 | AK143: 0 | AL143: 0 | AM143: 0 | AN143: 0 | AO143: 0 | AP143: 0 | AQ143: 0 | AR143: 0.3333333333 | AS143: 0 | AT143: 1.666666667 | AU143: 0 | AV143: 0 | AW143: 0 | AX143: =IF(A143="-",0,SUM(AQ$9:AQ143)) -> 0 | AY143: =IF(A143="-",0,SUM(T$9:T143)+SUM(U$9:U143)) -> 0 | AZ143: =IF(ISTEXT(V142),0,SUM(V$9:V142)) -> 0 | BA143: 0
A144: 2024-05-15 | D144: 4 | E144: 136 | R144: 0 | S144: 0 | T144: 0 | U144: 0 | V144: 0 | W144: 0 | X144: 0 | Y144: 0 | Z144: 0 | AA144: 0 | AB144: 0 | AC144: 0 | AD144: 0 | AE144: 0 | AF144: 0 | AG144: 0 | AH144: 0 | AI144: 0 | AJ144: 0 | AK144: 0 | AL144: 0 | AM144: 0 | AN144: 0 | AO144: 0 | AP144: 0 | AQ144: 0 | AR144: 0.3333333333 | AS144: 0 | AT144: 1.666666667 | AU144: 0 | AV144: 0 | AW144: 0 | AX144: =IF(A144="-",0,SUM(AQ$9:AQ144)) -> 0 | AY144: =IF(A144="-",0,SUM(T$9:T144)+SUM(U$9:U144)) -> 0 | AZ144: =IF(ISTEXT(V143),0,SUM(V$9:V143)) -> 0 | BA144: 0
A145: 2024-05-16 | D145: 5 | E145: 137 | R145: 0 | S145: 0 | T145: 0 | U145: 0 | V145: 0 | W145: 0 | X145: 0 | Y145: 0 | Z145: 0 | AA145: 0 | AB145: 0 | AC145: 0 | AD145: 0 | AE145: 0 | AF145: 0 | AG145: 0 | AH145: 0 | AI145: 0 | AJ145: 0 | AK145: 0 | AL145: 0 | AM145: 0 | AN145: 0 | AO145: 0 | AP145: 0 | AQ145: 0 | AR145: 0.3333333333 | AS145: 0 | AT145: 1.666666667 | AU145: 0 | AV145: 0 | AW145: 0 | AX145: =IF(A145="-",0,SUM(AQ$9:AQ145)) -> 0 | AY145: =IF(A145="-",0,SUM(T$9:T145)+SUM(U$9:U145)) -> 0 | AZ145: =IF(ISTEXT(V144),0,SUM(V$9:V144)) -> 0 | BA145: 0
A146: 2024-05-17 | D146: 6 | E146: 138 | R146: 0 | S146: 0 | T146: 0 | U146: 0 | V146: 0 | W146: 0 | X146: 0 | Y146: 0 | Z146: 0 | AA146: 0 | AB146: 0 | AC146: 0 | AD146: 0 | AE146: 0 | AF146: 0 | AG146: 0 | AH146: 0 | AI146: 0 | AJ146: 0 | AK146: 0 | AL146: 0 | AM146: 0 | AN146: 0 | AO146: 0 | AP146: 0 | AQ146: 0 | AR146: 0.3333333333 | AS146: 0 | AT146: 1.666666667 | AU146: 0 | AV146: 0 | AW146: 0 | AX146: =IF(A146="-",0,SUM(AQ$9:AQ146)) -> 0 | AY146: =IF(A146="-",0,SUM(T$9:T146)+SUM(U$9:U146)) -> 0 | AZ146: =IF(ISTEXT(V145),0,SUM(V$9:V145)) -> 0 | BA146: 0
A147: 2024-05-18 | B147: 1 | D147: 7 | E147: 139 | R147: 0 | S147: 0 | T147: 0 | U147: 0 | V147: 0 | W147: 0 | X147: 0 | Y147: 0 | Z147: 0 | AA147: 0 | AB147: 0 | AC147: 0 | AD147: 0 | AE147: 0 | AF147: 0 | AG147: 0 | AH147: 0 | AI147: 0 | AJ147: 0 | AK147: 0 | AL147: 0 | AM147: 0 | AN147: 0 | AO147: 0 | AP147: 0 | AQ147: 0 | AR147: 0.3333333333 | AS147: 0 | AT147: 1.666666667 | AU147: 0 | AV147: 0 | AW147: 0 | AX147: =IF(A147="-",0,SUM(AQ$9:AQ147)) -> 0 | AY147: =IF(A147="-",0,SUM(T$9:T147)+SUM(U$9:U147)) -> 0 | AZ147: =IF(ISTEXT(V146),0,SUM(V$9:V146)) -> 0 | BA147: 0
A148: 2024-05-19 | D148: 1 | E148: 140 | R148: 0 | S148: 0 | T148: 0 | U148: 0 | V148: 0 | W148: 0 | X148: 0 | Y148: 0 | Z148: 0 | AA148: 0 | AB148: 0 | AC148: 0 | AD148: 0 | AE148: 0 | AF148: 0 | AG148: 0 | AH148: 0 | AI148: 0 | AJ148: 0 | AK148: 0 | AL148: 0 | AM148: 0 | AN148: 0 | AO148: 0 | AP148: 0 | AQ148: 0 | AR148: 0.3333333333 | AS148: 0 | AT148: 1.666666667 | AU148: 0 | AV148: 0 | AW148: 0 | AX148: =IF(A148="-",0,SUM(AQ$9:AQ148)) -> 0 | AY148: =IF(A148="-",0,SUM(T$9:T148)+SUM(U$9:U148)) -> 0 | AZ148: =IF(ISTEXT(V147),0,SUM(V$9:V147)) -> 0 | BA148: 0
A149: 2024-05-20 | D149: 2 | E149: 141 | R149: 0 | S149: 0 | T149: 0 | U149: 0 | V149: 0 | W149: 0 | X149: 0 | Y149: 0 | Z149: 0 | AA149: 0 | AB149: 0 | AC149: 0 | AD149: 0 | AE149: 0 | AF149: 0 | AG149: 0 | AH149: 0 | AI149: 0 | AJ149: 0 | AK149: 0 | AL149: 0 | AM149: 0 | AN149: 0 | AO149: 0 | AP149: 0 | AQ149: 0 | AR149: 0.3333333333 | AS149: 0 | AT149: 1.666666667 | AU149: 0 | AV149: 0 | AW149: 0 | AX149: =IF(A149="-",0,SUM(AQ$9:AQ149)) -> 0 | AY149: =IF(A149="-",0,SUM(T$9:T149)+SUM(U$9:U149)) -> 0 | AZ149: =IF(ISTEXT(V148),0,SUM(V$9:V148)) -> 0 | BA149: 0
A150: 2024-05-21 | D150: 3 | E150: 142 | R150: 0 | S150: 0 | T150: 0 | U150: 0 | V150: 0 | W150: 0 | X150: 0 | Y150: 0 | Z150: 0 | AA150: 0 | AB150: 0 | AC150: 0 | AD150: 0 | AE150: 0 | AF150: 0 | AG150: 0 | AH150: 0 | AI150: 0 | AJ150: 0 | AK150: 0 | AL150: 0 | AM150: 0 | AN150: 0 | AO150: 0 | AP150: 0 | AQ150: 0 | AR150: 0.3333333333 | AS150: 0 | AT150: 1.666666667 | AU150: 0 | AV150: 0 | AW150: 0 | AX150: =IF(A150="-",0,SUM(AQ$9:AQ150)) -> 0 | AY150: =IF(A150="-",0,SUM(T$9:T150)+SUM(U$9:U150)) -> 0 | AZ150: =IF(ISTEXT(V149),0,SUM(V$9:V149)) -> 0 | BA150: 0
A151: 2024-05-22 | D151: 4 | E151: 143 | R151: 0 | S151: 0 | T151: 0 | U151: 0 | V151: 0 | W151: 0 | X151: 0 | Y151: 0 | Z151: 0 | AA151: 0 | AB151: 0 | AC151: 0 | AD151: 0 | AE151: 0 | AF151: 0 | AG151: 0 | AH151: 0 | AI151: 0 | AJ151: 0 | AK151: 0 | AL151: 0 | AM151: 0 | AN151: 0 | AO151: 0 | AP151: 0 | AQ151: 0 | AR151: 0.3333333333 | AS151: 0 | AT151: 1.666666667 | AU151: 0 | AV151: 0 | AW151: 0 | AX151: =IF(A151="-",0,SUM(AQ$9:AQ151)) -> 0 | AY151: =IF(A151="-",0,SUM(T$9:T151)+SUM(U$9:U151)) -> 0 | AZ151: =IF(ISTEXT(V150),0,SUM(V$9:V150)) -> 0 | BA151: 0
A152: 2024-05-23 | D152: 5 | E152: 144 | R152: 0 | S152: 0 | T152: 0 | U152: 0 | V152: 0 | W152: 0 | X152: 0 | Y152: 0 | Z152: 0 | AA152: 0 | AB152: 0 | AC152: 0 | AD152: 0 | AE152: 0 | AF152: 0 | AG152: 0 | AH152: 0 | AI152: 0 | AJ152: 0 | AK152: 0 | AL152: 0 | AM152: 0 | AN152: 0 | AO152: 0 | AP152: 0 | AQ152: 0 | AR152: 0.3333333333 | AS152: 0 | AT152: 1.666666667 | AU152: 0 | AV152: 0 | AW152: 0 | AX152: =IF(A152="-",0,SUM(AQ$9:AQ152)) -> 0 | AY152: =IF(A152="-",0,SUM(T$9:T152)+SUM(U$9:U152)) -> 0 | AZ152: =IF(ISTEXT(V151),0,SUM(V$9:V151)) -> 0 | BA152: 0
A153: 2024-05-24 | D153: 6 | E153: 145 | R153: 0 | S153: 0 | T153: 0 | U153: 0 | V153: 0 | W153: 0 | X153: 0 | Y153: 0 | Z153: 0 | AA153: 0 | AB153: 0 | AC153: 0 | AD153: 0 | AE153: 0 | AF153: 0 | AG153: 0 | AH153: 0 | AI153: 0 | AJ153: 0 | AK153: 0 | AL153: 0 | AM153: 0 | AN153: 0 | AO153: 0 | AP153: 0 | AQ153: 0 | AR153: 0.3333333333 | AS153: 0 | AT153: 1.666666667 | AU153: 0 | AV153: 0 | AW153: 0 | AX153: =IF(A153="-",0,SUM(AQ$9:AQ153)) -> 0 | AY153: =IF(A153="-",0,SUM(T$9:T153)+SUM(U$9:U153)) -> 0 | AZ153: =IF(ISTEXT(V152),0,SUM(V$9:V152)) -> 0 | BA153: 0
A154: 2024-05-25 | B154: 1 | D154: 7 | E154: 146 | R154: 0 | S154: 0 | T154: 0 | U154: 0 | V154: 0 | W154: 0 | X154: 0 | Y154: 0 | Z154: 0 | AA154: 0 | AB154: 0 | AC154: 0 | AD154: 0 | AE154: 0 | AF154: 0 | AG154: 0 | AH154: 0 | AI154: 0 | AJ154: 0 | AK154: 0 | AL154: 0 | AM154: 0 | AN154: 0 | AO154: 0 | AP154: 0 | AQ154: 0 | AR154: 0.3333333333 | AS154: 0 | AT154: 1.666666667 | AU154: 0 | AV154: 0 | AW154: 0 | AX154: =IF(A154="-",0,SUM(AQ$9:AQ154)) -> 0 | AY154: =IF(A154="-",0,SUM(T$9:T154)+SUM(U$9:U154)) -> 0 | AZ154: =IF(ISTEXT(V153),0,SUM(V$9:V153)) -> 0 | BA154: 0
A155: 2024-05-26 | D155: 1 | E155: 147 | R155: 0 | S155: 0 | T155: 0 | U155: 0 | V155: 0 | W155: 0 | X155: 0 | Y155: 0 | Z155: 0 | AA155: 0 | AB155: 0 | AC155: 0 | AD155: 0 | AE155: 0 | AF155: 0 | AG155: 0 | AH155: 0 | AI155: 0 | AJ155: 0 | AK155: 0 | AL155: 0 | AM155: 0 | AN155: 0 | AO155: 0 | AP155: 0 | AQ155: 0 | AR155: 0.3333333333 | AS155: 0 | AT155: 1.666666667 | AU155: 0 | AV155: 0 | AW155: 0 | AX155: =IF(A155="-",0,SUM(AQ$9:AQ155)) -> 0 | AY155: =IF(A155="-",0,SUM(T$9:T155)+SUM(U$9:U155)) -> 0 | AZ155: =IF(ISTEXT(V154),0,SUM(V$9:V154)) -> 0 | BA155: 0
A156: 2024-05-27 | D156: 2 | E156: 148 | R156: 0 | S156: 0 | T156: 0 | U156: 0 | V156: 0 | W156: 0 | X156: 0 | Y156: 0 | Z156: 0 | AA156: 0 | AB156: 0 | AC156: 0 | AD156: 0 | AE156: 0 | AF156: 0 | AG156: 0 | AH156: 0 | AI156: 0 | AJ156: 0 | AK156: 0 | AL156: 0 | AM156: 0 | AN156: 0 | AO156: 0 | AP156: 0 | AQ156: 0 | AR156: 0.3333333333 | AS156: 0 | AT156: 1.666666667 | AU156: 0 | AV156: 0 | AW156: 0 | AX156: =IF(A156="-",0,SUM(AQ$9:AQ156)) -> 0 | AY156: =IF(A156="-",0,SUM(T$9:T156)+SUM(U$9:U156)) -> 0 | AZ156: =IF(ISTEXT(V155),0,SUM(V$9:V155)) -> 0 | BA156: 0
A157: 2024-05-28 | D157: 3 | E157: 149 | R157: 0 | S157: 0 | T157: 0 | U157: 0 | V157: 0 | W157: 0 | X157: 0 | Y157: 0 | Z157: 0 | AA157: 0 | AB157: 0 | AC157: 0 | AD157: 0 | AE157: 0 | AF157: 0 | AG157: 0 | AH157: 0 | AI157: 0 | AJ157: 0 | AK157: 0 | AL157: 0 | AM157: 0 | AN157: 0 | AO157: 0 | AP157: 0 | AQ157: 0 | AR157: 0.3333333333 | AS157: 0 | AT157: 1.666666667 | AU157: 0 | AV157: 0 | AW157: 0 | AX157: =IF(A157="-",0,SUM(AQ$9:AQ157)) -> 0 | AY157: =IF(A157="-",0,SUM(T$9:T157)+SUM(U$9:U157)) -> 0 | AZ157: =IF(ISTEXT(V156),0,SUM(V$9:V156)) -> 0 | BA157: 0
A158: 2024-05-29 | D158: 4 | E158: 150 | R158: 0 | S158: 0 | T158: 0 | U158: 0 | V158: 0 | W158: 0 | X158: 0 | Y158: 0 | Z158: 0 | AA158: 0 | AB158: 0 | AC158: 0 | AD158: 0 | AE158: 0 | AF158: 0 | AG158: 0 | AH158: 0 | AI158: 0 | AJ158: 0 | AK158: 0 | AL158: 0 | AM158: 0 | AN158: 0 | AO158: 0 | AP158: 0 | AQ158: 0 | AR158: 0.3333333333 | AS158: 0 | AT158: 1.666666667 | AU158: 0 | AV158: 0 | AW158: 0 | AX158: =IF(A158="-",0,SUM(AQ$9:AQ158)) -> 0 | AY158: =IF(A158="-",0,SUM(T$9:T158)+SUM(U$9:U158)) -> 0 | AZ158: =IF(ISTEXT(V157),0,SUM(V$9:V157)) -> 0 | BA158: 0
A159: 2024-05-30 | D159: 5 | E159: 151 | R159: 0 | S159: 0 | T159: 0 | U159: 0 | V159: 0 | W159: 0 | X159: 0 | Y159: 0 | Z159: 0 | AA159: 0 | AB159: 0 | AC159: 0 | AD159: 0 | AE159: 0 | AF159: 0 | AG159: 0 | AH159: 0 | AI159: 0 | AJ159: 0 | AK159: 0 | AL159: 0 | AM159: 0 | AN159: 0 | AO159: 0 | AP159: 0 | AQ159: 0 | AR159: 0.3333333333 | AS159: 0 | AT159: 1.666666667 | AU159: 0 | AV159: 0 | AW159: 0 | AX159: =IF(A159="-",0,SUM(AQ$9:AQ159)) -> 0 | AY159: =IF(A159="-",0,SUM(T$9:T159)+SUM(U$9:U159)) -> 0 | AZ159: =IF(ISTEXT(V158),0,SUM(V$9:V158)) -> 0 | BA159: 0
A160: 2024-05-31 | C160: 5 | D160: 6 | E160: 152 | R160: 0 | S160: 0 | T160: 0 | U160: 0 | V160: 0 | W160: 0 | X160: 0 | Y160: 0 | Z160: 0 | AA160: 0 | AB160: 0 | AC160: 0 | AD160: 0 | AE160: 0 | AF160: 0 | AG160: 0 | AH160: 0 | AI160: 0 | AJ160: 0 | AK160: 0 | AL160: 0 | AM160: 0 | AN160: 0 | AO160: 0 | AP160: 0 | AQ160: 0 | AR160: 0.3333333333 | AS160: 0 | AT160: 1.666666667 | AU160: 0 | AV160: 0 | AW160: 0 | AX160: =IF(A160="-",0,SUM(AQ$9:AQ160)) -> 0 | AY160: =IF(A160="-",0,SUM(T$9:T160)+SUM(U$9:U160)) -> 0 | AZ160: =IF(ISTEXT(V159),0,SUM(V$9:V159)) -> 0 | BA160: 0
A161: 2024-06-01 | B161: 1 | D161: 7 | E161: 153 | R161: 0 | S161: 0 | T161: 0 | U161: 0 | V161: 0 | W161: 0 | X161: 0 | Y161: 0 | Z161: 0 | AA161: 0 | AB161: 0 | AC161: 0 | AD161: 0 | AE161: 0 | AF161: 0 | AG161: 0 | AH161: 0 | AI161: 0 | AJ161: 0 | AK161: 0 | AL161: 0 | AM161: 0 | AN161: 0 | AO161: 0 | AP161: 0 | AQ161: 0 | AR161: 0.3333333333 | AS161: 0 | AT161: 1.666666667 | AU161: 0 | AV161: 0 | AW161: 0 | AX161: =IF(A161="-",0,SUM(AQ$9:AQ161)) -> 0 | AY161: =IF(A161="-",0,SUM(T$9:T161)+SUM(U$9:U161)) -> 0 | AZ161: =IF(ISTEXT(V160),0,SUM(V$9:V160)) -> 0 | BA161: 0
A162: 2024-06-02 | D162: 1 | E162: 154 | R162: 0 | S162: 0 | T162: 0 | U162: 0 | V162: 0 | W162: 0 | X162: 0 | Y162: 0 | Z162: 0 | AA162: 0 | AB162: 0 | AC162: 0 | AD162: 0 | AE162: 0 | AF162: 0 | AG162: 0 | AH162: 0 | AI162: 0 | AJ162: 0 | AK162: 0 | AL162: 0 | AM162: 0 | AN162: 0 | AO162: 0 | AP162: 0 | AQ162: 0 | AR162: 0.3333333333 | AS162: 0 | AT162: 1.666666667 | AU162: 0 | AV162: 0 | AW162: 0 | AX162: =IF(A162="-",0,SUM(AQ$9:AQ162)) -> 0 | AY162: =IF(A162="-",0,SUM(T$9:T162)+SUM(U$9:U162)) -> 0 | AZ162: =IF(ISTEXT(V161),0,SUM(V$9:V161)) -> 0 | BA162: 0
A163: 2024-06-03 | D163: 2 | E163: 155 | R163: 0 | S163: 0 | T163: 0 | U163: 0 | V163: 0 | W163: 0 | X163: 0 | Y163: 0 | Z163: 0 | AA163: 0 | AB163: 0 | AC163: 0 | AD163: 0 | AE163: 0 | AF163: 0 | AG163: 0 | AH163: 0 | AI163: 0 | AJ163: 0 | AK163: 0 | AL163: 0 | AM163: 0 | AN163: 0 | AO163: 0 | AP163: 0 | AQ163: 0 | AR163: 0.3333333333 | AS163: 0 | AT163: 1.666666667 | AU163: 0 | AV163: 0 | AW163: 0 | AX163: =IF(A163="-",0,SUM(AQ$9:AQ163)) -> 0 | AY163: =IF(A163="-",0,SUM(T$9:T163)+SUM(U$9:U163)) -> 0 | AZ163: =IF(ISTEXT(V162),0,SUM(V$9:V162)) -> 0 | BA163: 0
A164: 2024-06-04 | D164: 3 | E164: 156 | R164: 0 | S164: 0 | T164: 0 | U164: 0 | V164: 0 | W164: 0 | X164: 0 | Y164: 0 | Z164: 0 | AA164: 0 | AB164: 0 | AC164: 0 | AD164: 0 | AE164: 0 | AF164: 0 | AG164: 0 | AH164: 0 | AI164: 0 | AJ164: 0 | AK164: 0 | AL164: 0 | AM164: 0 | AN164: 0 | AO164: 0 | AP164: 0 | AQ164: 0 | AR164: 0.3333333333 | AS164: 0 | AT164: 1.666666667 | AU164: 0 | AV164: 0 | AW164: 0 | AX164: =IF(A164="-",0,SUM(AQ$9:AQ164)) -> 0 | AY164: =IF(A164="-",0,SUM(T$9:T164)+SUM(U$9:U164)) -> 0 | AZ164: =IF(ISTEXT(V163),0,SUM(V$9:V163)) -> 0 | BA164: 0
A165: 2024-06-05 | D165: 4 | E165: 157 | R165: 0 | S165: 0 | T165: 0 | U165: 0 | V165: 0 | W165: 0 | X165: 0 | Y165: 0 | Z165: 0 | AA165: 0 | AB165: 0 | AC165: 0 | AD165: 0 | AE165: 0 | AF165: 0 | AG165: 0 | AH165: 0 | AI165: 0 | AJ165: 0 | AK165: 0 | AL165: 0 | AM165: 0 | AN165: 0 | AO165: 0 | AP165: 0 | AQ165: 0 | AR165: 0.3333333333 | AS165: 0 | AT165: 1.666666667 | AU165: 0 | AV165: 0 | AW165: 0 | AX165: =IF(A165="-",0,SUM(AQ$9:AQ165)) -> 0 | AY165: =IF(A165="-",0,SUM(T$9:T165)+SUM(U$9:U165)) -> 0 | AZ165: =IF(ISTEXT(V164),0,SUM(V$9:V164)) -> 0 | BA165: 0
A166: 2024-06-06 | D166: 5 | E166: 158 | R166: 0 | S166: 0 | T166: 0 | U166: 0 | V166: 0 | W166: 0 | X166: 0 | Y166: 0 | Z166: 0 | AA166: 0 | AB166: 0 | AC166: 0 | AD166: 0 | AE166: 0 | AF166: 0 | AG166: 0 | AH166: 0 | AI166: 0 | AJ166: 0 | AK166: 0 | AL166: 0 | AM166: 0 | AN166: 0 | AO166: 0 | AP166: 0 | AQ166: 0 | AR166: 0.3333333333 | AS166: 0 | AT166: 1.666666667 | AU166: 0 | AV166: 0 | AW166: 0 | AX166: =IF(A166="-",0,SUM(AQ$9:AQ166)) -> 0 | AY166: =IF(A166="-",0,SUM(T$9:T166)+SUM(U$9:U166)) -> 0 | AZ166: =IF(ISTEXT(V165),0,SUM(V$9:V165)) -> 0 | BA166: 0
A167: 2024-06-07 | D167: 6 | E167: 159 | R167: 0 | S167: 0 | T167: 0 | U167: 0 | V167: 0 | W167: 0 | X167: 0 | Y167: 0 | Z167: 0 | AA167: 0 | AB167: 0 | AC167: 0 | AD167: 0 | AE167: 0 | AF167: 0 | AG167: 0 | AH167: 0 | AI167: 0 | AJ167: 0 | AK167: 0 | AL167: 0 | AM167: 0 | AN167: 0 | AO167: 0 | AP167: 0 | AQ167: 0 | AR167: 0.3333333333 | AS167: 0 | AT167: 1.666666667 | AU167: 0 | AV167: 0 | AW167: 0 | AX167: =IF(A167="-",0,SUM(AQ$9:AQ167)) -> 0 | AY167: =IF(A167="-",0,SUM(T$9:T167)+SUM(U$9:U167)) -> 0 | AZ167: =IF(ISTEXT(V166),0,SUM(V$9:V166)) -> 0 | BA167: 0
A168: 2024-06-08 | B168: 1 | D168: 7 | E168: 160 | R168: 0 | S168: 0 | T168: 0 | U168: 0 | V168: 0 | W168: 0 | X168: 0 | Y168: 0 | Z168: 0 | AA168: 0 | AB168: 0 | AC168: 0 | AD168: 0 | AE168: 0 | AF168: 0 | AG168: 0 | AH168: 0 | AI168: 0 | AJ168: 0 | AK168: 0 | AL168: 0 | AM168: 0 | AN168: 0 | AO168: 0 | AP168: 0 | AQ168: 0 | AR168: 0.3333333333 | AS168: 0 | AT168: 1.666666667 | AU168: 0 | AV168: 0 | AW168: 0 | AX168: =IF(A168="-",0,SUM(AQ$9:AQ168)) -> 0 | AY168: =IF(A168="-",0,SUM(T$9:T168)+SUM(U$9:U168)) -> 0 | AZ168: =IF(ISTEXT(V167),0,SUM(V$9:V167)) -> 0 | BA168: 0
A169: 2024-06-09 | D169: 1 | E169: 161 | R169: 0 | S169: 0 | T169: 0 | U169: 0 | V169: 0 | W169: 0 | X169: 0 | Y169: 0 | Z169: 0 | AA169: 0 | AB169: 0 | AC169: 0 | AD169: 0 | AE169: 0 | AF169: 0 | AG169: 0 | AH169: 0 | AI169: 0 | AJ169: 0 | AK169: 0 | AL169: 0 | AM169: 0 | AN169: 0 | AO169: 0 | AP169: 0 | AQ169: 0 | AR169: 0.3333333333 | AS169: 0 | AT169: 1.666666667 | AU169: 0 | AV169: 0 | AW169: 0 | AX169: =IF(A169="-",0,SUM(AQ$9:AQ169)) -> 0 | AY169: =IF(A169="-",0,SUM(T$9:T169)+SUM(U$9:U169)) -> 0 | AZ169: =IF(ISTEXT(V168),0,SUM(V$9:V168)) -> 0 | BA169: 0
A170: 2024-06-10 | D170: 2 | E170: 162 | R170: 0 | S170: 0 | T170: 0 | U170: 0 | V170: 0 | W170: 0 | X170: 0 | Y170: 0 | Z170: 0 | AA170: 0 | AB170: 0 | AC170: 0 | AD170: 0 | AE170: 0 | AF170: 0 | AG170: 0 | AH170: 0 | AI170: 0 | AJ170: 0 | AK170: 0 | AL170: 0 | AM170: 0 | AN170: 0 | AO170: 0 | AP170: 0 | AQ170: 0 | AR170: 0.3333333333 | AS170: 0 | AT170: 1.666666667 | AU170: 0 | AV170: 0 | AW170: 0 | AX170: =IF(A170="-",0,SUM(AQ$9:AQ170)) -> 0 | AY170: =IF(A170="-",0,SUM(T$9:T170)+SUM(U$9:U170)) -> 0 | AZ170: =IF(ISTEXT(V169),0,SUM(V$9:V169)) -> 0 | BA170: 0
A171: 2024-06-11 | D171: 3 | E171: 163 | R171: 0 | S171: 0 | T171: 0 | U171: 0 | V171: 0 | W171: 0 | X171: 0 | Y171: 0 | Z171: 0 | AA171: 0 | AB171: 0 | AC171: 0 | AD171: 0 | AE171: 0 | AF171: 0 | AG171: 0 | AH171: 0 | AI171: 0 | AJ171: 0 | AK171: 0 | AL171: 0 | AM171: 0 | AN171: 0 | AO171: 0 | AP171: 0 | AQ171: 0 | AR171: 0.3333333333 | AS171: 0 | AT171: 1.666666667 | AU171: 0 | AV171: 0 | AW171: 0 | AX171: =IF(A171="-",0,SUM(AQ$9:AQ171)) -> 0 | AY171: =IF(A171="-",0,SUM(T$9:T171)+SUM(U$9:U171)) -> 0 | AZ171: =IF(ISTEXT(V170),0,SUM(V$9:V170)) -> 0 | BA171: 0
A172: 2024-06-12 | D172: 4 | E172: 164 | R172: 0 | S172: 0 | T172: 0 | U172: 0 | V172: 0 | W172: 0 | X172: 0 | Y172: 0 | Z172: 0 | AA172: 0 | AB172: 0 | AC172: 0 | AD172: 0 | AE172: 0 | AF172: 0 | AG172: 0 | AH172: 0 | AI172: 0 | AJ172: 0 | AK172: 0 | AL172: 0 | AM172: 0 | AN172: 0 | AO172: 0 | AP172: 0 | AQ172: 0 | AR172: 0.3333333333 | AS172: 0 | AT172: 1.666666667 | AU172: 0 | AV172: 0 | AW172: 0 | AX172: =IF(A172="-",0,SUM(AQ$9:AQ172)) -> 0 | AY172: =IF(A172="-",0,SUM(T$9:T172)+SUM(U$9:U172)) -> 0 | AZ172: =IF(ISTEXT(V171),0,SUM(V$9:V171)) -> 0 | BA172: 0
A173: 2024-06-13 | D173: 5 | E173: 165 | R173: 0 | S173: 0 | T173: 0 | U173: 0 | V173: 0 | W173: 0 | X173: 0 | Y173: 0 | Z173: 0 | AA173: 0 | AB173: 0 | AC173: 0 | AD173: 0 | AE173: 0 | AF173: 0 | AG173: 0 | AH173: 0 | AI173: 0 | AJ173: 0 | AK173: 0 | AL173: 0 | AM173: 0 | AN173: 0 | AO173: 0 | AP173: 0 | AQ173: 0 | AR173: 0.3333333333 | AS173: 0 | AT173: 1.666666667 | AU173: 0 | AV173: 0 | AW173: 0 | AX173: =IF(A173="-",0,SUM(AQ$9:AQ173)) -> 0 | AY173: =IF(A173="-",0,SUM(T$9:T173)+SUM(U$9:U173)) -> 0 | AZ173: =IF(ISTEXT(V172),0,SUM(V$9:V172)) -> 0 | BA173: 0
A174: 2024-06-14 | D174: 6 | E174: 166 | R174: 0 | S174: 0 | T174: 0 | U174: 0 | V174: 0 | W174: 0 | X174: 0 | Y174: 0 | Z174: 0 | AA174: 0 | AB174: 0 | AC174: 0 | AD174: 0 | AE174: 0 | AF174: 0 | AG174: 0 | AH174: 0 | AI174: 0 | AJ174: 0 | AK174: 0 | AL174: 0 | AM174: 0 | AN174: 0 | AO174: 0 | AP174: 0 | AQ174: 0 | AR174: 0.3333333333 | AS174: 0 | AT174: 1.666666667 | AU174: 0 | AV174: 0 | AW174: 0 | AX174: =IF(A174="-",0,SUM(AQ$9:AQ174)) -> 0 | AY174: =IF(A174="-",0,SUM(T$9:T174)+SUM(U$9:U174)) -> 0 | AZ174: =IF(ISTEXT(V173),0,SUM(V$9:V173)) -> 0 | BA174: 0
A175: 2024-06-15 | B175: 1 | D175: 7 | E175: 167 | R175: 0 | S175: 0 | T175: 0 | U175: 0 | V175: 0 | W175: 0 | X175: 0 | Y175: 0 | Z175: 0 | AA175: 0 | AB175: 0 | AC175: 0 | AD175: 0 | AE175: 0 | AF175: 0 | AG175: 0 | AH175: 0 | AI175: 0 | AJ175: 0 | AK175: 0 | AL175: 0 | AM175: 0 | AN175: 0 | AO175: 0 | AP175: 0 | AQ175: 0 | AR175: 0.3333333333 | AS175: 0 | AT175: 1.666666667 | AU175: 0 | AV175: 0 | AW175: 0 | AX175: =IF(A175="-",0,SUM(AQ$9:AQ175)) -> 0 | AY175: =IF(A175="-",0,SUM(T$9:T175)+SUM(U$9:U175)) -> 0 | AZ175: =IF(ISTEXT(V174),0,SUM(V$9:V174)) -> 0 | BA175: 0
A176: 2024-06-16 | D176: 1 | E176: 168 | R176: 0 | S176: 0 | T176: 0 | U176: 0 | V176: 0 | W176: 0 | X176: 0 | Y176: 0 | Z176: 0 | AA176: 0 | AB176: 0 | AC176: 0 | AD176: 0 | AE176: 0 | AF176: 0 | AG176: 0 | AH176: 0 | AI176: 0 | AJ176: 0 | AK176: 0 | AL176: 0 | AM176: 0 | AN176: 0 | AO176: 0 | AP176: 0 | AQ176: 0 | AR176: 0.3333333333 | AS176: 0 | AT176: 1.666666667 | AU176: 0 | AV176: 0 | AW176: 0 | AX176: =IF(A176="-",0,SUM(AQ$9:AQ176)) -> 0 | AY176: =IF(A176="-",0,SUM(T$9:T176)+SUM(U$9:U176)) -> 0 | AZ176: =IF(ISTEXT(V175),0,SUM(V$9:V175)) -> 0 | BA176: 0
A177: 2024-06-17 | D177: 2 | E177: 169 | R177: 0 | S177: 0 | T177: 0 | U177: 0 | V177: 0 | W177: 0 | X177: 0 | Y177: 0 | Z177: 0 | AA177: 0 | AB177: 0 | AC177: 0 | AD177: 0 | AE177: 0 | AF177: 0 | AG177: 0 | AH177: 0 | AI177: 0 | AJ177: 0 | AK177: 0 | AL177: 0 | AM177: 0 | AN177: 0 | AO177: 0 | AP177: 0 | AQ177: 0 | AR177: 0.3333333333 | AS177: 0 | AT177: 1.666666667 | AU177: 0 | AV177: 0 | AW177: 0 | AX177: =IF(A177="-",0,SUM(AQ$9:AQ177)) -> 0 | AY177: =IF(A177="-",0,SUM(T$9:T177)+SUM(U$9:U177)) -> 0 | AZ177: =IF(ISTEXT(V176),0,SUM(V$9:V176)) -> 0 | BA177: 0
A178: 2024-06-18 | D178: 3 | E178: 170 | R178: 0 | S178: 0 | T178: 0 | U178: 0 | V178: 0 | W178: 0 | X178: 0 | Y178: 0 | Z178: 0 | AA178: 0 | AB178: 0 | AC178: 0 | AD178: 0 | AE178: 0 | AF178: 0 | AG178: 0 | AH178: 0 | AI178: 0 | AJ178: 0 | AK178: 0 | AL178: 0 | AM178: 0 | AN178: 0 | AO178: 0 | AP178: 0 | AQ178: 0 | AR178: 0.3333333333 | AS178: 0 | AT178: 1.666666667 | AU178: 0 | AV178: 0 | AW178: 0 | AX178: =IF(A178="-",0,SUM(AQ$9:AQ178)) -> 0 | AY178: =IF(A178="-",0,SUM(T$9:T178)+SUM(U$9:U178)) -> 0 | AZ178: =IF(ISTEXT(V177),0,SUM(V$9:V177)) -> 0 | BA178: 0
A179: 2024-06-19 | D179: 4 | E179: 171 | R179: 0 | S179: 0 | T179: 0 | U179: 0 | V179: 0 | W179: 0 | X179: 0 | Y179: 0 | Z179: 0 | AA179: 0 | AB179: 0 | AC179: 0 | AD179: 0 | AE179: 0 | AF179: 0 | AG179: 0 | AH179: 0 | AI179: 0 | AJ179: 0 | AK179: 0 | AL179: 0 | AM179: 0 | AN179: 0 | AO179: 0 | AP179: 0 | AQ179: 0 | AR179: 0.3333333333 | AS179: 0 | AT179: 1.666666667 | AU179: 0 | AV179: 0 | AW179: 0 | AX179: =IF(A179="-",0,SUM(AQ$9:AQ179)) -> 0 | AY179: =IF(A179="-",0,SUM(T$9:T179)+SUM(U$9:U179)) -> 0 | AZ179: =IF(ISTEXT(V178),0,SUM(V$9:V178)) -> 0 | BA179: 0
A180: 2024-06-20 | D180: 5 | E180: 172 | R180: 0 | S180: 0 | T180: 0 | U180: 0 | V180: 0 | W180: 0 | X180: 0 | Y180: 0 | Z180: 0 | AA180: 0 | AB180: 0 | AC180: 0 | AD180: 0 | AE180: 0 | AF180: 0 | AG180: 0 | AH180: 0 | AI180: 0 | AJ180: 0 | AK180: 0 | AL180: 0 | AM180: 0 | AN180: 0 | AO180: 0 | AP180: 0 | AQ180: 0 | AR180: 0.3333333333 | AS180: 0 | AT180: 1.666666667 | AU180: 0 | AV180: 0 | AW180: 0 | AX180: =IF(A180="-",0,SUM(AQ$9:AQ180)) -> 0 | AY180: =IF(A180="-",0,SUM(T$9:T180)+SUM(U$9:U180)) -> 0 | AZ180: =IF(ISTEXT(V179),0,SUM(V$9:V179)) -> 0 | BA180: 0
A181: 2024-06-21 | D181: 6 | E181: 173 | R181: 0 | S181: 0 | T181: 0 | U181: 0 | V181: 0 | W181: 0 | X181: 0 | Y181: 0 | Z181: 0 | AA181: 0 | AB181: 0 | AC181: 0 | AD181: 0 | AE181: 0 | AF181: 0 | AG181: 0 | AH181: 0 | AI181: 0 | AJ181: 0 | AK181: 0 | AL181: 0 | AM181: 0 | AN181: 0 | AO181: 0 | AP181: 0 | AQ181: 0 | AR181: 0.3333333333 | AS181: 0 | AT181: 1.666666667 | AU181: 0 | AV181: 0 | AW181: 0 | AX181: =IF(A181="-",0,SUM(AQ$9:AQ181)) -> 0 | AY181: =IF(A181="-",0,SUM(T$9:T181)+SUM(U$9:U181)) -> 0 | AZ181: =IF(ISTEXT(V180),0,SUM(V$9:V180)) -> 0 | BA181: 0
A182: 2024-06-22 | B182: 1 | D182: 7 | E182: 174 | R182: 0 | S182: 0 | T182: 0 | U182: 0 | V182: 0 | W182: 0 | X182: 0 | Y182: 0 | Z182: 0 | AA182: 0 | AB182: 0 | AC182: 0 | AD182: 0 | AE182: 0 | AF182: 0 | AG182: 0 | AH182: 0 | AI182: 0 | AJ182: 0 | AK182: 0 | AL182: 0 | AM182: 0 | AN182: 0 | AO182: 0 | AP182: 0 | AQ182: 0 | AR182: 0.3333333333 | AS182: 0 | AT182: 1.666666667 | AU182: 0 | AV182: 0 | AW182: 0 | AX182: =IF(A182="-",0,SUM(AQ$9:AQ182)) -> 0 | AY182: =IF(A182="-",0,SUM(T$9:T182)+SUM(U$9:U182)) -> 0 | AZ182: =IF(ISTEXT(V181),0,SUM(V$9:V181)) -> 0 | BA182: 0
A183: 2024-06-23 | D183: 1 | E183: 175 | R183: 0 | S183: 0 | T183: 0 | U183: 0 | V183: 0 | W183: 0 | X183: 0 | Y183: 0 | Z183: 0 | AA183: 0 | AB183: 0 | AC183: 0 | AD183: 0 | AE183: 0 | AF183: 0 | AG183: 0 | AH183: 0 | AI183: 0 | AJ183: 0 | AK183: 0 | AL183: 0 | AM183: 0 | AN183: 0 | AO183: 0 | AP183: 0 | AQ183: 0 | AR183: 0.3333333333 | AS183: 0 | AT183: 1.666666667 | AU183: 0 | AV183: 0 | AW183: 0 | AX183: =IF(A183="-",0,SUM(AQ$9:AQ183)) -> 0 | AY183: =IF(A183="-",0,SUM(T$9:T183)+SUM(U$9:U183)) -> 0 | AZ183: =IF(ISTEXT(V182),0,SUM(V$9:V182)) -> 0 | BA183: 0
A184: 2024-06-24 | D184: 2 | E184: 176 | R184: 0 | S184: 0 | T184: 0 | U184: 0 | V184: 0 | W184: 0 | X184: 0 | Y184: 0 | Z184: 0 | AA184: 0 | AB184: 0 | AC184: 0 | AD184: 0 | AE184: 0 | AF184: 0 | AG184: 0 | AH184: 0 | AI184: 0 | AJ184: 0 | AK184: 0 | AL184: 0 | AM184: 0 | AN184: 0 | AO184: 0 | AP184: 0 | AQ184: 0 | AR184: 0.3333333333 | AS184: 0 | AT184: 1.666666667 | AU184: 0 | AV184: 0 | AW184: 0 | AX184: =IF(A184="-",0,SUM(AQ$9:AQ184)) -> 0 | AY184: =IF(A184="-",0,SUM(T$9:T184)+SUM(U$9:U184)) -> 0 | AZ184: =IF(ISTEXT(V183),0,SUM(V$9:V183)) -> 0 | BA184: 0
A185: 2024-06-25 | D185: 3 | E185: 177 | R185: 0 | S185: 0 | T185: 0 | U185: 0 | V185: 0 | W185: 0 | X185: 0 | Y185: 0 | Z185: 0 | AA185: 0 | AB185: 0 | AC185: 0 | AD185: 0 | AE185: 0 | AF185: 0 | AG185: 0 | AH185: 0 | AI185: 0 | AJ185: 0 | AK185: 0 | AL185: 0 | AM185: 0 | AN185: 0 | AO185: 0 | AP185: 0 | AQ185: 0 | AR185: 0.3333333333 | AS185: 0 | AT185: 1.666666667 | AU185: 0 | AV185: 0 | AW185: 0 | AX185: =IF(A185="-",0,SUM(AQ$9:AQ185)) -> 0 | AY185: =IF(A185="-",0,SUM(T$9:T185)+SUM(U$9:U185)) -> 0 | AZ185: =IF(ISTEXT(V184),0,SUM(V$9:V184)) -> 0 | BA185: 0
A186: 2024-06-26 | D186: 4 | E186: 178 | R186: 0 | S186: 0 | T186: 0 | U186: 0 | V186: 0 | W186: 0 | X186: 0 | Y186: 0 | Z186: 0 | AA186: 0 | AB186: 0 | AC186: 0 | AD186: 0 | AE186: 0 | AF186: 0 | AG186: 0 | AH186: 0 | AI186: 0 | AJ186: 0 | AK186: 0 | AL186: 0 | AM186: 0 | AN186: 0 | AO186: 0 | AP186: 0 | AQ186: 0 | AR186: 0.3333333333 | AS186: 0 | AT186: 1.666666667 | AU186: 0 | AV186: 0 | AW186: 0 | AX186: =IF(A186="-",0,SUM(AQ$9:AQ186)) -> 0 | AY186: =IF(A186="-",0,SUM(T$9:T186)+SUM(U$9:U186)) -> 0 | AZ186: =IF(ISTEXT(V185),0,SUM(V$9:V185)) -> 0 | BA186: 0
A187: 2024-06-27 | D187: 5 | E187: 179 | R187: 0 | S187: 0 | T187: 0 | U187: 0 | V187: 0 | W187: 0 | X187: 0 | Y187: 0 | Z187: 0 | AA187: 0 | AB187: 0 | AC187: 0 | AD187: 0 | AE187: 0 | AF187: 0 | AG187: 0 | AH187: 0 | AI187: 0 | AJ187: 0 | AK187: 0 | AL187: 0 | AM187: 0 | AN187: 0 | AO187: 0 | AP187: 0 | AQ187: 0 | AR187: 0.3333333333 | AS187: 0 | AT187: 1.666666667 | AU187: 0 | AV187: 0 | AW187: 0 | AX187: =IF(A187="-",0,SUM(AQ$9:AQ187)) -> 0 | AY187: =IF(A187="-",0,SUM(T$9:T187)+SUM(U$9:U187)) -> 0 | AZ187: =IF(ISTEXT(V186),0,SUM(V$9:V186)) -> 0 | BA187: 0
A188: 2024-06-28 | D188: 6 | E188: 180 | R188: 0 | S188: 0 | T188: 0 | U188: 0 | V188: 0 | W188: 0 | X188: 0 | Y188: 0 | Z188: 0 | AA188: 0 | AB188: 0 | AC188: 0 | AD188: 0 | AE188: 0 | AF188: 0 | AG188: 0 | AH188: 0 | AI188: 0 | AJ188: 0 | AK188: 0 | AL188: 0 | AM188: 0 | AN188: 0 | AO188: 0 | AP188: 0 | AQ188: 0 | AR188: 0.3333333333 | AS188: 0 | AT188: 1.666666667 | AU188: 0 | AV188: 0 | AW188: 0 | AX188: =IF(A188="-",0,SUM(AQ$9:AQ188)) -> 0 | AY188: =IF(A188="-",0,SUM(T$9:T188)+SUM(U$9:U188)) -> 0 | AZ188: =IF(ISTEXT(V187),0,SUM(V$9:V187)) -> 0 | BA188: 0
A189: 2024-06-29 | B189: 1 | D189: 7 | E189: 181 | R189: 0 | S189: 0 | T189: 0 | U189: 0 | V189: 0 | W189: 0 | X189: 0 | Y189: 0 | Z189: 0 | AA189: 0 | AB189: 0 | AC189: 0 | AD189: 0 | AE189: 0 | AF189: 0 | AG189: 0 | AH189: 0 | AI189: 0 | AJ189: 0 | AK189: 0 | AL189: 0 | AM189: 0 | AN189: 0 | AO189: 0 | AP189: 0 | AQ189: 0 | AR189: 0.3333333333 | AS189: 0 | AT189: 1.666666667 | AU189: 0 | AV189: 0 | AW189: 0 | AX189: =IF(A189="-",0,SUM(AQ$9:AQ189)) -> 0 | AY189: =IF(A189="-",0,SUM(T$9:T189)+SUM(U$9:U189)) -> 0 | AZ189: =IF(ISTEXT(V188),0,SUM(V$9:V188)) -> 0 | BA189: 0
A190: 2024-06-30 | C190: 6 | D190: 1 | E190: 182 | R190: 0 | S190: 0 | T190: 0 | U190: 0 | V190: 0 | W190: 0 | X190: 0 | Y190: 0 | Z190: 0 | AA190: 0 | AB190: 0 | AC190: 0 | AD190: 0 | AE190: 0 | AF190: 0 | AG190: 0 | AH190: 0 | AI190: 0 | AJ190: 0 | AK190: 0 | AL190: 0 | AM190: 0 | AN190: 0 | AO190: 0 | AP190: 0 | AQ190: 0 | AR190: 0.3333333333 | AS190: 0 | AT190: 1.666666667 | AU190: 0 | AV190: 0 | AW190: 0 | AX190: =IF(A190="-",0,SUM(AQ$9:AQ190)) -> 0 | AY190: =IF(A190="-",0,SUM(T$9:T190)+SUM(U$9:U190)) -> 0 | AZ190: =IF(ISTEXT(V189),0,SUM(V$9:V189)) -> 0 | BA190: 0
A191: 2024-07-01 | D191: 2 | E191: 183 | R191: 0 | S191: 0 | T191: 0 | U191: 0 | V191: 0 | W191: 0 | X191: 0 | Y191: 0 | Z191: 0 | AA191: 0 | AB191: 0 | AC191: 0 | AD191: 0 | AE191: 0 | AF191: 0 | AG191: 0 | AH191: 0 | AI191: 0 | AJ191: 0 | AK191: 0 | AL191: 0 | AM191: 0 | AN191: 0 | AO191: 0 | AP191: 0 | AQ191: 0 | AR191: 0.3333333333 | AS191: 0 | AT191: 1.666666667 | AU191: 0 | AV191: 0 | AW191: 0 | AX191: =IF(A191="-",0,SUM(AQ$9:AQ191)) -> 0 | AY191: =IF(A191="-",0,SUM(T$9:T191)+SUM(U$9:U191)) -> 0 | AZ191: =IF(ISTEXT(V190),0,SUM(V$9:V190)) -> 0 | BA191: 0
A192: 2024-07-02 | D192: 3 | E192: 184 | R192: 0 | S192: 0 | T192: 0 | U192: 0 | V192: 0 | W192: 0 | X192: 0 | Y192: 0 | Z192: 0 | AA192: 0 | AB192: 0 | AC192: 0 | AD192: 0 | AE192: 0 | AF192: 0 | AG192: 0 | AH192: 0 | AI192: 0 | AJ192: 0 | AK192: 0 | AL192: 0 | AM192: 0 | AN192: 0 | AO192: 0 | AP192: 0 | AQ192: 0 | AR192: 0.3333333333 | AS192: 0 | AT192: 1.666666667 | AU192: 0 | AV192: 0 | AW192: 0 | AX192: =IF(A192="-",0,SUM(AQ$9:AQ192)) -> 0 | AY192: =IF(A192="-",0,SUM(T$9:T192)+SUM(U$9:U192)) -> 0 | AZ192: =IF(ISTEXT(V191),0,SUM(V$9:V191)) -> 0 | BA192: 0
A193: 2024-07-03 | D193: 4 | E193: 185 | R193: 0 | S193: 0 | T193: 0 | U193: 0 | V193: 0 | W193: 0 | X193: 0 | Y193: 0 | Z193: 0 | AA193: 0 | AB193: 0 | AC193: 0 | AD193: 0 | AE193: 0 | AF193: 0 | AG193: 0 | AH193: 0 | AI193: 0 | AJ193: 0 | AK193: 0 | AL193: 0 | AM193: 0 | AN193: 0 | AO193: 0 | AP193: 0 | AQ193: 0 | AR193: 0.3333333333 | AS193: 0 | AT193: 1.666666667 | AU193: 0 | AV193: 0 | AW193: 0 | AX193: =IF(A193="-",0,SUM(AQ$9:AQ193)) -> 0 | AY193: =IF(A193="-",0,SUM(T$9:T193)+SUM(U$9:U193)) -> 0 | AZ193: =IF(ISTEXT(V192),0,SUM(V$9:V192)) -> 0 | BA193: 0
A194: 2024-07-04 | D194: 5 | E194: 186 | R194: 0 | S194: 0 | T194: 0 | U194: 0 | V194: 0 | W194: 0 | X194: 0 | Y194: 0 | Z194: 0 | AA194: 0 | AB194: 0 | AC194: 0 | AD194: 0 | AE194: 0 | AF194: 0 | AG194: 0 | AH194: 0 | AI194: 0 | AJ194: 0 | AK194: 0 | AL194: 0 | AM194: 0 | AN194: 0 | AO194: 0 | AP194: 0 | AQ194: 0 | AR194: 0.3333333333 | AS194: 0 | AT194: 1.666666667 | AU194: 0 | AV194: 0 | AW194: 0 | AX194: =IF(A194="-",0,SUM(AQ$9:AQ194)) -> 0 | AY194: =IF(A194="-",0,SUM(T$9:T194)+SUM(U$9:U194)) -> 0 | AZ194: =IF(ISTEXT(V193),0,SUM(V$9:V193)) -> 0 | BA194: 0
A195: 2024-07-05 | D195: 6 | E195: 187 | R195: 0 | S195: 0 | T195: 0 | U195: 0 | V195: 0 | W195: 0 | X195: 0 | Y195: 0 | Z195: 0 | AA195: 0 | AB195: 0 | AC195: 0 | AD195: 0 | AE195: 0 | AF195: 0 | AG195: 0 | AH195: 0 | AI195: 0 | AJ195: 0 | AK195: 0 | AL195: 0 | AM195: 0 | AN195: 0 | AO195: 0 | AP195: 0 | AQ195: 0 | AR195: 0.3333333333 | AS195: 0 | AT195: 1.666666667 | AU195: 0 | AV195: 0 | AW195: 0 | AX195: =IF(A195="-",0,SUM(AQ$9:AQ195)) -> 0 | AY195: =IF(A195="-",0,SUM(T$9:T195)+SUM(U$9:U195)) -> 0 | AZ195: =IF(ISTEXT(V194),0,SUM(V$9:V194)) -> 0 | BA195: 0
A196: 2024-07-06 | B196: 1 | D196: 7 | E196: 188 | R196: 0 | S196: 0 | T196: 0 | U196: 0 | V196: 0 | W196: 0 | X196: 0 | Y196: 0 | Z196: 0 | AA196: 0 | AB196: 0 | AC196: 0 | AD196: 0 | AE196: 0 | AF196: 0 | AG196: 0 | AH196: 0 | AI196: 0 | AJ196: 0 | AK196: 0 | AL196: 0 | AM196: 0 | AN196: 0 | AO196: 0 | AP196: 0 | AQ196: 0 | AR196: 0.3333333333 | AS196: 0 | AT196: 1.666666667 | AU196: 0 | AV196: 0 | AW196: 0 | AX196: =IF(A196="-",0,SUM(AQ$9:AQ196)) -> 0 | AY196: =IF(A196="-",0,SUM(T$9:T196)+SUM(U$9:U196)) -> 0 | AZ196: =IF(ISTEXT(V195),0,SUM(V$9:V195)) -> 0 | BA196: 0
A197: 2024-07-07 | D197: 1 | E197: 189 | R197: 0 | S197: 0 | T197: 0 | U197: 0 | V197: 0 | W197: 0 | X197: 0 | Y197: 0 | Z197: 0 | AA197: 0 | AB197: 0 | AC197: 0 | AD197: 0 | AE197: 0 | AF197: 0 | AG197: 0 | AH197: 0 | AI197: 0 | AJ197: 0 | AK197: 0 | AL197: 0 | AM197: 0 | AN197: 0 | AO197: 0 | AP197: 0 | AQ197: 0 | AR197: 0.3333333333 | AS197: 0 | AT197: 1.666666667 | AU197: 0 | AV197: 0 | AW197: 0 | AX197: =IF(A197="-",0,SUM(AQ$9:AQ197)) -> 0 | AY197: =IF(A197="-",0,SUM(T$9:T197)+SUM(U$9:U197)) -> 0 | AZ197: =IF(ISTEXT(V196),0,SUM(V$9:V196)) -> 0 | BA197: 0
A198: 2024-07-08 | D198: 2 | E198: 190 | R198: 0 | S198: 0 | T198: 0 | U198: 0 | V198: 0 | W198: 0 | X198: 0 | Y198: 0 | Z198: 0 | AA198: 0 | AB198: 0 | AC198: 0 | AD198: 0 | AE198: 0 | AF198: 0 | AG198: 0 | AH198: 0 | AI198: 0 | AJ198: 0 | AK198: 0 | AL198: 0 | AM198: 0 | AN198: 0 | AO198: 0 | AP198: 0 | AQ198: 0 | AR198: 0.3333333333 | AS198: 0 | AT198: 1.666666667 | AU198: 0 | AV198: 0 | AW198: 0 | AX198: =IF(A198="-",0,SUM(AQ$9:AQ198)) -> 0 | AY198: =IF(A198="-",0,SUM(T$9:T198)+SUM(U$9:U198)) -> 0 | AZ198: =IF(ISTEXT(V197),0,SUM(V$9:V197)) -> 0 | BA198: 0
A199: 2024-07-09 | D199: 3 | E199: 191 | R199: 0 | S199: 0 | T199: 0 | U199: 0 | V199: 0 | W199: 0 | X199: 0 | Y199: 0 | Z199: 0 | AA199: 0 | AB199: 0 | AC199: 0 | AD199: 0 | AE199: 0 | AF199: 0 | AG199: 0 | AH199: 0 | AI199: 0 | AJ199: 0 | AK199: 0 | AL199: 0 | AM199: 0 | AN199: 0 | AO199: 0 | AP199: 0 | AQ199: 0 | AR199: 0.3333333333 | AS199: 0 | AT199: 1.666666667 | AU199: 0 | AV199: 0 | AW199: 0 | AX199: =IF(A199="-",0,SUM(AQ$9:AQ199)) -> 0 | AY199: =IF(A199="-",0,SUM(T$9:T199)+SUM(U$9:U199)) -> 0 | AZ199: =IF(ISTEXT(V198),0,SUM(V$9:V198)) -> 0 | BA199: 0
A200: 2024-07-10 | D200: 4 | E200: 192 | R200: 0 | S200: 0 | T200: 0 | U200: 0 | V200: 0 | W200: 0 | X200: 0 | Y200: 0 | Z200: 0 | AA200: 0 | AB200: 0 | AC200: 0 | AD200: 0 | AE200: 0 | AF200: 0 | AG200: 0 | AH200: 0 | AI200: 0 | AJ200: 0 | AK200: 0 | AL200: 0 | AM200: 0 | AN200: 0 | AO200: 0 | AP200: 0 | AQ200: 0 | AR200: 0.3333333333 | AS200: 0 | AT200: 1.666666667 | AU200: 0 | AV200: 0 | AW200: 0 | AX200: =IF(A200="-",0,SUM(AQ$9:AQ200)) -> 0 | AY200: =IF(A200="-",0,SUM(T$9:T200)+SUM(U$9:U200)) -> 0 | AZ200: =IF(ISTEXT(V199),0,SUM(V$9:V199)) -> 0 | BA200: 0
... 197 more rows
